Workbook

Sheet Testat
A1: Angaben zu Einspeisevergütungen und Vermiedene Netzentgelte
A3: =CONCATENATE("Die nachfolgende Tabelle gibt die von der ",VNB_KUNDE,) -> Die nachfolgende Tabelle gibt die von der ENA Energienetze Apolda GmbH
A4: • nach § 11 Abs. 1 Satz 2 EEG 2014 kaufmännisch abgenommenen Strommengen (kaufmännisch abgenommene Strommenge)
A5: • für diese Strommengen tatsächlich geleisteten finanziellen Förderungen nach § 19 Abs. 1 Nr. 2 EEG 2014 (Einspeisevergütung) sowie
A6: • vermiedenen Netzentgelte (vNE) gemäß § 57 Abs. 3 EEG 2014
A7: =CONCATENATE("für den Zeitraum vom 01.01.",EEG_JAHR," bis 31.12.",EEG_JAHR," wieder:") -> für den Zeitraum vom 01.01.2015 bis 31.12.2015 wieder:
A9: Energieträger | B9: kaufmännisch abgenommene Strommenge | C9: Einspeisevergütung | D9: vermiedene Netzentgelte¹
B10: [kWh] | C10: [€] | D10: [€]
A12: Wasserkraft | B12: =Jahresabrechnung!H2 ->  | C12: =Jahresabrechnung!I2 -> 29,284.46 | D12: =SUMIF('Zusammenfassung VNNE'!$B$15:$B$116,"vNNE Wasser",'Zusammenfassung VNNE'!$G$15:$G$116) -> 2,208.29
A13: Deponie-, Klär-, Grubengas | B13: =Jahresabrechnung!H3 ->  | C13: =Jahresabrechnung!I3 -> 0.00 | D13: =SUMIF('Zusammenfassung VNNE'!$B$15:$B$116,"vNNE Deponie-, Klär-, Grubengas",'Zusammenfassung VNNE'!$G$15:$G$116) -> 0.00
A14: Biomasse | B14: =Jahresabrechnung!H4 ->  | C14: =Jahresabrechnung!I4 -> 143,681.25 | D14: =SUMIF('Zusammenfassung VNNE'!$B$15:$B$116,"vNNE Biomasse",'Zusammenfassung VNNE'!$G$15:$G$116) -> 5,057.60
A15: Geothermie | B15: =Jahresabrechnung!H5 ->  | C15: =Jahresabrechnung!I5 -> 0.00 | D15: =SUMIF('Zusammenfassung VNNE'!$B$15:$B$116,"vNNE Geothermie",'Zusammenfassung VNNE'!$G$15:$G$116) -> 0.00
A16: Windenergie an Land | B16: =Jahresabrechnung!H6 ->  | C16: =Jahresabrechnung!I6 -> 0.00 | D16: =SUMIF('Zusammenfassung VNNE'!$B$15:$B$116,"vNNE Wind",'Zusammenfassung VNNE'!$G$15:$G$116) -> 0.00
A17: Windenergie auf See | B17: =Jahresabrechnung!H7 ->  | C17: =Jahresabrechnung!I7 -> 0.00 | D17: =SUMIF('Zusammenfassung VNNE'!$B$15:$B$116,"vNNE Wind Offshore",'Zusammenfassung VNNE'!$G$15:$G$116) -> 0.00
A18: Solare Strahlungsenergie | B18: =Jahresabrechnung!H8 ->  | C18: =Jahresabrechnung!I8 -> 1,409,987.28 | D18: =SUMIF('Zusammenfassung VNNE'!$B$15:$B$116,"vNNE Solar",'Zusammenfassung VNNE'!$G$15:$G$116) -> 49,682.80
A20: Summe | B20: =SUM(B12:B18) ->  | C20: =SUM(C12:C18) -> 1,582,952.99 | D20: =SUM(D12:D18) -> 56,948.69
C21: (1) | D21: (2)
A23: Vergütung nach Abzug vermiedener NE [€]: | C23: =C20-D20 -> 1,526,004.30 | D23: (3) = (1) - (2)
A25: ¹ vermiedene NE für die gesamte erzeugte Strommenge, die nicht in sonstiger DV waren
A27: Angaben zur Direktvermarktung
A29: =CONCATENATE("Die nachfolgende Tabelle gibt die von uns, der ",VNB_KUNDE,"") -> Die nachfolgende Tabelle gibt die von uns, der ENA Energienetze Apolda GmbH
A30: • tatsächlich geleisteten finanziellen Förderungen nach § 19 Abs. 1 Nr. 1 EEG 2014 (Marktprämie),
A31: • die nach § 20 Abs. 1 Nr. 1 EEG 2014 direkt vermarkteten Strommengen (Marktprämienmodell),
A32: • die nach § 20 Abs. 1 Nr. 2 EEG 2014 direkt vermarkteten Strommengen (sonstige Direktvermarktung) sowie
A33: =CONCATENATE("für den Zeitraum vom 01.01.",EEG_JAHR," bis 31.12.",EEG_JAHR," wieder:") -> für den Zeitraum vom 01.01.2015 bis 31.12.2015 wieder:
B35: Marktprämie | C35: Strommengen nach
A36: Energieträger | C36: Marktprämienmodell | D36: sonst. Direktvermarktung
B37: [€] | C37: [kWh] | D37: [kWh]
A39: Wasserkraft | B39: =Jahresabrechnung!K2 -> 0.00 | C39: =Jahresabrechnung!J2 -> 0 | D39: =Jahresabrechnung!O2 -> 0
A40: Deponie-, Klär-, Grubengas | B40: =Jahresabrechnung!K3 -> 0.00 | C40: =Jahresabrechnung!J3 -> 0 | D40: =Jahresabrechnung!O3 -> 0
A41: Biomasse | B41: =Jahresabrechnung!K4 -> 0.00 | C41: =Jahresabrechnung!J4 -> 0 | D41: =Jahresabrechnung!O4 -> 0
A42: Geothermie | B42: =Jahresabrechnung!K5 -> 0.00 | C42: =Jahresabrechnung!J5 -> 0 | D42: =Jahresabrechnung!O5 -> 0
A43: Windenergie an Land | B43: =Jahresabrechnung!K6 -> 0.00 | C43: =Jahresabrechnung!J6 -> 0 | D43: =Jahresabrechnung!O6 -> 0
A44: Windenergie auf See | B44: =Jahresabrechnung!K7 -> 0.00 | C44: =Jahresabrechnung!J7 -> 0 | D44: =Jahresabrechnung!O7 -> 0
A45: Solare Strahlungsenergie | B45: =Jahresabrechnung!K8 -> 17,149.24 | C45: =Jahresabrechnung!J8 -> 67,426 | D45: =Jahresabrechnung!O8 -> 0
A47: Summe | B47: =SUM(B39:B45) -> 17,149.24 | C47: =SUM(C39:C45) -> 67,426 | D47: =SUM(D39:D45) -> 0
A49: Förderung für Flexibilität
A51: =CONCATENATE("Die nachfolgende Tabelle gibt die von uns, der ",VNB_KUNDE," tatsächlich geleisteten") -> Die nachfolgende Tabelle gibt die von uns, der ENA Energienetze Apolda GmbH tatsächlich geleisteten
A52: finanziellen Förderungen für die Bereitstellung installierter Leistung
A53: • nach 53 EEG 2014 (Flexibilitätszuschlag) sowie
A54: • nach 54 EEG 2014 (Flexibilitätsprämie)
A55: =CONCATENATE("für den Zeitraum vom 01.01.",EEG_JAHR," bis 31.12.",EEG_JAHR," wieder:") -> für den Zeitraum vom 01.01.2015 bis 31.12.2015 wieder:
A57: Flexibilitätszuschlag und Flexibilitätsprämie | B57: =Jahresabrechnung!$P$4 -> 0.00

Sheet Testat 2014 (hidden)
A2: Angaben zu Einspeisevergütungen und Vermiedene Netzentgelte
A5: =CONCATENATE("Die nachfolgende Tabelle gibt die von der ",VNB_KUNDE," nach § 8 EEG 2012 abgenommenen") -> Die nachfolgende Tabelle gibt die von der ENA Energienetze Apolda GmbH nach § 8 EEG 2012 abgenommenen
A6: und nach § 16 EEG 2012 vergüteten Strommengen sowie die für diese Strommengen nach
A7: Maßgabe der §§ 16 – 33 i.V.m. § 66 EEG 2012 gezahlten Vergütungen und die vermiedenen
A8: =CONCATENATE("Netzentgelte gemäß § 35 Abs. 2 EEG 2012 (vNE) für den Zeitraum vom 01.01.",EEG_JAHR," bis 31.12.",EEG_JAHR," wieder:") -> Netzentgelte gemäß § 35 Abs. 2 EEG 2012 (vNE) für den Zeitraum vom 01.01.2015 bis 31.12.2015 wieder:
A11: Energieträger | B11: kaufmännisch abgenommene Strommenge | C11: Vergütung | D11: vermiedene NE¹
B12: [kWh] | C12: [€] | D12: [€]
A14: Wasserkraft | B14: =Jahresabrechnung!H2 ->  | C14: =Jahresabrechnung!I2 -> 29,284.46 | D14: =SUMIF('Zusammenfassung VNNE'!$B$15:$B$116,"vNNE Wasser",'Zusammenfassung VNNE'!$G$15:$G$116) -> 2,208.29
A15: Deponie-, Klär-, Grubengas | B15: =Jahresabrechnung!H3 ->  | C15: =Jahresabrechnung!I3 -> 0.00 | D15: =SUMIF('Zusammenfassung VNNE'!$B$15:$B$116,"vNNE Deponie-, Klär-, Grubengas",'Zusammenfassung VNNE'!$G$15:$G$116) -> 0.00
A16: Biomasse | B16: =Jahresabrechnung!H4 ->  | C16: =Jahresabrechnung!I4 -> 143,681.25 | D16: =SUMIF('Zusammenfassung VNNE'!$B$15:$B$116,"vNNE Biomasse",'Zusammenfassung VNNE'!$G$15:$G$116) -> 5,057.60
A17: Geothermie | B17: =Jahresabrechnung!H5 ->  | C17: =Jahresabrechnung!I5 -> 0.00 | D17: =SUMIF('Zusammenfassung VNNE'!$B$15:$B$116,"vNNE Geothermie",'Zusammenfassung VNNE'!$G$15:$G$116) -> 0.00
A18: Windenergie an Land | B18: =Jahresabrechnung!H6 ->  | C18: =Jahresabrechnung!I6 -> 0.00 | D18: =SUMIF('Zusammenfassung VNNE'!$B$15:$B$116,"vNNE Wind",'Zusammenfassung VNNE'!$G$15:$G$116) -> 0.00
A19: Windenergie auf See | B19: =Jahresabrechnung!H7 ->  | C19: =Jahresabrechnung!I7 -> 0.00 | D19: =SUMIF('Zusammenfassung VNNE'!$B$15:$B$116,"vNNE Wind Offshore",'Zusammenfassung VNNE'!$G$15:$G$116) -> 0.00
A20: Solare Strahlungsenergie | B20: =Jahresabrechnung!H8 ->  | C20: =Jahresabrechnung!I8 -> 1,409,987.28 | D20: =SUMIF('Zusammenfassung VNNE'!$B$15:$B$116,"vNNE Solar",'Zusammenfassung VNNE'!$G$15:$G$116) -> 49,682.80
A22: Summe | B22: =SUM(B14:B20) ->  | C22: =SUM(C14:C20) -> 1,582,952.99 | D22: =SUM(D14:D20) -> 56,948.69
C23: (1) | D23: (2)
A25: Vergütung nach Abzug vermiedener NE [€]: | C25: =C22-D22 -> 1,526,004.30 | D25: (3) = (1) - (2)
A27: ¹ vermiedene NE für die gesamte erzeugte Strommenge, die nicht in sonstiger DV waren
A29: Angaben zur Direktvermarktung
A31: =CONCATENATE("Die nachfolgende Tabelle gibt die nach § 33b EEG 2012 direkt vermarktete Strommenge aus Anlagen, die bei der ",VNB_KUNDE," nach § 33d Abs. 2 EEG 2012 angemeldet wurden, sowie die nach § 33g und 33i EEG 2012 sowie § 53 EEG 2014 zu leistenden Prämien für den Zeitraum vom 01. Januar ",EEG_JAHR," bis zum 31. Dezember ",EEG_JAHR," wieder:") -> Die nachfolgende Tabelle gibt die nach § 33b EEG 2012 direkt vermarktete Strommenge aus Anlagen, die bei der ENA Energienetze Apolda GmbH nach § 33d Abs. 2 EEG 2012 angemeldet wurden, sowie die nach § 33g und 33i EEG 2012 sowie § 53 EEG 2014 zu leistenden Prämien für den Zeitraum vom 01. Januar 2015 bis zum 31. Dezember 2015 wieder:
B34: Marktprämie | C34: Strommengen nach
A35: Energieträger | C35: Marktprämienmodell | D35: Grünstromprivileg | E35: sonst. Direktvermarktung
B36: [€] | C36: [kWh] | D36: [kWh] | E36: [kWh]
A38: Wasserkraft | B38: =Jahresabrechnung!K2 -> 0.00 | C38: =Jahresabrechnung!J2 -> 0 | D38: =Jahresabrechnung!#REF! ->  | E38: =Jahresabrechnung!O2 -> 0
A39: Deponie-, Klär-, Grubengas | B39: =Jahresabrechnung!K3 -> 0.00 | C39: =Jahresabrechnung!J3 -> 0 | D39: =Jahresabrechnung!#REF! ->  | E39: =Jahresabrechnung!O3 -> 0
A40: Biomasse | B40: =Jahresabrechnung!K4 -> 0.00 | C40: =Jahresabrechnung!J4 -> 0 | D40: =Jahresabrechnung!#REF! ->  | E40: =Jahresabrechnung!O4 -> 0
A41: Geothermie | B41: =Jahresabrechnung!K5 -> 0.00 | C41: =Jahresabrechnung!J5 -> 0 | D41: =Jahresabrechnung!#REF! ->  | E41: =Jahresabrechnung!O5 -> 0
A42: Windenergie an Land | B42: =Jahresabrechnung!K6 -> 0.00 | C42: =Jahresabrechnung!J6 -> 0 | D42: =Jahresabrechnung!#REF! ->  | E42: =Jahresabrechnung!O6 -> 0
A43: Windenergie auf See | B43: =Jahresabrechnung!K7 -> 0.00 | C43: =Jahresabrechnung!J7 -> 0 | D43: =Jahresabrechnung!#REF! ->  | E43: =Jahresabrechnung!O7 -> 0
A44: Solare Strahlungsenergie | B44: =Jahresabrechnung!K8 -> 17,149.24 | C44: =Jahresabrechnung!J8 -> 67,426 | D44: =Jahresabrechnung!#REF! ->  | E44: =Jahresabrechnung!O8 -> 0
A46: Summe | B46: =SUM(B38:B44) -> 17,149.24 | C46: =SUM(C38:C44) -> 67,426 | D46: =SUM(D38:D44) ->  | E46: =SUM(E38:E44) -> 0
A48: Flexibilitätszuschlag und Flexibilitätsprämie | B48: =Jahresabrechnung!$P$4 -> 0.00

Sheet Testat 2013 (hidden)
A2: Angaben zu Einspeisevergütungen und Vermiedene Netzentgelte
A5: =CONCATENATE("Die nachfolgende Tabelle gibt die von der ",VNB_KUNDE," nach § 8 EEG 2012 abgenommenen") -> Die nachfolgende Tabelle gibt die von der ENA Energienetze Apolda GmbH nach § 8 EEG 2012 abgenommenen
A6: und nach § 16 EEG 2012 vergüteten Strommengen sowie die für diese Strommengen nach
A7: Maßgabe der §§ 16 – 33 i.V.m. § 66 EEG 2012 gezahlten Vergütungen und die vermiedenen
A8: =CONCATENATE("Netzentgelte gemäß § 35 Abs. 2 EEG 2012 (vNE) für den Zeitraum vom 01.01.",EEG_JAHR," bis 31.12.",EEG_JAHR," wieder:") -> Netzentgelte gemäß § 35 Abs. 2 EEG 2012 (vNE) für den Zeitraum vom 01.01.2015 bis 31.12.2015 wieder:
A11: Energieträger | B11: kaufmännisch abgenommene Strommenge | C11: Vergütung | D11: vermiedene NE¹
B12: [kWh] | C12: [€] | D12: [€]
A14: Wasserkraft | B14: =Jahresabrechnung!H2 ->  | C14: =Jahresabrechnung!I2 -> 29,284.46 | D14: =SUMIF('Zusammenfassung VNNE'!$B$15:$B$116,"vNNE Wasser",'Zusammenfassung VNNE'!$G$15:$G$116) -> 2,208.29
A15: Deponie-, Klär-, Grubengas | B15: =Jahresabrechnung!H3 ->  | C15: =Jahresabrechnung!I3 -> 0.00 | D15: =SUMIF('Zusammenfassung VNNE'!$B$15:$B$116,"vNNE Deponie-, Klär-, Grubengas",'Zusammenfassung VNNE'!$G$15:$G$116) -> 0.00
A16: Biomasse | B16: =Jahresabrechnung!H4 ->  | C16: =Jahresabrechnung!I4 -> 143,681.25 | D16: =SUMIF('Zusammenfassung VNNE'!$B$15:$B$116,"vNNE Biomasse",'Zusammenfassung VNNE'!$G$15:$G$116) -> 5,057.60
A17: Geothermie | B17: =Jahresabrechnung!H5 ->  | C17: =Jahresabrechnung!I5 -> 0.00 | D17: =SUMIF('Zusammenfassung VNNE'!$B$15:$B$116,"vNNE Geothermie",'Zusammenfassung VNNE'!$G$15:$G$116) -> 0.00
A18: Windenergie an Land | B18: =Jahresabrechnung!H6 ->  | C18: =Jahresabrechnung!I6 -> 0.00 | D18: =SUMIF('Zusammenfassung VNNE'!$B$15:$B$116,"vNNE Wind",'Zusammenfassung VNNE'!$G$15:$G$116) -> 0.00
A19: Windenergie auf See | B19: =Jahresabrechnung!H7 ->  | C19: =Jahresabrechnung!I7 -> 0.00 | D19: =SUMIF('Zusammenfassung VNNE'!$B$15:$B$116,"vNNE Wind Offshore",'Zusammenfassung VNNE'!$G$15:$G$116) -> 0.00
A20: Solare Strahlungsenergie | B20: =Jahresabrechnung!H8 ->  | C20: =Jahresabrechnung!I8 -> 1,409,987.28 | D20: =SUMIF('Zusammenfassung VNNE'!$B$15:$B$116,"vNNE Solar",'Zusammenfassung VNNE'!$G$15:$G$116) -> 49,682.80
A22: Summe | B22: =SUM(B14:B20) ->  | C22: =SUM(C14:C20) -> 1,582,952.99 | D22: =SUM(D14:D20) -> 56,948.69
C23: (1) | D23: (2)
A25: Vergütung nach Abzug vermiedener NE [€]: | C25: =C22-D22 -> 1,526,004.30 | D25: (3) = (1) - (2)
A27: ¹ vermiedene NE für die gesamte erzeugte Strommenge, die nicht in sonstiger DV waren
A30: Die oben unter dem Energieträger „Solare Strahlungsenergie“ ausgewiesenen Vergütungen beinhalten die nachfolgenden Vergütungen für selbst verbrauchten Solarstrom i.S.d. § 33 Abs. 2 EEG in der am 31. März 2012 geltenden Fassung (Selbstverbrauchsvergütung). Die korrespondierenden selbst verbrauchten Strommengen sind in den oben ausgewiesenen Strommengen nicht enthalten und nachfolgend angegeben: | H30: Die oben unter dem Energieträger „Solare Strahlungsenergie“ ausgewiesenen Vergütungen beinhalten die nachfolgenden Vergütungen für selbst verbrauchten Solarstrom i.S.d. § 33 Abs. 2 EEG in der am 31. März 2012 geltenden Fassung (Selbstverbrauchsvergütung). Die korrespondierenden selbst verbrauchten Strommengen sind in den oben ausgewiesenen Strommengen nicht enthalten und nachfolgend angegeben:
A32: Selbstverbrauchsvergütung [€] | B32: =Jahresabrechnung!I10 -> 0.00 | H32: Selbstverbrauchsvergütung [€] | I32: 137,542.72
A33: Selbstverbrauchte Strommenge [kWh] | B33: =Jahresabrechnung!H10 -> 0 | H33: Selbstverbrauchte Strommenge [kWh] | I33: 934,889
A37: Angaben zur Direktvermarktung
A39: =CONCATENATE("Die nachfolgende Tabelle gibt die nach § 33b EEG 2012 direkt vermarktete Strommenge aus Anlagen, die bei der ",VNB_KUNDE," nach § 33d Abs. 2 EEG 2012 angemeldet wurden, sowie die nach § 33g und 33i EEG 2012 zu leistenden Prämien für den Zeitraum vom 01. Januar ",EEG_JAHR," bis zum 31. Dezember ",EEG_JAHR," wieder:") -> Die nachfolgende Tabelle gibt die nach § 33b EEG 2012 direkt vermarktete Strommenge aus Anlagen, die bei der ENA Energienetze Apolda GmbH nach § 33d Abs. 2 EEG 2012 angemeldet wurden, sowie die nach § 33g und 33i EEG 2012 zu leistenden Prämien für den Zeitraum vom 01. Januar 2015 bis zum 31. Dezember 2015 wieder:
B42: Marktprämie | C42: Strommengen nach
A43: Energieträger | C43: Marktprämienmodell | D43: Grünstromprivileg | E43: sonst. Direktvermarktung
B44: [€] | C44: [kWh] | D44: [kWh] | E44: [kWh]
A46: Wasserkraft | B46: =Jahresabrechnung!K2 -> 0.00 | C46: =Jahresabrechnung!J2 -> 0 | D46: =Jahresabrechnung!#REF! ->  | E46: =Jahresabrechnung!O2 -> 0
A47: Deponie-, Klär-, Grubengas | B47: =Jahresabrechnung!K3 -> 0.00 | C47: =Jahresabrechnung!J3 -> 0 | D47: =Jahresabrechnung!#REF! ->  | E47: =Jahresabrechnung!O3 -> 0
A48: Biomasse | B48: =Jahresabrechnung!K4 -> 0.00 | C48: =Jahresabrechnung!J4 -> 0 | D48: =Jahresabrechnung!#REF! ->  | E48: =Jahresabrechnung!O4 -> 0
A49: Geothermie | B49: =Jahresabrechnung!K5 -> 0.00 | C49: =Jahresabrechnung!J5 -> 0 | D49: =Jahresabrechnung!#REF! ->  | E49: =Jahresabrechnung!O5 -> 0
A50: Windenergie an Land | B50: =Jahresabrechnung!K6 -> 0.00 | C50: =Jahresabrechnung!J6 -> 0 | D50: =Jahresabrechnung!#REF! ->  | E50: =Jahresabrechnung!O6 -> 0
A51: Windenergie auf See | B51: =Jahresabrechnung!K7 -> 0.00 | C51: =Jahresabrechnung!J7 -> 0 | D51: =Jahresabrechnung!#REF! ->  | E51: =Jahresabrechnung!O7 -> 0
A52: Solare Strahlungsenergie | B52: =Jahresabrechnung!K8 -> 17,149.24 | C52: =Jahresabrechnung!J8 -> 67,426 | D52: =Jahresabrechnung!#REF! ->  | E52: =Jahresabrechnung!O8 -> 0
A54: Summe | B54: =SUM(B46:B52) -> 17,149.24 | C54: =SUM(C46:C52) -> 67,426 | D54: =SUM(D46:D52) ->  | E54: =SUM(E46:E52) -> 0
A56: Flexibilitätsprämie für Biogasanlagen | B56: =Jahresabrechnung!$P$4 -> 0.00

Sheet Testat 2011 (hidden)
A2: Angaben zu Einspeisevergütungen und Vermiedene Netzentgelte
A5: =CONCATENATE("Die nachfolgende Tabelle gibt die von der ",VNB_KUNDE," nach § 8 Abs. 1 oder Abs. 2 EEG abgenommenen") -> Die nachfolgende Tabelle gibt die von der ENA Energienetze Apolda GmbH nach § 8 Abs. 1 oder Abs. 2 EEG abgenommenen
A6: und nach § 16 Abs. 1 EEG vergüteten Strommengen sowie die für diese Strommengen nach
A7: Maßgabe der §§ 18 – 33 i.V.m. § 66 EEG gezahlten Vergütungen und die vermiedenen
A8: =CONCATENATE("Netzentgelte gemäß § 35 Abs. 2 EEG sowie die nach Maßgabe des § 17 EEG direkt vermarkteten Strommengen aus Anlagen,") -> Netzentgelte gemäß § 35 Abs. 2 EEG sowie die nach Maßgabe des § 17 EEG direkt vermarkteten Strommengen aus Anlagen,
A9: =CONCATENATE("die unmittelbar oder mittelbar nach § 8 Abs. 2 EEG an das Netz der Netzgesellschaft angeschlossen sind") -> die unmittelbar oder mittelbar nach § 8 Abs. 2 EEG an das Netz der Netzgesellschaft angeschlossen sind
A10: =CONCATENATE("für den Zeitraum vom 01.01.",EEG_JAHR," bis 31.12.",EEG_JAHR," wieder:") -> für den Zeitraum vom 01.01.2015 bis 31.12.2015 wieder:
A12: Energieträger | B12: kaufmännisch abgenommene Strommenge | C12: Vergütung | D12: vermiedene NE¹ | E12: sonst. Direktvermarktung
B13: [kWh] | C13: [€] | D13: [€] | E13: [kWh]
A15: Wasserkraft | B15: =Jahresabrechnung!H2 ->  | C15: =Jahresabrechnung!I2 -> 29,284.46 | D15: =SUMIF('Zusammenfassung VNNE'!$B$15:$B$116,"vNNE Wasser",'Zusammenfassung VNNE'!$G$15:$G$116) -> 2,208.29 | E15: =Jahresabrechnung!O2 -> 0
A16: Deponie-, Klär-, Grubengas | B16: =Jahresabrechnung!H3 ->  | C16: =Jahresabrechnung!I3 -> 0.00 | D16: =SUMIF('Zusammenfassung VNNE'!$B$15:$B$116,"vNNE Deponie-, Klär-, Grubengas",'Zusammenfassung VNNE'!$G$15:$G$116) -> 0.00 | E16: =Jahresabrechnung!O3 -> 0
A17: Biomasse | B17: =Jahresabrechnung!H4 ->  | C17: =Jahresabrechnung!I4 -> 143,681.25 | D17: =SUMIF('Zusammenfassung VNNE'!$B$15:$B$116,"vNNE Biomasse",'Zusammenfassung VNNE'!$G$15:$G$116) -> 5,057.60 | E17: =Jahresabrechnung!O4 -> 0
A18: Geothermie | B18: =Jahresabrechnung!H5 ->  | C18: =Jahresabrechnung!I5 -> 0.00 | D18: =SUMIF('Zusammenfassung VNNE'!$B$15:$B$116,"vNNE Geothermie",'Zusammenfassung VNNE'!$G$15:$G$116) -> 0.00 | E18: =Jahresabrechnung!O5 -> 0
A19: Windenergie an Land | B19: =Jahresabrechnung!H6 ->  | C19: =Jahresabrechnung!I6 -> 0.00 | D19: =SUMIF('Zusammenfassung VNNE'!$B$15:$B$116,"vNNE Wind",'Zusammenfassung VNNE'!$G$15:$G$116) -> 0.00 | E19: =Jahresabrechnung!O6 -> 0
A20: Windenergie auf See | B20: =Jahresabrechnung!H7 ->  | C20: =Jahresabrechnung!I7 -> 0.00 | D20: =SUMIF('Zusammenfassung VNNE'!$B$15:$B$116,"vNNE Wind Offshore",'Zusammenfassung VNNE'!$G$15:$G$116) -> 0.00 | E20: =Jahresabrechnung!O7 -> 0
A21: Solare Strahlungsenergie | B21: =Jahresabrechnung!H8 ->  | C21: =Jahresabrechnung!I8 -> 1,409,987.28 | D21: =SUMIF('Zusammenfassung VNNE'!$B$15:$B$116,"vNNE Solar",'Zusammenfassung VNNE'!$G$15:$G$116) -> 49,682.80 | E21: =Jahresabrechnung!O8 -> 0
A23: Summe | B23: =SUM(B15:B21) ->  | C23: =SUM(C15:C21) -> 1,582,952.99 | D23: =SUM(D15:D21) -> 56,948.69 | E23: =SUM(E15:E21) -> 0
C24: (1) | D24: (2)
A26: Vergütung nach Abzug vermiedener NE [€]: | C26: =C23-D23 -> 1,526,004.30 | D26: (3) = (1) - (2)
A28: ¹ vermiedene NE für die gesamte erzeugte Strommenge, die nicht in sonstiger DV waren
A31: Die oben unter dem Energieträger „Solare Strahlungsenergie“ ausgewiesenen Vergütungen beinhalten die nachfolgenden Vergütungen für selbst verbrauchten Solarstrom i.S.d. § 33 Abs. 2 EEG (Selbstverbrauchsvergütung). Die korrespondierenden selbst verbrauchten Strommengen sind in den oben ausgewiesenen Strommengen nicht enthalten und nachfolgend angegeben: | H31: Die oben unter dem Energieträger „Solare Strahlungsenergie“ ausgewiesenen Vergütungen beinhalten die nachfolgenden Vergütungen für selbst verbrauchten Solarstrom i.S.d. § 33 Abs. 2 EEG in der am 31. März 2012 geltenden Fassung (Selbstverbrauchsvergütung). Die korrespondierenden selbst verbrauchten Strommengen sind in den oben ausgewiesenen Strommengen nicht enthalten und nachfolgend angegeben:
A33: Selbstverbrauchsvergütung [€] | B33: =Jahresabrechnung!I10 -> 0.00 | H33: Selbstverbrauchsvergütung [€] | I33: 137,542.72
A34: Selbstverbrauchte Strommenge [kWh] | B34: =Jahresabrechnung!H10 -> 0 | H34: Selbstverbrauchte Strommenge [kWh] | I34: 934,889
A38: Angaben zur Direktvermarktung
A40: =CONCATENATE("Die nachfolgende Tabelle gibt die nach § 33b EEG 2012 direkt vermarktete Strommenge aus Anlagen, die bei der ",VNB_KUNDE," nach § 33d Abs. 2 EEG 2012 angemeldet wurden, sowie die nach § 33g und 33i EEG 2012 zu leistenden Prämien für den Zeitraum vom 01. Januar ",EEG_JAHR," bis zum 31. Dezember ",EEG_JAHR," wieder:") -> Die nachfolgende Tabelle gibt die nach § 33b EEG 2012 direkt vermarktete Strommenge aus Anlagen, die bei der ENA Energienetze Apolda GmbH nach § 33d Abs. 2 EEG 2012 angemeldet wurden, sowie die nach § 33g und 33i EEG 2012 zu leistenden Prämien für den Zeitraum vom 01. Januar 2015 bis zum 31. Dezember 2015 wieder:
B43: Marktprämie | C43: Strommengen nach
A44: Energieträger | C44: Marktprämienmodell | D44: Grünstromprivileg | E44: sonst. Direktvermarktung
B45: [€] | C45: [kWh] | D45: [kWh] | E45: [kWh]
A47: Wasserkraft | B47: =Jahresabrechnung!K2 -> 0.00 | C47: =Jahresabrechnung!J2 -> 0 | D47: =Jahresabrechnung!#REF! ->  | E47: =Jahresabrechnung!O2 -> 0
A48: Deponie-, Klär-, Grubengas | B48: =Jahresabrechnung!K3 -> 0.00 | C48: =Jahresabrechnung!J3 -> 0 | D48: =Jahresabrechnung!#REF! ->  | E48: =Jahresabrechnung!O3 -> 0
A49: Biomasse | B49: =Jahresabrechnung!K4 -> 0.00 | C49: =Jahresabrechnung!J4 -> 0 | D49: =Jahresabrechnung!#REF! ->  | E49: =Jahresabrechnung!O4 -> 0
A50: Geothermie | B50: =Jahresabrechnung!K5 -> 0.00 | C50: =Jahresabrechnung!J5 -> 0 | D50: =Jahresabrechnung!#REF! ->  | E50: =Jahresabrechnung!O5 -> 0
A51: Windenergie an Land | B51: =Jahresabrechnung!K6 -> 0.00 | C51: =Jahresabrechnung!J6 -> 0 | D51: =Jahresabrechnung!#REF! ->  | E51: =Jahresabrechnung!O6 -> 0
A52: Windenergie auf See | B52: =Jahresabrechnung!K7 -> 0.00 | C52: =Jahresabrechnung!J7 -> 0 | D52: =Jahresabrechnung!#REF! ->  | E52: =Jahresabrechnung!O7 -> 0
A53: Solare Strahlungsenergie | B53: =Jahresabrechnung!K8 -> 17,149.24 | C53: =Jahresabrechnung!J8 -> 67,426 | D53: =Jahresabrechnung!#REF! ->  | E53: =Jahresabrechnung!O8 -> 0
A55: Summe | B55: =SUM(B47:B53) -> 17,149.24 | C55: =SUM(C47:C53) -> 67,426 | D55: =SUM(D47:D53) ->  | E55: =SUM(E47:E53) -> 0
A57: Flexibilitätsprämie für Biogasanlagen | B57: =Jahresabrechnung!$P$4 -> 0.00

Sheet Testat § 9 Abs. 3
A1: Angaben zur EEG-Umlage für Eigenversorgung
A3: =CONCATENATE("Die nachfolgende Tabelle gibt die Angaben nach § 9 Abs. 3 AusglMechV von der ",VNB_KUNDE) -> Die nachfolgende Tabelle gibt die Angaben nach § 9 Abs. 3 AusglMechV von der ENA Energienetze Apolda GmbH
A4: • zu den Strommengen nach § 61 Abs. 1 EEG 2014, für die wir nach § 7 Abs. 2 AusglMechV die EEG-Umlage erhoben haben, und
A5: • zur Höhe der nach § 7 Abs. 2 und 3 AusglMechV erhaltenen Zahlungen einschließlich der Forderungen, die durch Aufrechnung nach § 7 Abs. 5 AusglMechV erloschen sind,
A6: für den Zeitraum vom 01.08.2014 bis 31.12.2014 wieder:
A8: EEG-Umlageart | B8: EEG-umlagepflichtige Strommengen | C8: Erhaltene Zahlungen
B9: [kWh] | C9: [€]
A10: EEG-Umlage nach § 61 Abs. 1 Satz 1 Nr. 1 EEG 2014* (30% der vollen Umlage) | B10: 4,220 | C10: 79.00
A11: EEG-Umlage nach § 61 Abs. 1 Satz 2 EEG 2014* (volle Umlage) | B11: 0 | C11: 0.00
A12: Summe | B12: 4,220 | C12: 79.00
A13: * einschließlich der von Eigenversorgern selbst verbrauchten Strommengen über 10.000 kWh, die in Stromerzeugungsanlagen mit einer installierten Leistung von höchstens 10 kW erzeugt wurden. Die Strommengen bis zu 10.000 kWh, die nach § 61 Abs. 2 Nr. 4 EEG 2014 von der EEG-Umlage befreit sind, sind nicht enthalten. | B13: einschließlich der von Eigenversorgern selbst verbrauchten Strommengen über 10.000 kWh, die in Stromerzeugungsanlagen mit einer installierten Leistung von höchstens 10 kW erzeugt wurden. Die Strommengen bis zu 10.000 kWh, die nach § 61 Abs. 2 Nr. 4 EEG 2014 von der EEG-Umlage befreit sind, sind nicht enthalten.
A16: =CONCATENATE("Die nachfolgende Tabelle gibt die Angaben nach § 9 Abs. 3 AusglMechV von der ",VNB_KUNDE) -> Die nachfolgende Tabelle gibt die Angaben nach § 9 Abs. 3 AusglMechV von der ENA Energienetze Apolda GmbH
A17: • zu den Strommengen nach § 61 Abs. 1 EEG 2014, für die wir nach § 7 Abs. 2 AusglMechV die EEG-Umlage erhoben haben, und
A18: • zur Höhe der nach § 7 Abs. 2 und 3 AusglMechV erhaltenen Zahlungen einschließlich der Forderungen, die durch Aufrechnung nach § 7 Abs. 5 AusglMechV erloschen sind,
A19: für den Zeitraum vom 01.01.2015 bis 31.12.2015 wieder:
A21: EEG-Umlageart | B21: EEG-umlagepflichtige Strommengen | C21: Erhaltene Zahlungen
B22: [kWh] | C22: [€]
A23: EEG-Umlage nach § 61 Abs. 1 Satz 1 Nr. 1 EEG 2014* (30% der vollen Umlage) | B23: 77,774 | C23: 1,439.60
A24: EEG-Umlage nach § 61 Abs. 1 Satz 2 EEG 2014* (volleUmlage) | B24: 0 | C24: 0.00
A25: Summe | B25: 77,774 | C25: 1,439.60
A27: * einschließlich der von Eigenversorgern selbst verbrauchten Strommengen über 10.000 kWh, die in Stromerzeugungsanlagen mit einer installierten Leistung von höchstens 10 kW erzeugt wurden. Die Strommengen bis zu 10.000 kWh, die nach § 61 Abs. 2 Nr. 4 EEG 2014 von der EEG-Umlage befreit sind, sind nicht enthalten. | B27: einschließlich der von Eigenversorgern selbst verbrauchten Strommengen über 10.000 kWh, die in Stromerzeugungsanlagen mit einer installierten Leistung von höchstens 10 kW erzeugt wurden. Die Strommengen bis zu 10.000 kWh, die nach § 61 Abs. 2 Nr. 4 EEG 2014 von der EEG-Umlage befreit sind, sind nicht enthalten.

Sheet Jahresabrechnung
B1: Jahresmeldung/Testat | H1: Strommengen in der EEG-Einspeisung [kWh] | I1: tatsächlich an EEG-Anlagenbetreiber gezahlte Vergütung [€] | J1: Strommengen in der Einspeisung Marktprämie [kWh] | K1: Marktprämie ausgezahlt [€] | O1: §33b Nr. 3 EEG (sonst. Direktvermarktung) [kWh] | P1: Flexibilitaets-praemie [€] | Z1: Marktwerte
B2: VNB | C2: ENA Energienetze Apolda GmbH | G2: Wasser | H2: =SUMIF($B$15:$B$4747,$G2,AN$15:AN$4747) ->  | I2: =SUMIF($B$15:$B$4747,$G2,I$15:I$4747) -> 29,284.46 € | J2: 0 | K2: 0.00 € | O2: =SUMIF($B$15:$B$4747,$G2,AP$15:AP$4747) -> 0 | Y2: Produkt | Z2: MP_PRODUKT_ID | AA2: Januar | AB2: Februar | AC2: März | AD2: April | AE2: Mai | AF2: Juni | AG2: Juli | AH2: August | AI2: September | AJ2: Oktober | AK2: November | AL2: Dezember
G3: Deponie-, Klär-, Grubengas | H3: =SUMIF($B$15:$B$4747,$G3,AN$15:AN$4747) ->  | I3: 0.00 € | J3: 0 | K3: 0.00 € | O3: 0 | Y3: Steuerbare | Z3: 42065747 | AA3: 2.872 | AB3: 3.672 | AC3: 3.134 | AD3: 2.972 | AE3: 2.536 | AF3: 3.006 | AG3: 3.5 | AH3: 3.161 | AI3: 3.188 | AJ3: 3.936 | AK3: 3.239 | AL3: 2.778
B4: EEG Jahr | C4: 2015 | G4: Biomasse | I4: =SUMIF($B$15:$B$4747,$G4,I$15:I$4747) -> 143,681.25 € | J4: =SUMIF($B$15:$B$4747,$G4,J$15:J$4747)-SUMIF($AU$15:$AU$4747,4,J$15:J$4747) -> 0 | K4: =SUMIF($B$15:$B$4747,$G4,K$15:K$4747)-SUMIF($AU$15:$AU$4747,4,K$15:K$4747) -> 0.00 € | O4: 0 | P4: =SUM(FLP_GELD) -> 0 | Y4: Wind Onshore | Z4: 42145140 | AA4: 2.2 | AB4: 3.163 | AC4: 2.527 | AD4: 2.536 | AE4: 2.268 | AF4: 2.792 | AG4: 2.926 | AH4: 2.959 | AI4: 2.765 | AJ4: 3.656 | AK4: 2.671 | AL4: 2.358
G5: Geothermie | I5: =SUMIF($B$15:$B$4747,$G5,I$15:I$4747) -> 0.00 € | J5: =SUMIF($B$15:$B$4747,$G5,J$15:J$4747) -> 0 | K5: =SUMIF($B$15:$B$4747,$G5,K$15:K$4747) -> 0.00 € | O5: 0 | Y5: Wind Offshore | Z5: 42145190 | AA5: 2.525 | AB5: 3.351 | AC5: 2.802 | AD5: 2.817 | AE5: 2.4 | AF5: 2.859 | AG5: 3.097 | AH5: 3.016 | AI5: 3.012 | AJ5: 3.825 | AK5: 3 | AL5: 2.585
B6: PV Selbstverbrauch | G6: Wind | I6: =SUMIF(B$15:B$4747,$G6,I$15:I$4747) -> 0.00 € | J6: =SUMIF($B$15:$B$4747,$G6,J$15:J$4747)-SUMIF($A$15:$A$4747,"*SNH*",J$15:J$4747) -> 0 | K6: =SUMIF($B$15:$B$4747,$G6,K$15:K$4747) -> 0.00 € | O6: 0 | Y6: Solar | Z6: 42145141 | AA6: 3.218 | AB6: 3.678 | AC6: 3.059 | AD6: 2.64 | AE6: 2.511 | AF6: 3.045 | AG6: 3.536 | AH6: 3.067 | AI6: 3.147 | AJ6: 3.751 | AK6: 3.491 | AL6: 2.91
B7: finanziell: | G7: Wind offshore | I7: =SUMIF(B$15:B$4747,$G7,I$15:I$4747) -> 0.00 € | J7: =SUMIF($B$15:$B$4747,$G7,J$15:J$4747)-SUMIF($A$15:$A$4747,"*SNH*",J$15:J$4747) -> 0 | K7: =SUMIF($B$15:$B$4747,$G7,K$15:K$4747) -> 0.00 € | O7: 0
B8: Saldo der Hoch und Rücklieferung in € ist in der Summe H8 enthalten!! | G8: Solar | I8: =SUMIF($B$15:$B$4747,$G8,I$15:I$4747) -> 1,409,987.28 € | J8: =SUMIF($B$15:$B$4747,$G8,J$15:J$4747) -> 67,426 | K8: =SUMIF($B$15:$B$4747,$G8,K$15:K$4747) -> 17,149.24 € | O8: 0
G9: Gesamt: | H9: =SUM(H2:H8) ->  | I9: =SUM(I2:I8) -> 1,582,952.99 € | J9: =SUM(J2:J8) -> 67,426 | K9: =SUM(K2:K8) -> 17,149.24 € | O9: =SUM(O2:O8) -> 0
B10: Prüfsumme Mengen: | G10: Selbstverbrauch (Solar) | H10: =SUMIF($AU15:$AU4747,1,H15:H4747) -> 0 | I10: =SUMIF($AU15:$AU4747,1,I15:I4747)+SUMIF($AU15:$AU4747,3,I15:I4747) -> 0.00 €
B11: =SUMIF($AU15:$AU4747,1,H15:H4747)+SUMIF($AU15:$AU4747,3,H15:H4747) -> 0 | G11: vermiedene Netzentgelte | I11: ='Zusammenfassung VNNE'!G9 -> 56,948.69 €
H13: =EEG_JAHR -> 2015 | I13: =EEG_JAHR -> 2015 | O13: Mengen Marktprämie nach Monat [kWh] | AA13: Ausgezahlte Marktprämien nach Monat [€]
A14: Bezeichnung der Vergütungs-kategorie | B14: Energieträger | C14: Inbetriebnahme | D14: Weitere Kriterien | E14: Aufteilung KWK-Anlagen | F14: Vergütung nach EEG [ct/kWh] | G14: Anzulegender Wert nach EEG 2014 [ct/kWh] | H14: Jahresarbeit der EEG-Einspeisung [kWh] | I14: tatsächlich an EEG-Anlagenbetreiber gezahlte Vergütung [€] | J14: Jahresarbeit der Einspeisung Marktprämie [kWh] | K14: Marktprämie ausgezahlt [€] | L14: KWK Merker | M14: Eingabe negativ | N14: MP Energieträger ID | O14: 1 | P14: 2 | Q14: 3 | R14: 4 | S14: 5 | T14: 6 | U14: 7 | V14: 8 | W14: 9 | X14: 10 | Y14: 11 | Z14: 12 | AA14: 1 | AB14: 2 | AC14: 3 | AD14: 4 | AE14: 5 | AF14: 6 | AG14: 7 | AH14: 8 | AI14: 9 | AJ14: 10 | AK14: 11 | AL14: 12 | AM14: EEG Mengen aus Teil 1 | AN14: EEG Menge zu summieren | AO14: GSP DV | AP14: SO DV | AQ14: GSP Flag | AR14: SO DV Flag | AS14: Geld Flexiprämie | AT14: Menge FLP | AU14: Selbstverbrauch
A15: WaK41a------01 | B15: Wasser | C15: 2001 | D15: 0-0,5 MW | F15: 7.67 | G15: 7.67 | H15: =AM15 -> 0 | I15: 0.00 | J15: =SUM(O15:Z15,AT15) -> 0 | K15: =SUM(AA15:AL15,AS15) -> 0.00 | L15: 0 | M15: 32964608 | N15: 42065747 | O15: 0 | P15: 0 | Q15: 0 | R15: 0 | S15: 0 | T15: 0 | U15: 0 | V15: 0 | W15: 0 | X15: 0 | Y15: 0 | Z15: 0 | AA15: 0.00 | AB15: 0.00 | AC15: 0.00 | AD15: 0.00 | AE15: 0.00 | AF15: 0.00 | AG15: 0.00 | AH15: 0.00 | AI15: 0.00 | AJ15: 0.00 | AK15: 0.00 | AL15: 0.00 | AM15: 0.00 | AN15: =IF(MengeInEEGSummieren(M15),AM15,0) ->  | AO15: =IF(AQ15,$H15,0) -> 0.00 | AP15: =IF(AR15,$H15,0) -> 0.00 | AS15: 0 | AT15: 0 | AU15: =EVFlag(M15) -> 
A16: WaK42a------01 | B16: Wasser | C16: 2001 | D16: 0,5-5 MW | F16: 6.65 | G16: 6.65 | H16: =AM16 -> 0 | I16: 0.00 | J16: =SUM(O16:Z16,AT16) -> 0 | K16: =SUM(AA16:AL16,AS16) -> 0.00 | L16: 0 | M16: 32964608 | N16: 42065747 | O16: 0 | P16: 0 | Q16: 0 | R16: 0 | S16: 0 | T16: 0 | U16: 0 | V16: 0 | W16: 0 | X16: 0 | Y16: 0 | Z16: 0 | AA16: 0.00 | AB16: 0.00 | AC16: 0.00 | AD16: 0.00 | AE16: 0.00 | AF16: 0.00 | AG16: 0.00 | AH16: 0.00 | AI16: 0.00 | AJ16: 0.00 | AK16: 0.00 | AL16: 0.00 | AM16: 0.00 | AN16: =IF(MengeInEEGSummieren(M16),AM16,0) ->  | AO16: =IF(AQ16,$H16,0) -> 0.00 | AP16: =IF(AR16,$H16,0) -> 0.00 | AS16: 0 | AT16: 0 | AU16: =EVFlag(M16) -> 
AM17: 0.00 | AN17: =IF(MengeInEEGSummieren(M17),AM17,0) ->  | AO17: 0.00 | AP17: 0.00 | AS17: 0 | AT17: 0
A18: WaK41a------02 | B18: Wasser | C18: 2002 | D18: 0-0,5 MW | F18: 7.67 | G18: 7.67 | H18: 0 | I18: 0.00 | J18: 0 | K18: 0.00 | L18: 0 | M18: 32964608 | N18: 42065747 | O18: 0 | P18: 0 | Q18: 0 | R18: 0 | S18: 0 | T18: 0 | U18: 0 | V18: 0 | W18: 0 | X18: 0 | Y18: 0 | Z18: 0 | AA18: 0.00 | AB18: 0.00 | AC18: 0.00 | AD18: 0.00 | AE18: 0.00 | AF18: 0.00 | AG18: 0.00 | AH18: 0.00 | AI18: 0.00 | AJ18: 0.00 | AK18: 0.00 | AL18: 0.00 | AM18: 0.00 | AN18: =IF(MengeInEEGSummieren(M18),AM18,0) ->  | AO18: 0.00 | AP18: 0.00 | AS18: 0 | AT18: 0
A19: WaK42a------02 | B19: Wasser | C19: 2002 | D19: 0,5-5 MW | F19: 6.65 | G19: 6.65 | H19: 0 | I19: 0.00 | J19: 0 | K19: 0.00 | L19: 0 | M19: 32964608 | N19: 42065747 | O19: 0 | P19: 0 | Q19: 0 | R19: 0 | S19: 0 | T19: 0 | U19: 0 | V19: 0 | W19: 0 | X19: 0 | Y19: 0 | Z19: 0 | AA19: 0.00 | AB19: 0.00 | AC19: 0.00 | AD19: 0.00 | AE19: 0.00 | AF19: 0.00 | AG19: 0.00 | AH19: 0.00 | AI19: 0.00 | AJ19: 0.00 | AK19: 0.00 | AL19: 0.00 | AM19: 0.00 | AN19: =IF(MengeInEEGSummieren(M19),AM19,0) ->  | AO19: 0.00 | AP19: 0.00 | AS19: 0 | AT19: 0
AM20: 0.00 | AN20: =IF(MengeInEEGSummieren(M20),AM20,0) ->  | AO20: 0.00 | AP20: 0.00 | AS20: 0 | AT20: 0
A21: WaK41a------03 | B21: Wasser | C21: 2003 | D21: 0-0,5 MW | F21: 7.67 | G21: 7.67 | H21: 0 | I21: 0.00 | J21: 0 | K21: 0.00 | L21: 0 | M21: 32964608 | N21: 42065747 | O21: 0 | P21: 0 | Q21: 0 | R21: 0 | S21: 0 | T21: 0 | U21: 0 | V21: 0 | W21: 0 | X21: 0 | Y21: 0 | Z21: 0 | AA21: 0.00 | AB21: 0.00 | AC21: 0.00 | AD21: 0.00 | AE21: 0.00 | AF21: 0.00 | AG21: 0.00 | AH21: 0.00 | AI21: 0.00 | AJ21: 0.00 | AK21: 0.00 | AL21: 0.00 | AM21: 0.00 | AN21: =IF(MengeInEEGSummieren(M21),AM21,0) ->  | AO21: 0.00 | AP21: 0.00 | AS21: 0 | AT21: 0
A22: WaK42a------03 | B22: Wasser | C22: 2003 | D22: 0,5-5 MW | F22: 6.65 | G22: 6.65 | H22: 0 | I22: 0.00 | J22: 0 | K22: 0.00 | L22: 0 | M22: 32964608 | N22: 42065747 | O22: 0 | P22: 0 | Q22: 0 | R22: 0 | S22: 0 | T22: 0 | U22: 0 | V22: 0 | W22: 0 | X22: 0 | Y22: 0 | Z22: 0 | AA22: 0.00 | AB22: 0.00 | AC22: 0.00 | AD22: 0.00 | AE22: 0.00 | AF22: 0.00 | AG22: 0.00 | AH22: 0.00 | AI22: 0.00 | AJ22: 0.00 | AK22: 0.00 | AL22: 0.00 | AM22: 0.00 | AN22: =IF(MengeInEEGSummieren(M22),AM22,0) ->  | AO22: 0.00 | AP22: 0.00 | AS22: 0 | AT22: 0
AM23: 0.00 | AN23: =IF(MengeInEEGSummieren(M23),AM23,0) ->  | AO23: 0.00 | AP23: 0.00 | AS23: 0 | AT23: 0
A24: WaK41a------04 | B24: Wasser | C24: 2004 | D24: 0-0,5 MW | F24: 7.67 | G24: 7.67 | H24: 0 | I24: 0.00 | J24: 0 | K24: 0.00 | L24: 0 | M24: 32964608 | N24: 42065747 | O24: 0 | P24: 0 | Q24: 0 | R24: 0 | S24: 0 | T24: 0 | U24: 0 | V24: 0 | W24: 0 | X24: 0 | Y24: 0 | Z24: 0 | AA24: 0.00 | AB24: 0.00 | AC24: 0.00 | AD24: 0.00 | AE24: 0.00 | AF24: 0.00 | AG24: 0.00 | AH24: 0.00 | AI24: 0.00 | AJ24: 0.00 | AK24: 0.00 | AL24: 0.00 | AM24: 0.00 | AN24: =IF(MengeInEEGSummieren(M24),AM24,0) ->  | AO24: 0.00 | AP24: 0.00 | AS24: 0 | AT24: 0
A25: WaK42a------04 | B25: Wasser | C25: 2004 | D25: 0,5-5 MW | F25: 6.65 | G25: 6.65 | H25: 0 | I25: 0.00 | J25: 0 | K25: 0.00 | L25: 0 | M25: 32964608 | N25: 42065747 | O25: 0 | P25: 0 | Q25: 0 | R25: 0 | S25: 0 | T25: 0 | U25: 0 | V25: 0 | W25: 0 | X25: 0 | Y25: 0 | Z25: 0 | AA25: 0.00 | AB25: 0.00 | AC25: 0.00 | AD25: 0.00 | AE25: 0.00 | AF25: 0.00 | AG25: 0.00 | AH25: 0.00 | AI25: 0.00 | AJ25: 0.00 | AK25: 0.00 | AL25: 0.00 | AM25: 0.00 | AN25: =IF(MengeInEEGSummieren(M25),AM25,0) ->  | AO25: 0.00 | AP25: 0.00 | AS25: 0 | AT25: 0
AM26: 0.00 | AN26: =IF(MengeInEEGSummieren(M26),AM26,0) ->  | AO26: 0.00 | AP26: 0.00 | AS26: 0 | AT26: 0
A27: WaK61-------04 | B27: Wasser | C27: 2004 | D27: 0-0,5 MW | F27: 9.67 | G27: 9.67 | H27: 0 | I27: 0.00 | J27: 0 | K27: 0.00 | L27: 0 | M27: 32964608 | N27: 42065747 | O27: 0 | P27: 0 | Q27: 0 | R27: 0 | S27: 0 | T27: 0 | U27: 0 | V27: 0 | W27: 0 | X27: 0 | Y27: 0 | Z27: 0 | AA27: 0.00 | AB27: 0.00 | AC27: 0.00 | AD27: 0.00 | AE27: 0.00 | AF27: 0.00 | AG27: 0.00 | AH27: 0.00 | AI27: 0.00 | AJ27: 0.00 | AK27: 0.00 | AL27: 0.00 | AM27: 0.00 | AN27: =IF(MengeInEEGSummieren(M27),AM27,0) ->  | AO27: 0.00 | AP27: 0.00 | AS27: 0 | AT27: 0
A28: WaK62-------04 | B28: Wasser | C28: 2004 | D28: 0,5-5 MW | F28: 6.65 | G28: 6.65 | H28: 0 | I28: 0.00 | J28: 0 | K28: 0.00 | L28: 0 | M28: 32964608 | N28: 42065747 | O28: 0 | P28: 0 | Q28: 0 | R28: 0 | S28: 0 | T28: 0 | U28: 0 | V28: 0 | W28: 0 | X28: 0 | Y28: 0 | Z28: 0 | AA28: 0.00 | AB28: 0.00 | AC28: 0.00 | AD28: 0.00 | AE28: 0.00 | AF28: 0.00 | AG28: 0.00 | AH28: 0.00 | AI28: 0.00 | AJ28: 0.00 | AK28: 0.00 | AL28: 0.00 | AM28: 0.00 | AN28: =IF(MengeInEEGSummieren(M28),AM28,0) ->  | AO28: 0.00 | AP28: 0.00 | AS28: 0 | AT28: 0
A29: WaK63-------04 | B29: Wasser | C29: 2004 | D29: >5 MW , Zubau 0-0,5 MW | F29: 7.67 | G29: 7.67 | H29: 0 | I29: 0.00 | J29: 0 | K29: 0.00 | L29: 0 | M29: 32964608 | N29: 42065747 | O29: 0 | P29: 0 | Q29: 0 | R29: 0 | S29: 0 | T29: 0 | U29: 0 | V29: 0 | W29: 0 | X29: 0 | Y29: 0 | Z29: 0 | AA29: 0.00 | AB29: 0.00 | AC29: 0.00 | AD29: 0.00 | AE29: 0.00 | AF29: 0.00 | AG29: 0.00 | AH29: 0.00 | AI29: 0.00 | AJ29: 0.00 | AK29: 0.00 | AL29: 0.00 | AM29: 0.00 | AN29: =IF(MengeInEEGSummieren(M29),AM29,0) ->  | AO29: 0.00 | AP29: 0.00 | AS29: 0 | AT29: 0
A30: WaK64-------04 | B30: Wasser | C30: 2004 | D30: >5 MW , Zubau 0,5-10 MW | F30: 6.65 | G30: 6.65 | H30: 0 | I30: 0.00 | J30: 0 | K30: 0.00 | L30: 0 | M30: 32964608 | N30: 42065747 | O30: 0 | P30: 0 | Q30: 0 | R30: 0 | S30: 0 | T30: 0 | U30: 0 | V30: 0 | W30: 0 | X30: 0 | Y30: 0 | Z30: 0 | AA30: 0.00 | AB30: 0.00 | AC30: 0.00 | AD30: 0.00 | AE30: 0.00 | AF30: 0.00 | AG30: 0.00 | AH30: 0.00 | AI30: 0.00 | AJ30: 0.00 | AK30: 0.00 | AL30: 0.00 | AM30: 0.00 | AN30: =IF(MengeInEEGSummieren(M30),AM30,0) ->  | AO30: 0.00 | AP30: 0.00 | AS30: 0 | AT30: 0
A31: WaK65-------04 | B31: Wasser | C31: 2004 | D31: >5 MW , Zubau 10-20 MW | F31: 6.10 | G31: 6.10 | H31: 0 | I31: 0.00 | J31: 0 | K31: 0.00 | L31: 0 | M31: 32964608 | N31: 42065747 | O31: 0 | P31: 0 | Q31: 0 | R31: 0 | S31: 0 | T31: 0 | U31: 0 | V31: 0 | W31: 0 | X31: 0 | Y31: 0 | Z31: 0 | AA31: 0.00 | AB31: 0.00 | AC31: 0.00 | AD31: 0.00 | AE31: 0.00 | AF31: 0.00 | AG31: 0.00 | AH31: 0.00 | AI31: 0.00 | AJ31: 0.00 | AK31: 0.00 | AL31: 0.00 | AM31: 0.00 | AN31: =IF(MengeInEEGSummieren(M31),AM31,0) ->  | AO31: 0.00 | AP31: 0.00 | AS31: 0 | AT31: 0
A32: WaK66-------04 | B32: Wasser | C32: 2004 | D32: >5 MW , Zubau 20-50 MW | F32: 4.56 | G32: 4.56 | H32: 0 | I32: 0.00 | J32: 0 | K32: 0.00 | L32: 0 | M32: 32964608 | N32: 42065747 | O32: 0 | P32: 0 | Q32: 0 | R32: 0 | S32: 0 | T32: 0 | U32: 0 | V32: 0 | W32: 0 | X32: 0 | Y32: 0 | Z32: 0 | AA32: 0.00 | AB32: 0.00 | AC32: 0.00 | AD32: 0.00 | AE32: 0.00 | AF32: 0.00 | AG32: 0.00 | AH32: 0.00 | AI32: 0.00 | AJ32: 0.00 | AK32: 0.00 | AL32: 0.00 | AM32: 0.00 | AN32: =IF(MengeInEEGSummieren(M32),AM32,0) ->  | AO32: 0.00 | AP32: 0.00 | AS32: 0 | AT32: 0
A33: WaK67-------04 | B33: Wasser | C33: 2004 | D33: >5 MW , Zubau 50-150 MW | F33: 3.70 | G33: 3.70 | H33: 0 | I33: 0.00 | J33: 0 | K33: 0.00 | L33: 0 | M33: 32964608 | N33: 42065747 | O33: 0 | P33: 0 | Q33: 0 | R33: 0 | S33: 0 | T33: 0 | U33: 0 | V33: 0 | W33: 0 | X33: 0 | Y33: 0 | Z33: 0 | AA33: 0.00 | AB33: 0.00 | AC33: 0.00 | AD33: 0.00 | AE33: 0.00 | AF33: 0.00 | AG33: 0.00 | AH33: 0.00 | AI33: 0.00 | AJ33: 0.00 | AK33: 0.00 | AL33: 0.00 | AM33: 0.00 | AN33: =IF(MengeInEEGSummieren(M33),AM33,0) ->  | AO33: 0.00 | AP33: 0.00 | AS33: 0 | AT33: 0
AM34: 0.00 | AN34: =IF(MengeInEEGSummieren(M34),AM34,0) ->  | AO34: 0.00 | AP34: 0.00 | AS34: 0 | AT34: 0
A35: WaK61-------05 | B35: Wasser | C35: 2005 | D35: 0-0,5 MW | F35: 9.67 | G35: 9.67 | H35: 0 | I35: 0.00 | J35: 0 | K35: 0.00 | L35: 0 | M35: 32964608 | N35: 42065747 | O35: 0 | P35: 0 | Q35: 0 | R35: 0 | S35: 0 | T35: 0 | U35: 0 | V35: 0 | W35: 0 | X35: 0 | Y35: 0 | Z35: 0 | AA35: 0.00 | AB35: 0.00 | AC35: 0.00 | AD35: 0.00 | AE35: 0.00 | AF35: 0.00 | AG35: 0.00 | AH35: 0.00 | AI35: 0.00 | AJ35: 0.00 | AK35: 0.00 | AL35: 0.00 | AM35: 0.00 | AN35: =IF(MengeInEEGSummieren(M35),AM35,0) ->  | AO35: 0.00 | AP35: 0.00 | AS35: 0 | AT35: 0
A36: WaK62-------05 | B36: Wasser | C36: 2005 | D36: 0,5-5 MW | F36: 6.65 | G36: 6.65 | H36: 0 | I36: 0.00 | J36: 0 | K36: 0.00 | L36: 0 | M36: 32964608 | N36: 42065747 | O36: 0 | P36: 0 | Q36: 0 | R36: 0 | S36: 0 | T36: 0 | U36: 0 | V36: 0 | W36: 0 | X36: 0 | Y36: 0 | Z36: 0 | AA36: 0.00 | AB36: 0.00 | AC36: 0.00 | AD36: 0.00 | AE36: 0.00 | AF36: 0.00 | AG36: 0.00 | AH36: 0.00 | AI36: 0.00 | AJ36: 0.00 | AK36: 0.00 | AL36: 0.00 | AM36: 0.00 | AN36: =IF(MengeInEEGSummieren(M36),AM36,0) ->  | AO36: 0.00 | AP36: 0.00 | AS36: 0 | AT36: 0
A37: WaK63-------05 | B37: Wasser | C37: 2005 | D37: >5 MW , Zubau 0-0,5 MW | F37: 7.59 | G37: 7.59 | H37: 0 | I37: 0.00 | J37: 0 | K37: 0.00 | L37: 0 | M37: 32964608 | N37: 42065747 | O37: 0 | P37: 0 | Q37: 0 | R37: 0 | S37: 0 | T37: 0 | U37: 0 | V37: 0 | W37: 0 | X37: 0 | Y37: 0 | Z37: 0 | AA37: 0.00 | AB37: 0.00 | AC37: 0.00 | AD37: 0.00 | AE37: 0.00 | AF37: 0.00 | AG37: 0.00 | AH37: 0.00 | AI37: 0.00 | AJ37: 0.00 | AK37: 0.00 | AL37: 0.00 | AM37: 0.00 | AN37: =IF(MengeInEEGSummieren(M37),AM37,0) ->  | AO37: 0.00 | AP37: 0.00 | AS37: 0 | AT37: 0
A38: WaK64-------05 | B38: Wasser | C38: 2005 | D38: >5 MW , Zubau 0,5-10 MW | F38: 6.58 | G38: 6.58 | H38: 0 | I38: 0.00 | J38: 0 | K38: 0.00 | L38: 0 | M38: 32964608 | N38: 42065747 | O38: 0 | P38: 0 | Q38: 0 | R38: 0 | S38: 0 | T38: 0 | U38: 0 | V38: 0 | W38: 0 | X38: 0 | Y38: 0 | Z38: 0 | AA38: 0.00 | AB38: 0.00 | AC38: 0.00 | AD38: 0.00 | AE38: 0.00 | AF38: 0.00 | AG38: 0.00 | AH38: 0.00 | AI38: 0.00 | AJ38: 0.00 | AK38: 0.00 | AL38: 0.00 | AM38: 0.00 | AN38: =IF(MengeInEEGSummieren(M38),AM38,0) ->  | AO38: 0.00 | AP38: 0.00 | AS38: 0 | AT38: 0
A39: WaK65-------05 | B39: Wasser | C39: 2005 | D39: >5 MW , Zubau 10-20 MW | F39: 6.04 | G39: 6.04 | H39: 0 | I39: 0.00 | J39: 0 | K39: 0.00 | L39: 0 | M39: 32964608 | N39: 42065747 | O39: 0 | P39: 0 | Q39: 0 | R39: 0 | S39: 0 | T39: 0 | U39: 0 | V39: 0 | W39: 0 | X39: 0 | Y39: 0 | Z39: 0 | AA39: 0.00 | AB39: 0.00 | AC39: 0.00 | AD39: 0.00 | AE39: 0.00 | AF39: 0.00 | AG39: 0.00 | AH39: 0.00 | AI39: 0.00 | AJ39: 0.00 | AK39: 0.00 | AL39: 0.00 | AM39: 0.00 | AN39: =IF(MengeInEEGSummieren(M39),AM39,0) ->  | AO39: 0.00 | AP39: 0.00 | AS39: 0 | AT39: 0
A40: WaK66-------05 | B40: Wasser | C40: 2005 | D40: >5 MW , Zubau 20-50 MW | F40: 4.51 | G40: 4.51 | H40: 0 | I40: 0.00 | J40: 0 | K40: 0.00 | L40: 0 | M40: 32964608 | N40: 42065747 | O40: 0 | P40: 0 | Q40: 0 | R40: 0 | S40: 0 | T40: 0 | U40: 0 | V40: 0 | W40: 0 | X40: 0 | Y40: 0 | Z40: 0 | AA40: 0.00 | AB40: 0.00 | AC40: 0.00 | AD40: 0.00 | AE40: 0.00 | AF40: 0.00 | AG40: 0.00 | AH40: 0.00 | AI40: 0.00 | AJ40: 0.00 | AK40: 0.00 | AL40: 0.00 | AM40: 0.00 | AN40: =IF(MengeInEEGSummieren(M40),AM40,0) ->  | AO40: 0.00 | AP40: 0.00 | AS40: 0 | AT40: 0
A41: WaK67-------05 | B41: Wasser | C41: 2005 | D41: >5 MW , Zubau 50-150 MW | F41: 3.66 | G41: 3.66 | H41: 0 | I41: 0.00 | J41: 0 | K41: 0.00 | L41: 0 | M41: 32964608 | N41: 42065747 | O41: 0 | P41: 0 | Q41: 0 | R41: 0 | S41: 0 | T41: 0 | U41: 0 | V41: 0 | W41: 0 | X41: 0 | Y41: 0 | Z41: 0 | AA41: 0.00 | AB41: 0.00 | AC41: 0.00 | AD41: 0.00 | AE41: 0.00 | AF41: 0.00 | AG41: 0.00 | AH41: 0.00 | AI41: 0.00 | AJ41: 0.00 | AK41: 0.00 | AL41: 0.00 | AM41: 0.00 | AN41: =IF(MengeInEEGSummieren(M41),AM41,0) ->  | AO41: 0.00 | AP41: 0.00 | AS41: 0 | AT41: 0
AM42: 0.00 | AN42: =IF(MengeInEEGSummieren(M42),AM42,0) ->  | AO42: 0.00 | AP42: 0.00 | AS42: 0 | AT42: 0
A43: WaK61-------06 | B43: Wasser | C43: 2006 | D43: 0-0,5 MW | F43: 9.67 | G43: 9.67 | H43: 0 | I43: 0.00 | J43: 0 | K43: 0.00 | L43: 0 | M43: 32964608 | N43: 42065747 | O43: 0 | P43: 0 | Q43: 0 | R43: 0 | S43: 0 | T43: 0 | U43: 0 | V43: 0 | W43: 0 | X43: 0 | Y43: 0 | Z43: 0 | AA43: 0.00 | AB43: 0.00 | AC43: 0.00 | AD43: 0.00 | AE43: 0.00 | AF43: 0.00 | AG43: 0.00 | AH43: 0.00 | AI43: 0.00 | AJ43: 0.00 | AK43: 0.00 | AL43: 0.00 | AM43: 0.00 | AN43: =IF(MengeInEEGSummieren(M43),AM43,0) ->  | AO43: 0.00 | AP43: 0.00 | AS43: 0 | AT43: 0
A44: WaK62-------06 | B44: Wasser | C44: 2006 | D44: 0,5-5 MW | F44: 6.65 | G44: 6.65 | H44: 0 | I44: 0.00 | J44: 0 | K44: 0.00 | L44: 0 | M44: 32964608 | N44: 42065747 | O44: 0 | P44: 0 | Q44: 0 | R44: 0 | S44: 0 | T44: 0 | U44: 0 | V44: 0 | W44: 0 | X44: 0 | Y44: 0 | Z44: 0 | AA44: 0.00 | AB44: 0.00 | AC44: 0.00 | AD44: 0.00 | AE44: 0.00 | AF44: 0.00 | AG44: 0.00 | AH44: 0.00 | AI44: 0.00 | AJ44: 0.00 | AK44: 0.00 | AL44: 0.00 | AM44: 0.00 | AN44: =IF(MengeInEEGSummieren(M44),AM44,0) ->  | AO44: 0.00 | AP44: 0.00 | AS44: 0 | AT44: 0
A45: WaK63-------06 | B45: Wasser | C45: 2006 | D45: >5 MW, Zubau 0-0,5 MW | F45: 7.51 | G45: 7.51 | H45: 0 | I45: 0.00 | J45: 0 | K45: 0.00 | L45: 0 | M45: 32964608 | N45: 42065747 | O45: 0 | P45: 0 | Q45: 0 | R45: 0 | S45: 0 | T45: 0 | U45: 0 | V45: 0 | W45: 0 | X45: 0 | Y45: 0 | Z45: 0 | AA45: 0.00 | AB45: 0.00 | AC45: 0.00 | AD45: 0.00 | AE45: 0.00 | AF45: 0.00 | AG45: 0.00 | AH45: 0.00 | AI45: 0.00 | AJ45: 0.00 | AK45: 0.00 | AL45: 0.00 | AM45: 0.00 | AN45: =IF(MengeInEEGSummieren(M45),AM45,0) ->  | AO45: 0.00 | AP45: 0.00 | AS45: 0 | AT45: 0
A46: WaK64-------06 | B46: Wasser | C46: 2006 | D46: >5 MW, Zubau 0,5-10 MW | F46: 6.51 | G46: 6.51 | H46: 0 | I46: 0.00 | J46: 0 | K46: 0.00 | L46: 0 | M46: 32964608 | N46: 42065747 | O46: 0 | P46: 0 | Q46: 0 | R46: 0 | S46: 0 | T46: 0 | U46: 0 | V46: 0 | W46: 0 | X46: 0 | Y46: 0 | Z46: 0 | AA46: 0.00 | AB46: 0.00 | AC46: 0.00 | AD46: 0.00 | AE46: 0.00 | AF46: 0.00 | AG46: 0.00 | AH46: 0.00 | AI46: 0.00 | AJ46: 0.00 | AK46: 0.00 | AL46: 0.00 | AM46: 0.00 | AN46: =IF(MengeInEEGSummieren(M46),AM46,0) ->  | AO46: 0.00 | AP46: 0.00 | AS46: 0 | AT46: 0
A47: WaK65-------06 | B47: Wasser | C47: 2006 | D47: >5 MW , Zubau 10-20 MW | F47: 5.98 | G47: 5.98 | H47: 0 | I47: 0.00 | J47: 0 | K47: 0.00 | L47: 0 | M47: 32964608 | N47: 42065747 | O47: 0 | P47: 0 | Q47: 0 | R47: 0 | S47: 0 | T47: 0 | U47: 0 | V47: 0 | W47: 0 | X47: 0 | Y47: 0 | Z47: 0 | AA47: 0.00 | AB47: 0.00 | AC47: 0.00 | AD47: 0.00 | AE47: 0.00 | AF47: 0.00 | AG47: 0.00 | AH47: 0.00 | AI47: 0.00 | AJ47: 0.00 | AK47: 0.00 | AL47: 0.00 | AM47: 0.00 | AN47: =IF(MengeInEEGSummieren(M47),AM47,0) ->  | AO47: 0.00 | AP47: 0.00 | AS47: 0 | AT47: 0
A48: WaK66-------06 | B48: Wasser | C48: 2006 | D48: >5 MW , Zubau 20-50 MW | F48: 4.46 | G48: 4.46 | H48: 0 | I48: 0.00 | J48: 0 | K48: 0.00 | L48: 0 | M48: 32964608 | N48: 42065747 | O48: 0 | P48: 0 | Q48: 0 | R48: 0 | S48: 0 | T48: 0 | U48: 0 | V48: 0 | W48: 0 | X48: 0 | Y48: 0 | Z48: 0 | AA48: 0.00 | AB48: 0.00 | AC48: 0.00 | AD48: 0.00 | AE48: 0.00 | AF48: 0.00 | AG48: 0.00 | AH48: 0.00 | AI48: 0.00 | AJ48: 0.00 | AK48: 0.00 | AL48: 0.00 | AM48: 0.00 | AN48: =IF(MengeInEEGSummieren(M48),AM48,0) ->  | AO48: 0.00 | AP48: 0.00 | AS48: 0 | AT48: 0
A49: WaK67-------06 | B49: Wasser | C49: 2006 | D49: >5 MW , Zubau 50-150 MW | F49: 3.62 | G49: 3.62 | H49: 0 | I49: 0.00 | J49: 0 | K49: 0.00 | L49: 0 | M49: 32964608 | N49: 42065747 | O49: 0 | P49: 0 | Q49: 0 | R49: 0 | S49: 0 | T49: 0 | U49: 0 | V49: 0 | W49: 0 | X49: 0 | Y49: 0 | Z49: 0 | AA49: 0.00 | AB49: 0.00 | AC49: 0.00 | AD49: 0.00 | AE49: 0.00 | AF49: 0.00 | AG49: 0.00 | AH49: 0.00 | AI49: 0.00 | AJ49: 0.00 | AK49: 0.00 | AL49: 0.00 | AM49: 0.00 | AN49: =IF(MengeInEEGSummieren(M49),AM49,0) ->  | AO49: 0.00 | AP49: 0.00 | AS49: 0 | AT49: 0
AM50: 0.00 | AN50: =IF(MengeInEEGSummieren(M50),AM50,0) ->  | AO50: 0.00 | AP50: 0.00 | AS50: 0 | AT50: 0
A51: WaK61-------07 | B51: Wasser | C51: 2007 | D51: 0-0,5 MW | F51: 9.67 | G51: 9.67 | H51: 0 | I51: 0.00 | J51: 0 | K51: 0.00 | L51: 0 | M51: 32964608 | N51: 42065747 | O51: 0 | P51: 0 | Q51: 0 | R51: 0 | S51: 0 | T51: 0 | U51: 0 | V51: 0 | W51: 0 | X51: 0 | Y51: 0 | Z51: 0 | AA51: 0.00 | AB51: 0.00 | AC51: 0.00 | AD51: 0.00 | AE51: 0.00 | AF51: 0.00 | AG51: 0.00 | AH51: 0.00 | AI51: 0.00 | AJ51: 0.00 | AK51: 0.00 | AL51: 0.00 | AM51: 0.00 | AN51: =IF(MengeInEEGSummieren(M51),AM51,0) ->  | AO51: 0.00 | AP51: 0.00 | AS51: 0 | AT51: 0
A52: WaK62-------07 | B52: Wasser | C52: 2007 | D52: 0,5-5 MW | F52: 6.65 | G52: 6.65 | H52: 0 | I52: 0.00 | J52: 0 | K52: 0.00 | L52: 0 | M52: 32964608 | N52: 42065747 | O52: 0 | P52: 0 | Q52: 0 | R52: 0 | S52: 0 | T52: 0 | U52: 0 | V52: 0 | W52: 0 | X52: 0 | Y52: 0 | Z52: 0 | AA52: 0.00 | AB52: 0.00 | AC52: 0.00 | AD52: 0.00 | AE52: 0.00 | AF52: 0.00 | AG52: 0.00 | AH52: 0.00 | AI52: 0.00 | AJ52: 0.00 | AK52: 0.00 | AL52: 0.00 | AM52: 0.00 | AN52: =IF(MengeInEEGSummieren(M52),AM52,0) ->  | AO52: 0.00 | AP52: 0.00 | AS52: 0 | AT52: 0
A53: WaK63-------07 | B53: Wasser | C53: 2007 | D53: >5 MW , Zubau 0-0,5 MW | F53: 7.43 | G53: 7.43 | H53: 0 | I53: 0.00 | J53: 0 | K53: 0.00 | L53: 0 | M53: 32964608 | N53: 42065747 | O53: 0 | P53: 0 | Q53: 0 | R53: 0 | S53: 0 | T53: 0 | U53: 0 | V53: 0 | W53: 0 | X53: 0 | Y53: 0 | Z53: 0 | AA53: 0.00 | AB53: 0.00 | AC53: 0.00 | AD53: 0.00 | AE53: 0.00 | AF53: 0.00 | AG53: 0.00 | AH53: 0.00 | AI53: 0.00 | AJ53: 0.00 | AK53: 0.00 | AL53: 0.00 | AM53: 0.00 | AN53: =IF(MengeInEEGSummieren(M53),AM53,0) ->  | AO53: 0.00 | AP53: 0.00 | AS53: 0 | AT53: 0
A54: WaK64-------07 | B54: Wasser | C54: 2007 | D54: >5 MW , Zubau 0,5-10 MW | F54: 6.44 | G54: 6.44 | H54: 0 | I54: 0.00 | J54: 0 | K54: 0.00 | L54: 0 | M54: 32964608 | N54: 42065747 | O54: 0 | P54: 0 | Q54: 0 | R54: 0 | S54: 0 | T54: 0 | U54: 0 | V54: 0 | W54: 0 | X54: 0 | Y54: 0 | Z54: 0 | AA54: 0.00 | AB54: 0.00 | AC54: 0.00 | AD54: 0.00 | AE54: 0.00 | AF54: 0.00 | AG54: 0.00 | AH54: 0.00 | AI54: 0.00 | AJ54: 0.00 | AK54: 0.00 | AL54: 0.00 | AM54: 0.00 | AN54: =IF(MengeInEEGSummieren(M54),AM54,0) ->  | AO54: 0.00 | AP54: 0.00 | AS54: 0 | AT54: 0
A55: WaK65-------07 | B55: Wasser | C55: 2007 | D55: >5 MW , Zubau 10-20 MW | F55: 5.92 | G55: 5.92 | H55: 0 | I55: 0.00 | J55: 0 | K55: 0.00 | L55: 0 | M55: 32964608 | N55: 42065747 | O55: 0 | P55: 0 | Q55: 0 | R55: 0 | S55: 0 | T55: 0 | U55: 0 | V55: 0 | W55: 0 | X55: 0 | Y55: 0 | Z55: 0 | AA55: 0.00 | AB55: 0.00 | AC55: 0.00 | AD55: 0.00 | AE55: 0.00 | AF55: 0.00 | AG55: 0.00 | AH55: 0.00 | AI55: 0.00 | AJ55: 0.00 | AK55: 0.00 | AL55: 0.00 | AM55: 0.00 | AN55: =IF(MengeInEEGSummieren(M55),AM55,0) ->  | AO55: 0.00 | AP55: 0.00 | AS55: 0 | AT55: 0
A56: WaK66-------07 | B56: Wasser | C56: 2007 | D56: >5 MW , Zubau 20-50 MW | F56: 4.42 | G56: 4.42 | H56: 0 | I56: 0.00 | J56: 0 | K56: 0.00 | L56: 0 | M56: 32964608 | N56: 42065747 | O56: 0 | P56: 0 | Q56: 0 | R56: 0 | S56: 0 | T56: 0 | U56: 0 | V56: 0 | W56: 0 | X56: 0 | Y56: 0 | Z56: 0 | AA56: 0.00 | AB56: 0.00 | AC56: 0.00 | AD56: 0.00 | AE56: 0.00 | AF56: 0.00 | AG56: 0.00 | AH56: 0.00 | AI56: 0.00 | AJ56: 0.00 | AK56: 0.00 | AL56: 0.00 | AM56: 0.00 | AN56: =IF(MengeInEEGSummieren(M56),AM56,0) ->  | AO56: 0.00 | AP56: 0.00 | AS56: 0 | AT56: 0
A57: WaK67-------07 | B57: Wasser | C57: 2007 | D57: >5 MW , Zubau 50-150 MW | F57: 3.58 | G57: 3.58 | H57: 0 | I57: 0.00 | J57: 0 | K57: 0.00 | L57: 0 | M57: 32964608 | N57: 42065747 | O57: 0 | P57: 0 | Q57: 0 | R57: 0 | S57: 0 | T57: 0 | U57: 0 | V57: 0 | W57: 0 | X57: 0 | Y57: 0 | Z57: 0 | AA57: 0.00 | AB57: 0.00 | AC57: 0.00 | AD57: 0.00 | AE57: 0.00 | AF57: 0.00 | AG57: 0.00 | AH57: 0.00 | AI57: 0.00 | AJ57: 0.00 | AK57: 0.00 | AL57: 0.00 | AM57: 0.00 | AN57: =IF(MengeInEEGSummieren(M57),AM57,0) ->  | AO57: 0.00 | AP57: 0.00 | AS57: 0 | AT57: 0
AM58: 0.00 | AN58: =IF(MengeInEEGSummieren(M58),AM58,0) ->  | AO58: 0.00 | AP58: 0.00 | AS58: 0 | AT58: 0
A59: WaK61-------08 | B59: Wasser | C59: 2008 | D59: 0-0,5 MW | F59: 9.67 | G59: 9.67 | H59: 0 | I59: 0.00 | J59: 0 | K59: 0.00 | L59: 0 | M59: 32964608 | N59: 42065747 | O59: 0 | P59: 0 | Q59: 0 | R59: 0 | S59: 0 | T59: 0 | U59: 0 | V59: 0 | W59: 0 | X59: 0 | Y59: 0 | Z59: 0 | AA59: 0.00 | AB59: 0.00 | AC59: 0.00 | AD59: 0.00 | AE59: 0.00 | AF59: 0.00 | AG59: 0.00 | AH59: 0.00 | AI59: 0.00 | AJ59: 0.00 | AK59: 0.00 | AL59: 0.00 | AM59: 0.00 | AN59: =IF(MengeInEEGSummieren(M59),AM59,0) ->  | AO59: 0.00 | AP59: 0.00 | AS59: 0 | AT59: 0
A60: WaK62-------08 | B60: Wasser | C60: 2008 | D60: 0,5-5 MW | F60: 6.65 | G60: 6.65 | H60: 0 | I60: 0.00 | J60: 0 | K60: 0.00 | L60: 0 | M60: 32964608 | N60: 42065747 | O60: 0 | P60: 0 | Q60: 0 | R60: 0 | S60: 0 | T60: 0 | U60: 0 | V60: 0 | W60: 0 | X60: 0 | Y60: 0 | Z60: 0 | AA60: 0.00 | AB60: 0.00 | AC60: 0.00 | AD60: 0.00 | AE60: 0.00 | AF60: 0.00 | AG60: 0.00 | AH60: 0.00 | AI60: 0.00 | AJ60: 0.00 | AK60: 0.00 | AL60: 0.00 | AM60: 0.00 | AN60: =IF(MengeInEEGSummieren(M60),AM60,0) ->  | AO60: 0.00 | AP60: 0.00 | AS60: 0 | AT60: 0
A61: WaK63-------08 | B61: Wasser | C61: 2008 | D61: >5 MW , Zubau 0-0,5 MW | F61: 7.36 | G61: 7.36 | H61: 0 | I61: 0.00 | J61: 0 | K61: 0.00 | L61: 0 | M61: 32964608 | N61: 42065747 | O61: 0 | P61: 0 | Q61: 0 | R61: 0 | S61: 0 | T61: 0 | U61: 0 | V61: 0 | W61: 0 | X61: 0 | Y61: 0 | Z61: 0 | AA61: 0.00 | AB61: 0.00 | AC61: 0.00 | AD61: 0.00 | AE61: 0.00 | AF61: 0.00 | AG61: 0.00 | AH61: 0.00 | AI61: 0.00 | AJ61: 0.00 | AK61: 0.00 | AL61: 0.00 | AM61: 0.00 | AN61: =IF(MengeInEEGSummieren(M61),AM61,0) ->  | AO61: 0.00 | AP61: 0.00 | AS61: 0 | AT61: 0
A62: WaK64-------08 | B62: Wasser | C62: 2008 | D62: >5 MW , Zubau 0,5-10 MW | F62: 6.38 | G62: 6.38 | H62: 0 | I62: 0.00 | J62: 0 | K62: 0.00 | L62: 0 | M62: 32964608 | N62: 42065747 | O62: 0 | P62: 0 | Q62: 0 | R62: 0 | S62: 0 | T62: 0 | U62: 0 | V62: 0 | W62: 0 | X62: 0 | Y62: 0 | Z62: 0 | AA62: 0.00 | AB62: 0.00 | AC62: 0.00 | AD62: 0.00 | AE62: 0.00 | AF62: 0.00 | AG62: 0.00 | AH62: 0.00 | AI62: 0.00 | AJ62: 0.00 | AK62: 0.00 | AL62: 0.00 | AM62: 0.00 | AN62: =IF(MengeInEEGSummieren(M62),AM62,0) ->  | AO62: 0.00 | AP62: 0.00 | AS62: 0 | AT62: 0
A63: WaK65-------08 | B63: Wasser | C63: 2008 | D63: >5 MW , Zubau 10-20 MW | F63: 5.86 | G63: 5.86 | H63: 0 | I63: 0.00 | J63: 0 | K63: 0.00 | L63: 0 | M63: 32964608 | N63: 42065747 | O63: 0 | P63: 0 | Q63: 0 | R63: 0 | S63: 0 | T63: 0 | U63: 0 | V63: 0 | W63: 0 | X63: 0 | Y63: 0 | Z63: 0 | AA63: 0.00 | AB63: 0.00 | AC63: 0.00 | AD63: 0.00 | AE63: 0.00 | AF63: 0.00 | AG63: 0.00 | AH63: 0.00 | AI63: 0.00 | AJ63: 0.00 | AK63: 0.00 | AL63: 0.00 | AM63: 0.00 | AN63: =IF(MengeInEEGSummieren(M63),AM63,0) ->  | AO63: 0.00 | AP63: 0.00 | AS63: 0 | AT63: 0
A64: WaK66-------08 | B64: Wasser | C64: 2008 | D64: >5 MW , Zubau 20-50 MW | F64: 4.38 | G64: 4.38 | H64: 0 | I64: 0.00 | J64: 0 | K64: 0.00 | L64: 0 | M64: 32964608 | N64: 42065747 | O64: 0 | P64: 0 | Q64: 0 | R64: 0 | S64: 0 | T64: 0 | U64: 0 | V64: 0 | W64: 0 | X64: 0 | Y64: 0 | Z64: 0 | AA64: 0.00 | AB64: 0.00 | AC64: 0.00 | AD64: 0.00 | AE64: 0.00 | AF64: 0.00 | AG64: 0.00 | AH64: 0.00 | AI64: 0.00 | AJ64: 0.00 | AK64: 0.00 | AL64: 0.00 | AM64: 0.00 | AN64: =IF(MengeInEEGSummieren(M64),AM64,0) ->  | AO64: 0.00 | AP64: 0.00 | AS64: 0 | AT64: 0
A65: WaK67-------08 | B65: Wasser | C65: 2008 | D65: >5 MW , Zubau 50-150 MW | F65: 3.54 | G65: 3.54 | H65: 0 | I65: 0.00 | J65: 0 | K65: 0.00 | L65: 0 | M65: 32964608 | N65: 42065747 | O65: 0 | P65: 0 | Q65: 0 | R65: 0 | S65: 0 | T65: 0 | U65: 0 | V65: 0 | W65: 0 | X65: 0 | Y65: 0 | Z65: 0 | AA65: 0.00 | AB65: 0.00 | AC65: 0.00 | AD65: 0.00 | AE65: 0.00 | AF65: 0.00 | AG65: 0.00 | AH65: 0.00 | AI65: 0.00 | AJ65: 0.00 | AK65: 0.00 | AL65: 0.00 | AM65: 0.00 | AN65: =IF(MengeInEEGSummieren(M65),AM65,0) ->  | AO65: 0.00 | AP65: 0.00 | AS65: 0 | AT65: 0
AM66: 0.00 | AN66: =IF(MengeInEEGSummieren(M66),AM66,0) ->  | AO66: 0.00 | AP66: 0.00 | AS66: 0 | AT66: 0
A67: WaK230------09 | B67: Wasser | C67: 2009 | D67: 0-0,5 MW, Anlage < 5 MW | F67: 12.67 | G67: 12.67 | H67: 0 | I67: 0.00 | J67: 0 | K67: 0.00 | L67: 0 | M67: 32964608 | N67: 42065747 | O67: 0 | P67: 0 | Q67: 0 | R67: 0 | S67: 0 | T67: 0 | U67: 0 | V67: 0 | W67: 0 | X67: 0 | Y67: 0 | Z67: 0 | AA67: 0.00 | AB67: 0.00 | AC67: 0.00 | AD67: 0.00 | AE67: 0.00 | AF67: 0.00 | AG67: 0.00 | AH67: 0.00 | AI67: 0.00 | AJ67: 0.00 | AK67: 0.00 | AL67: 0.00 | AM67: 0.00 | AN67: =IF(MengeInEEGSummieren(M67),AM67,0) ->  | AO67: 0.00 | AP67: 0.00 | AS67: 0 | AT67: 0
A68: WaK231------09 | B68: Wasser | C68: 2009 | D68: 0-0,5 MW, Anlage < 5 MW, Modernisierung | F68: 11.67 | G68: 11.67 | H68: 250,938 | I68: 29,284.46 | J68: 0 | K68: 0.00 | L68: 0 | M68: 32964608 | N68: 42065747 | O68: 0 | P68: 0 | Q68: 0 | R68: 0 | S68: 0 | T68: 0 | U68: 0 | V68: 0 | W68: 0 | X68: 0 | Y68: 0 | Z68: 0 | AA68: 0.00 | AB68: 0.00 | AC68: 0.00 | AD68: 0.00 | AE68: 0.00 | AF68: 0.00 | AG68: 0.00 | AH68: 0.00 | AI68: 0.00 | AJ68: 0.00 | AK68: 0.00 | AL68: 0.00 | AM68: 250,938.00 | AN68: =IF(MengeInEEGSummieren(M68),AM68,0) ->  | AO68: 0.00 | AP68: 0.00 | AS68: 0 | AT68: 0
A69: WaK232------09 | B69: Wasser | C69: 2009 | D69: 0,5-2 MW, Anlage < 5 MW | F69: 8.65 | G69: 8.65 | H69: 0 | I69: 0.00 | J69: 0 | K69: 0.00 | L69: 0 | M69: 32964608 | N69: 42065747 | O69: 0 | P69: 0 | Q69: 0 | R69: 0 | S69: 0 | T69: 0 | U69: 0 | V69: 0 | W69: 0 | X69: 0 | Y69: 0 | Z69: 0 | AA69: 0.00 | AB69: 0.00 | AC69: 0.00 | AD69: 0.00 | AE69: 0.00 | AF69: 0.00 | AG69: 0.00 | AH69: 0.00 | AI69: 0.00 | AJ69: 0.00 | AK69: 0.00 | AL69: 0.00 | AM69: 0.00 | AN69: =IF(MengeInEEGSummieren(M69),AM69,0) ->  | AO69: 0.00 | AP69: 0.00 | AS69: 0 | AT69: 0
A70: WaK233------09 | B70: Wasser | C70: 2009 | D70: 2-5 MW, Anlage < 5 MW | F70: 7.65 | G70: 7.65 | H70: 0 | I70: 0.00 | J70: 0 | K70: 0.00 | L70: 0 | M70: 32964608 | N70: 42065747 | O70: 0 | P70: 0 | Q70: 0 | R70: 0 | S70: 0 | T70: 0 | U70: 0 | V70: 0 | W70: 0 | X70: 0 | Y70: 0 | Z70: 0 | AA70: 0.00 | AB70: 0.00 | AC70: 0.00 | AD70: 0.00 | AE70: 0.00 | AF70: 0.00 | AG70: 0.00 | AH70: 0.00 | AI70: 0.00 | AJ70: 0.00 | AK70: 0.00 | AL70: 0.00 | AM70: 0.00 | AN70: =IF(MengeInEEGSummieren(M70),AM70,0) ->  | AO70: 0.00 | AP70: 0.00 | AS70: 0 | AT70: 0
A71: WaK234------09 | B71: Wasser | C71: 2009 | D71: 0,5-5 MW, Anlage < 5 MW, Modernisierung | F71: 8.65 | G71: 8.65 | H71: 0 | I71: 0.00 | J71: 0 | K71: 0.00 | L71: 0 | M71: 32964608 | N71: 42065747 | O71: 0 | P71: 0 | Q71: 0 | R71: 0 | S71: 0 | T71: 0 | U71: 0 | V71: 0 | W71: 0 | X71: 0 | Y71: 0 | Z71: 0 | AA71: 0.00 | AB71: 0.00 | AC71: 0.00 | AD71: 0.00 | AE71: 0.00 | AF71: 0.00 | AG71: 0.00 | AH71: 0.00 | AI71: 0.00 | AJ71: 0.00 | AK71: 0.00 | AL71: 0.00 | AM71: 0.00 | AN71: =IF(MengeInEEGSummieren(M71),AM71,0) ->  | AO71: 0.00 | AP71: 0.00 | AS71: 0 | AT71: 0
A72: WaK235------09 | B72: Wasser | C72: 2009 | D72: >5 MW, Zubau 0-0,5 MW | F72: 7.29 | G72: 7.29 | H72: 0 | I72: 0.00 | J72: 0 | K72: 0.00 | L72: 0 | M72: 32964608 | N72: 42065747 | O72: 0 | P72: 0 | Q72: 0 | R72: 0 | S72: 0 | T72: 0 | U72: 0 | V72: 0 | W72: 0 | X72: 0 | Y72: 0 | Z72: 0 | AA72: 0.00 | AB72: 0.00 | AC72: 0.00 | AD72: 0.00 | AE72: 0.00 | AF72: 0.00 | AG72: 0.00 | AH72: 0.00 | AI72: 0.00 | AJ72: 0.00 | AK72: 0.00 | AL72: 0.00 | AM72: 0.00 | AN72: =IF(MengeInEEGSummieren(M72),AM72,0) ->  | AO72: 0.00 | AP72: 0.00 | AS72: 0 | AT72: 0
A73: WaK236------09 | B73: Wasser | C73: 2009 | D73: >5 MW, Zubau 0,5-10 MW | F73: 6.32 | G73: 6.32 | H73: 0 | I73: 0.00 | J73: 0 | K73: 0.00 | L73: 0 | M73: 32964608 | N73: 42065747 | O73: 0 | P73: 0 | Q73: 0 | R73: 0 | S73: 0 | T73: 0 | U73: 0 | V73: 0 | W73: 0 | X73: 0 | Y73: 0 | Z73: 0 | AA73: 0.00 | AB73: 0.00 | AC73: 0.00 | AD73: 0.00 | AE73: 0.00 | AF73: 0.00 | AG73: 0.00 | AH73: 0.00 | AI73: 0.00 | AJ73: 0.00 | AK73: 0.00 | AL73: 0.00 | AM73: 0.00 | AN73: =IF(MengeInEEGSummieren(M73),AM73,0) ->  | AO73: 0.00 | AP73: 0.00 | AS73: 0 | AT73: 0
A74: WaK237------09 | B74: Wasser | C74: 2009 | D74: >5 MW, Zubau 10-20 MW | F74: 5.80 | G74: 5.80 | H74: 0 | I74: 0.00 | J74: 0 | K74: 0.00 | L74: 0 | M74: 32964608 | N74: 42065747 | O74: 0 | P74: 0 | Q74: 0 | R74: 0 | S74: 0 | T74: 0 | U74: 0 | V74: 0 | W74: 0 | X74: 0 | Y74: 0 | Z74: 0 | AA74: 0.00 | AB74: 0.00 | AC74: 0.00 | AD74: 0.00 | AE74: 0.00 | AF74: 0.00 | AG74: 0.00 | AH74: 0.00 | AI74: 0.00 | AJ74: 0.00 | AK74: 0.00 | AL74: 0.00 | AM74: 0.00 | AN74: =IF(MengeInEEGSummieren(M74),AM74,0) ->  | AO74: 0.00 | AP74: 0.00 | AS74: 0 | AT74: 0
A75: WaK238------09 | B75: Wasser | C75: 2009 | D75: >5 MW, Zubau 20-50 MW | F75: 4.34 | G75: 4.34 | H75: 0 | I75: 0.00 | J75: 0 | K75: 0.00 | L75: 0 | M75: 32964608 | N75: 42065747 | O75: 0 | P75: 0 | Q75: 0 | R75: 0 | S75: 0 | T75: 0 | U75: 0 | V75: 0 | W75: 0 | X75: 0 | Y75: 0 | Z75: 0 | AA75: 0.00 | AB75: 0.00 | AC75: 0.00 | AD75: 0.00 | AE75: 0.00 | AF75: 0.00 | AG75: 0.00 | AH75: 0.00 | AI75: 0.00 | AJ75: 0.00 | AK75: 0.00 | AL75: 0.00 | AM75: 0.00 | AN75: =IF(MengeInEEGSummieren(M75),AM75,0) ->  | AO75: 0.00 | AP75: 0.00 | AS75: 0 | AT75: 0
A76: WaK239------09 | B76: Wasser | C76: 2009 | D76: >5 MW, Zubau >50 MW | F76: 3.50 | G76: 3.50 | H76: 0 | I76: 0.00 | J76: 0 | K76: 0.00 | L76: 0 | M76: 32964608 | N76: 42065747 | O76: 0 | P76: 0 | Q76: 0 | R76: 0 | S76: 0 | T76: 0 | U76: 0 | V76: 0 | W76: 0 | X76: 0 | Y76: 0 | Z76: 0 | AA76: 0.00 | AB76: 0.00 | AC76: 0.00 | AD76: 0.00 | AE76: 0.00 | AF76: 0.00 | AG76: 0.00 | AH76: 0.00 | AI76: 0.00 | AJ76: 0.00 | AK76: 0.00 | AL76: 0.00 | AM76: 0.00 | AN76: =IF(MengeInEEGSummieren(M76),AM76,0) ->  | AO76: 0.00 | AP76: 0.00 | AS76: 0 | AT76: 0
AM77: 0.00 | AN77: =IF(MengeInEEGSummieren(M77),AM77,0) ->  | AO77: 0.00 | AP77: 0.00 | AS77: 0 | AT77: 0
A78: WaK230------10 | B78: Wasser | C78: 2010 | D78: 0-0,5 MW, Anlage < 5 MW | F78: 12.67 | G78: 12.67 | H78: 0 | I78: 0.00 | J78: 0 | K78: 0.00 | L78: 0 | M78: 32964608 | N78: 42065747 | O78: 0 | P78: 0 | Q78: 0 | R78: 0 | S78: 0 | T78: 0 | U78: 0 | V78: 0 | W78: 0 | X78: 0 | Y78: 0 | Z78: 0 | AA78: 0.00 | AB78: 0.00 | AC78: 0.00 | AD78: 0.00 | AE78: 0.00 | AF78: 0.00 | AG78: 0.00 | AH78: 0.00 | AI78: 0.00 | AJ78: 0.00 | AK78: 0.00 | AL78: 0.00 | AM78: 0.00 | AN78: =IF(MengeInEEGSummieren(M78),AM78,0) ->  | AO78: 0.00 | AP78: 0.00 | AS78: 0 | AT78: 0
A79: WaK231------10 | B79: Wasser | C79: 2010 | D79: 0-0,5 MW, Anlage < 5 MW, Modernisierung | F79: 11.67 | G79: 11.67 | H79: 0 | I79: 0.00 | J79: 0 | K79: 0.00 | L79: 0 | M79: 32964608 | N79: 42065747 | O79: 0 | P79: 0 | Q79: 0 | R79: 0 | S79: 0 | T79: 0 | U79: 0 | V79: 0 | W79: 0 | X79: 0 | Y79: 0 | Z79: 0 | AA79: 0.00 | AB79: 0.00 | AC79: 0.00 | AD79: 0.00 | AE79: 0.00 | AF79: 0.00 | AG79: 0.00 | AH79: 0.00 | AI79: 0.00 | AJ79: 0.00 | AK79: 0.00 | AL79: 0.00 | AM79: 0.00 | AN79: =IF(MengeInEEGSummieren(M79),AM79,0) ->  | AO79: 0.00 | AP79: 0.00 | AS79: 0 | AT79: 0
A80: WaK232------10 | B80: Wasser | C80: 2010 | D80: 0,5-2 MW, Anlage < 5 MW | F80: 8.65 | G80: 8.65 | H80: =AM80 -> 0 | I80: 0.00 | J80: =SUM(O80:Z80,AT80) -> 0 | K80: =SUM(AA80:AL80,AS80) -> 0.00 | L80: 0 | M80: 32964608 | N80: 42065747 | O80: 0 | P80: 0 | Q80: 0 | R80: 0 | S80: 0 | T80: 0 | U80: 0 | V80: 0 | W80: 0 | X80: 0 | Y80: 0 | Z80: 0 | AA80: 0.00 | AB80: 0.00 | AC80: 0.00 | AD80: 0.00 | AE80: 0.00 | AF80: 0.00 | AG80: 0.00 | AH80: 0.00 | AI80: 0.00 | AJ80: 0.00 | AK80: 0.00 | AL80: 0.00 | AM80: 0.00 | AN80: =IF(MengeInEEGSummieren(M80),AM80,0) ->  | AO80: =IF(AQ80,$H80,0) -> 0.00 | AP80: =IF(AR80,$H80,0) -> 0.00 | AS80: 0 | AT80: 0 | AU80: =EVFlag(M80) -> 
A81: WaK233------10 | B81: Wasser | C81: 2010 | D81: 2-5 MW, Anlage < 5 MW | F81: 7.65 | G81: 7.65 | H81: 0 | I81: 0.00 | J81: 0 | K81: 0.00 | L81: 0 | M81: 32964608 | N81: 42065747 | O81: 0 | P81: 0 | Q81: 0 | R81: 0 | S81: 0 | T81: 0 | U81: 0 | V81: 0 | W81: 0 | X81: 0 | Y81: 0 | Z81: 0 | AA81: 0.00 | AB81: 0.00 | AC81: 0.00 | AD81: 0.00 | AE81: 0.00 | AF81: 0.00 | AG81: 0.00 | AH81: 0.00 | AI81: 0.00 | AJ81: 0.00 | AK81: 0.00 | AL81: 0.00 | AM81: 0.00 | AN81: =IF(MengeInEEGSummieren(M81),AM81,0) ->  | AO81: 0.00 | AP81: 0.00 | AS81: 0 | AT81: 0
A82: WaK234------10 | B82: Wasser | C82: 2010 | D82: 0,5-5 MW, Anlage < 5 MW, Modernisierung | F82: 8.65 | G82: 8.65 | H82: 0 | I82: 0.00 | J82: 0 | K82: 0.00 | L82: 0 | M82: 32964608 | N82: 42065747 | O82: 0 | P82: 0 | Q82: 0 | R82: 0 | S82: 0 | T82: 0 | U82: 0 | V82: 0 | W82: 0 | X82: 0 | Y82: 0 | Z82: 0 | AA82: 0.00 | AB82: 0.00 | AC82: 0.00 | AD82: 0.00 | AE82: 0.00 | AF82: 0.00 | AG82: 0.00 | AH82: 0.00 | AI82: 0.00 | AJ82: 0.00 | AK82: 0.00 | AL82: 0.00 | AM82: 0.00 | AN82: =IF(MengeInEEGSummieren(M82),AM82,0) ->  | AO82: 0.00 | AP82: 0.00 | AS82: 0 | AT82: 0
A83: WaK235------10 | B83: Wasser | C83: 2010 | D83: >5 MW, Zubau 0-0,5 MW | F83: 7.22 | G83: 7.22 | H83: 0 | I83: 0.00 | J83: 0 | K83: 0.00 | L83: 0 | M83: 32964608 | N83: 42065747 | O83: 0 | P83: 0 | Q83: 0 | R83: 0 | S83: 0 | T83: 0 | U83: 0 | V83: 0 | W83: 0 | X83: 0 | Y83: 0 | Z83: 0 | AA83: 0.00 | AB83: 0.00 | AC83: 0.00 | AD83: 0.00 | AE83: 0.00 | AF83: 0.00 | AG83: 0.00 | AH83: 0.00 | AI83: 0.00 | AJ83: 0.00 | AK83: 0.00 | AL83: 0.00 | AM83: 0.00 | AN83: =IF(MengeInEEGSummieren(M83),AM83,0) ->  | AO83: 0.00 | AP83: 0.00 | AS83: 0 | AT83: 0
A84: WaK236------10 | B84: Wasser | C84: 2010 | D84: >5 MW, Zubau 0,5-10 MW | F84: 6.26 | G84: 6.26 | H84: 0 | I84: 0.00 | J84: 0 | K84: 0.00 | L84: 0 | M84: 32964608 | N84: 42065747 | O84: 0 | P84: 0 | Q84: 0 | R84: 0 | S84: 0 | T84: 0 | U84: 0 | V84: 0 | W84: 0 | X84: 0 | Y84: 0 | Z84: 0 | AA84: 0.00 | AB84: 0.00 | AC84: 0.00 | AD84: 0.00 | AE84: 0.00 | AF84: 0.00 | AG84: 0.00 | AH84: 0.00 | AI84: 0.00 | AJ84: 0.00 | AK84: 0.00 | AL84: 0.00 | AM84: 0.00 | AN84: =IF(MengeInEEGSummieren(M84),AM84,0) ->  | AO84: 0.00 | AP84: 0.00 | AS84: 0 | AT84: 0
A85: WaK237------10 | B85: Wasser | C85: 2010 | D85: >5 MW, Zubau 10-20 MW | F85: 5.74 | G85: 5.74 | H85: 0 | I85: 0.00 | J85: 0 | K85: 0.00 | L85: 0 | M85: 32964608 | N85: 42065747 | O85: 0 | P85: 0 | Q85: 0 | R85: 0 | S85: 0 | T85: 0 | U85: 0 | V85: 0 | W85: 0 | X85: 0 | Y85: 0 | Z85: 0 | AA85: 0.00 | AB85: 0.00 | AC85: 0.00 | AD85: 0.00 | AE85: 0.00 | AF85: 0.00 | AG85: 0.00 | AH85: 0.00 | AI85: 0.00 | AJ85: 0.00 | AK85: 0.00 | AL85: 0.00 | AM85: 0.00 | AN85: =IF(MengeInEEGSummieren(M85),AM85,0) ->  | AO85: 0.00 | AP85: 0.00 | AS85: 0 | AT85: 0
A86: WaK238------10 | B86: Wasser | C86: 2010 | D86: >5 MW, Zubau 20-50 MW | F86: 4.30 | G86: 4.30 | H86: 0 | I86: 0.00 | J86: 0 | K86: 0.00 | L86: 0 | M86: 32964608 | N86: 42065747 | O86: 0 | P86: 0 | Q86: 0 | R86: 0 | S86: 0 | T86: 0 | U86: 0 | V86: 0 | W86: 0 | X86: 0 | Y86: 0 | Z86: 0 | AA86: 0.00 | AB86: 0.00 | AC86: 0.00 | AD86: 0.00 | AE86: 0.00 | AF86: 0.00 | AG86: 0.00 | AH86: 0.00 | AI86: 0.00 | AJ86: 0.00 | AK86: 0.00 | AL86: 0.00 | AM86: 0.00 | AN86: =IF(MengeInEEGSummieren(M86),AM86,0) ->  | AO86: 0.00 | AP86: 0.00 | AS86: 0 | AT86: 0
A87: WaK239------10 | B87: Wasser | C87: 2010 | D87: >5 MW, Zubau >50 MW | F87: 3.47 | G87: 3.47 | H87: 0 | I87: 0.00 | J87: 0 | K87: 0.00 | L87: 0 | M87: 32964608 | N87: 42065747 | O87: 0 | P87: 0 | Q87: 0 | R87: 0 | S87: 0 | T87: 0 | U87: 0 | V87: 0 | W87: 0 | X87: 0 | Y87: 0 | Z87: 0 | AA87: 0.00 | AB87: 0.00 | AC87: 0.00 | AD87: 0.00 | AE87: 0.00 | AF87: 0.00 | AG87: 0.00 | AH87: 0.00 | AI87: 0.00 | AJ87: 0.00 | AK87: 0.00 | AL87: 0.00 | AM87: 0.00 | AN87: =IF(MengeInEEGSummieren(M87),AM87,0) ->  | AO87: 0.00 | AP87: 0.00 | AS87: 0 | AT87: 0
AM88: 0.00 | AN88: =IF(MengeInEEGSummieren(M88),AM88,0) ->  | AO88: 0.00 | AP88: 0.00 | AS88: 0 | AT88: 0
A89: WaK230------11 | B89: Wasser | C89: 2011 | D89: 0-0.5 MW, Anlage < 5 MW | F89: 12.67 | G89: 12.67 | H89: 0 | I89: 0.00 | J89: 0 | K89: 0.00 | L89: 0 | M89: 32964608 | N89: 42065747 | O89: 0 | P89: 0 | Q89: 0 | R89: 0 | S89: 0 | T89: 0 | U89: 0 | V89: 0 | W89: 0 | X89: 0 | Y89: 0 | Z89: 0 | AA89: 0.00 | AB89: 0.00 | AC89: 0.00 | AD89: 0.00 | AE89: 0.00 | AF89: 0.00 | AG89: 0.00 | AH89: 0.00 | AI89: 0.00 | AJ89: 0.00 | AK89: 0.00 | AL89: 0.00 | AM89: 0.00 | AN89: =IF(MengeInEEGSummieren(M89),AM89,0) ->  | AO89: 0.00 | AP89: 0.00 | AS89: 0 | AT89: 0
A90: WaK231------11 | B90: Wasser | C90: 2011 | D90: 0-0.5 MW, Anlage < 5 MW, Modernisierung | F90: 11.67 | G90: 11.67 | H90: 0 | I90: 0.00 | J90: 0 | K90: 0.00 | L90: 0 | M90: 32964608 | N90: 42065747 | O90: 0 | P90: 0 | Q90: 0 | R90: 0 | S90: 0 | T90: 0 | U90: 0 | V90: 0 | W90: 0 | X90: 0 | Y90: 0 | Z90: 0 | AA90: 0.00 | AB90: 0.00 | AC90: 0.00 | AD90: 0.00 | AE90: 0.00 | AF90: 0.00 | AG90: 0.00 | AH90: 0.00 | AI90: 0.00 | AJ90: 0.00 | AK90: 0.00 | AL90: 0.00 | AM90: 0.00 | AN90: =IF(MengeInEEGSummieren(M90),AM90,0) ->  | AO90: 0.00 | AP90: 0.00 | AS90: 0 | AT90: 0
A91: WaK232------11 | B91: Wasser | C91: 2011 | D91: 0.5-2 MW, Anlage < 5 MW | F91: 8.65 | G91: 8.65 | H91: 0 | I91: 0.00 | J91: 0 | K91: 0.00 | L91: 0 | M91: 32964608 | N91: 42065747 | O91: 0 | P91: 0 | Q91: 0 | R91: 0 | S91: 0 | T91: 0 | U91: 0 | V91: 0 | W91: 0 | X91: 0 | Y91: 0 | Z91: 0 | AA91: 0.00 | AB91: 0.00 | AC91: 0.00 | AD91: 0.00 | AE91: 0.00 | AF91: 0.00 | AG91: 0.00 | AH91: 0.00 | AI91: 0.00 | AJ91: 0.00 | AK91: 0.00 | AL91: 0.00 | AM91: 0.00 | AN91: =IF(MengeInEEGSummieren(M91),AM91,0) ->  | AO91: 0.00 | AP91: 0.00 | AS91: 0 | AT91: 0
A92: WaK233------11 | B92: Wasser | C92: 2011 | D92: 2-5 MW, Anlage < 5 MW | F92: 7.65 | G92: 7.65 | H92: 0 | I92: 0.00 | J92: 0 | K92: 0.00 | L92: 0 | M92: 32964608 | N92: 42065747 | O92: 0 | P92: 0 | Q92: 0 | R92: 0 | S92: 0 | T92: 0 | U92: 0 | V92: 0 | W92: 0 | X92: 0 | Y92: 0 | Z92: 0 | AA92: 0.00 | AB92: 0.00 | AC92: 0.00 | AD92: 0.00 | AE92: 0.00 | AF92: 0.00 | AG92: 0.00 | AH92: 0.00 | AI92: 0.00 | AJ92: 0.00 | AK92: 0.00 | AL92: 0.00 | AM92: 0.00 | AN92: =IF(MengeInEEGSummieren(M92),AM92,0) ->  | AO92: 0.00 | AP92: 0.00 | AS92: 0 | AT92: 0
A93: WaK234------11 | B93: Wasser | C93: 2011 | D93: 0.5-5 MW, Anlage < 5 MW, Modernisierung | F93: 8.65 | G93: 8.65 | H93: 0 | I93: 0.00 | J93: 0 | K93: 0.00 | L93: 0 | M93: 32964608 | N93: 42065747 | O93: 0 | P93: 0 | Q93: 0 | R93: 0 | S93: 0 | T93: 0 | U93: 0 | V93: 0 | W93: 0 | X93: 0 | Y93: 0 | Z93: 0 | AA93: 0.00 | AB93: 0.00 | AC93: 0.00 | AD93: 0.00 | AE93: 0.00 | AF93: 0.00 | AG93: 0.00 | AH93: 0.00 | AI93: 0.00 | AJ93: 0.00 | AK93: 0.00 | AL93: 0.00 | AM93: 0.00 | AN93: =IF(MengeInEEGSummieren(M93),AM93,0) ->  | AO93: 0.00 | AP93: 0.00 | AS93: 0 | AT93: 0
A94: WaK235------11 | B94: Wasser | C94: 2011 | D94: >5 MW, Zubau 0-0.5 MW | F94: 7.14 | G94: 7.14 | H94: 0 | I94: 0.00 | J94: 0 | K94: 0.00 | L94: 0 | M94: 32964608 | N94: 42065747 | O94: 0 | P94: 0 | Q94: 0 | R94: 0 | S94: 0 | T94: 0 | U94: 0 | V94: 0 | W94: 0 | X94: 0 | Y94: 0 | Z94: 0 | AA94: 0.00 | AB94: 0.00 | AC94: 0.00 | AD94: 0.00 | AE94: 0.00 | AF94: 0.00 | AG94: 0.00 | AH94: 0.00 | AI94: 0.00 | AJ94: 0.00 | AK94: 0.00 | AL94: 0.00 | AM94: 0.00 | AN94: =IF(MengeInEEGSummieren(M94),AM94,0) ->  | AO94: 0.00 | AP94: 0.00 | AS94: 0 | AT94: 0
A95: WaK236------11 | B95: Wasser | C95: 2011 | D95: >5 MW, Zubau 0.5-10 MW | F95: 6.19 | G95: 6.19 | H95: 0 | I95: 0.00 | J95: 0 | K95: 0.00 | L95: 0 | M95: 32964608 | N95: 42065747 | O95: 0 | P95: 0 | Q95: 0 | R95: 0 | S95: 0 | T95: 0 | U95: 0 | V95: 0 | W95: 0 | X95: 0 | Y95: 0 | Z95: 0 | AA95: 0.00 | AB95: 0.00 | AC95: 0.00 | AD95: 0.00 | AE95: 0.00 | AF95: 0.00 | AG95: 0.00 | AH95: 0.00 | AI95: 0.00 | AJ95: 0.00 | AK95: 0.00 | AL95: 0.00 | AM95: 0.00 | AN95: =IF(MengeInEEGSummieren(M95),AM95,0) ->  | AO95: 0.00 | AP95: 0.00 | AS95: 0 | AT95: 0
A96: WaK237------11 | B96: Wasser | C96: 2011 | D96: >5 MW, Zubau 10-20 MW | F96: 5.68 | G96: 5.68 | H96: 0 | I96: 0.00 | J96: 0 | K96: 0.00 | L96: 0 | M96: 32964608 | N96: 42065747 | O96: 0 | P96: 0 | Q96: 0 | R96: 0 | S96: 0 | T96: 0 | U96: 0 | V96: 0 | W96: 0 | X96: 0 | Y96: 0 | Z96: 0 | AA96: 0.00 | AB96: 0.00 | AC96: 0.00 | AD96: 0.00 | AE96: 0.00 | AF96: 0.00 | AG96: 0.00 | AH96: 0.00 | AI96: 0.00 | AJ96: 0.00 | AK96: 0.00 | AL96: 0.00 | AM96: 0.00 | AN96: =IF(MengeInEEGSummieren(M96),AM96,0) ->  | AO96: 0.00 | AP96: 0.00 | AS96: 0 | AT96: 0
A97: WaK238------11 | B97: Wasser | C97: 2011 | D97: >5 MW, Zubau 20-50 MW | F97: 4.25 | G97: 4.25 | H97: 0 | I97: 0.00 | J97: 0 | K97: 0.00 | L97: 0 | M97: 32964608 | N97: 42065747 | O97: 0 | P97: 0 | Q97: 0 | R97: 0 | S97: 0 | T97: 0 | U97: 0 | V97: 0 | W97: 0 | X97: 0 | Y97: 0 | Z97: 0 | AA97: 0.00 | AB97: 0.00 | AC97: 0.00 | AD97: 0.00 | AE97: 0.00 | AF97: 0.00 | AG97: 0.00 | AH97: 0.00 | AI97: 0.00 | AJ97: 0.00 | AK97: 0.00 | AL97: 0.00 | AM97: 0.00 | AN97: =IF(MengeInEEGSummieren(M97),AM97,0) ->  | AO97: 0.00 | AP97: 0.00 | AS97: 0 | AT97: 0
A98: WaK239------11 | B98: Wasser | C98: 2011 | D98: >5 MW, Zubau >50 MW | F98: 3.43 | G98: 3.43 | H98: 0 | I98: 0.00 | J98: 0 | K98: 0.00 | L98: 0 | M98: 32964608 | N98: 42065747 | O98: 0 | P98: 0 | Q98: 0 | R98: 0 | S98: 0 | T98: 0 | U98: 0 | V98: 0 | W98: 0 | X98: 0 | Y98: 0 | Z98: 0 | AA98: 0.00 | AB98: 0.00 | AC98: 0.00 | AD98: 0.00 | AE98: 0.00 | AF98: 0.00 | AG98: 0.00 | AH98: 0.00 | AI98: 0.00 | AJ98: 0.00 | AK98: 0.00 | AL98: 0.00 | AM98: 0.00 | AN98: =IF(MengeInEEGSummieren(M98),AM98,0) ->  | AO98: 0.00 | AP98: 0.00 | AS98: 0 | AT98: 0
AM99: 0.00 | AN99: =IF(MengeInEEGSummieren(M99),AM99,0) ->  | AO99: 0.00 | AP99: 0.00 | AS99: 0 | AT99: 0
A100: WaK230BS----12 | B100: Wasser | C100: 2012 | D100: 0-0,5 MW, Anlage 0,5-5 MW, wasserrechtliche Genehmigung vor 01.01.2012 (Bestandsschutz nach § 66 Abs | F100: 12.67 | G100: 12.67 | H100: 0 | I100: 0.00 | J100: 0 | K100: 0.00 | L100: 0 | M100: 32964608 | N100: 42065747 | O100: 0 | P100: 0 | Q100: 0 | R100: 0 | S100: 0 | T100: 0 | U100: 0 | V100: 0 | W100: 0 | X100: 0 | Y100: 0 | Z100: 0 | AA100: 0.00 | AB100: 0.00 | AC100: 0.00 | AD100: 0.00 | AE100: 0.00 | AF100: 0.00 | AG100: 0.00 | AH100: 0.00 | AI100: 0.00 | AJ100: 0.00 | AK100: 0.00 | AL100: 0.00 | AM100: 0.00 | AN100: =IF(MengeInEEGSummieren(M100),AM100,0) ->  | AO100: 0.00 | AP100: 0.00 | AS100: 0 | AT100: 0
A101: WaK231BS----12 | B101: Wasser | C101: 2012 | D101: 0-0,5 MW, Anlage <5 MW mit IB vor 01.08.2004, Modernisierung (Bestandsschutz nach § 66 Abs. 14 EEG 2 | F101: 11.67 | G101: 11.67 | H101: 0 | I101: 0.00 | J101: 0 | K101: 0.00 | L101: 0 | M101: 32964608 | N101: 42065747 | O101: 0 | P101: 0 | Q101: 0 | R101: 0 | S101: 0 | T101: 0 | U101: 0 | V101: 0 | W101: 0 | X101: 0 | Y101: 0 | Z101: 0 | AA101: 0.00 | AB101: 0.00 | AC101: 0.00 | AD101: 0.00 | AE101: 0.00 | AF101: 0.00 | AG101: 0.00 | AH101: 0.00 | AI101: 0.00 | AJ101: 0.00 | AK101: 0.00 | AL101: 0.00 | AM101: 0.00 | AN101: =IF(MengeInEEGSummieren(M101),AM101,0) ->  | AO101: 0.00 | AP101: 0.00 | AS101: 0 | AT101: 0
A102: WaK232BS----12 | B102: Wasser | C102: 2012 | D102: 0,5-2 MW, Anlage 0,5-5 MW, wasserrechtliche Genehmigung vor 01.01.2012 (Bestandsschutz nach § 66 Abs | F102: 8.65 | G102: 8.65 | H102: 0 | I102: 0.00 | J102: 0 | K102: 0.00 | L102: 0 | M102: 32964608 | N102: 42065747 | O102: 0 | P102: 0 | Q102: 0 | R102: 0 | S102: 0 | T102: 0 | U102: 0 | V102: 0 | W102: 0 | X102: 0 | Y102: 0 | Z102: 0 | AA102: 0.00 | AB102: 0.00 | AC102: 0.00 | AD102: 0.00 | AE102: 0.00 | AF102: 0.00 | AG102: 0.00 | AH102: 0.00 | AI102: 0.00 | AJ102: 0.00 | AK102: 0.00 | AL102: 0.00 | AM102: 0.00 | AN102: =IF(MengeInEEGSummieren(M102),AM102,0) ->  | AO102: 0.00 | AP102: 0.00 | AS102: 0 | AT102: 0
A103: WaK233BS----12 | B103: Wasser | C103: 2012 | D103: 2-5 MW, Anlage 0,5-5 MW, wasserrechtliche Genehmigung vor 01.01.2012 (Bestandsschutz nach § 66 Abs.5 | F103: 7.65 | G103: 7.65 | H103: 0 | I103: 0.00 | J103: 0 | K103: 0.00 | L103: 0 | M103: 32964608 | N103: 42065747 | O103: 0 | P103: 0 | Q103: 0 | R103: 0 | S103: 0 | T103: 0 | U103: 0 | V103: 0 | W103: 0 | X103: 0 | Y103: 0 | Z103: 0 | AA103: 0.00 | AB103: 0.00 | AC103: 0.00 | AD103: 0.00 | AE103: 0.00 | AF103: 0.00 | AG103: 0.00 | AH103: 0.00 | AI103: 0.00 | AJ103: 0.00 | AK103: 0.00 | AL103: 0.00 | AM103: 0.00 | AN103: =IF(MengeInEEGSummieren(M103),AM103,0) ->  | AO103: 0.00 | AP103: 0.00 | AS103: 0 | AT103: 0
A104: WaK234BS----12 | B104: Wasser | C104: 2012 | D104: 0,5-5 MW, Anlage <5 MW mit IB vor 01.08.2004, Modernisierung (Bestandsschutz nach § 66 Abs. 14 EEG 2 | F104: 8.65 | G104: 8.65 | H104: 0 | I104: 0.00 | J104: 0 | K104: 0.00 | L104: 0 | M104: 32964608 | N104: 42065747 | O104: 0 | P104: 0 | Q104: 0 | R104: 0 | S104: 0 | T104: 0 | U104: 0 | V104: 0 | W104: 0 | X104: 0 | Y104: 0 | Z104: 0 | AA104: 0.00 | AB104: 0.00 | AC104: 0.00 | AD104: 0.00 | AE104: 0.00 | AF104: 0.00 | AG104: 0.00 | AH104: 0.00 | AI104: 0.00 | AJ104: 0.00 | AK104: 0.00 | AL104: 0.00 | AM104: 0.00 | AN104: =IF(MengeInEEGSummieren(M104),AM104,0) ->  | AO104: 0.00 | AP104: 0.00 | AS104: 0 | AT104: 0
A105: WaK230------12 | B105: Wasser | C105: 2012 | D105: 0-0,5 MW | F105: 12.70 | G105: 12.70 | H105: 0 | I105: 0.00 | J105: 0 | K105: 0.00 | L105: 0 | M105: 32964608 | N105: 42065747 | O105: 0 | P105: 0 | Q105: 0 | R105: 0 | S105: 0 | T105: 0 | U105: 0 | V105: 0 | W105: 0 | X105: 0 | Y105: 0 | Z105: 0 | AA105: 0.00 | AB105: 0.00 | AC105: 0.00 | AD105: 0.00 | AE105: 0.00 | AF105: 0.00 | AG105: 0.00 | AH105: 0.00 | AI105: 0.00 | AJ105: 0.00 | AK105: 0.00 | AL105: 0.00 | AM105: 0.00 | AN105: =IF(MengeInEEGSummieren(M105),AM105,0) ->  | AO105: 0.00 | AP105: 0.00 | AS105: 0 | AT105: 0
A106: WaK231------12 | B106: Wasser | C106: 2012 | D106: 0,5-2 MW | F106: 8.30 | G106: 8.30 | H106: 0 | I106: 0.00 | J106: 0 | K106: 0.00 | L106: 0 | M106: 32964608 | N106: 42065747 | O106: 0 | P106: 0 | Q106: 0 | R106: 0 | S106: 0 | T106: 0 | U106: 0 | V106: 0 | W106: 0 | X106: 0 | Y106: 0 | Z106: 0 | AA106: 0.00 | AB106: 0.00 | AC106: 0.00 | AD106: 0.00 | AE106: 0.00 | AF106: 0.00 | AG106: 0.00 | AH106: 0.00 | AI106: 0.00 | AJ106: 0.00 | AK106: 0.00 | AL106: 0.00 | AM106: 0.00 | AN106: =IF(MengeInEEGSummieren(M106),AM106,0) ->  | AO106: 0.00 | AP106: 0.00 | AS106: 0 | AT106: 0
A107: WaK232------12 | B107: Wasser | C107: 2012 | D107: 2-5 MW | F107: 6.30 | G107: 6.30 | H107: 0 | I107: 0.00 | J107: 0 | K107: 0.00 | L107: 0 | M107: 32964608 | N107: 42065747 | O107: 0 | P107: 0 | Q107: 0 | R107: 0 | S107: 0 | T107: 0 | U107: 0 | V107: 0 | W107: 0 | X107: 0 | Y107: 0 | Z107: 0 | AA107: 0.00 | AB107: 0.00 | AC107: 0.00 | AD107: 0.00 | AE107: 0.00 | AF107: 0.00 | AG107: 0.00 | AH107: 0.00 | AI107: 0.00 | AJ107: 0.00 | AK107: 0.00 | AL107: 0.00 | AM107: 0.00 | AN107: =IF(MengeInEEGSummieren(M107),AM107,0) ->  | AO107: 0.00 | AP107: 0.00 | AS107: 0 | AT107: 0
A108: WaK233------12 | B108: Wasser | C108: 2012 | D108: 5-10 MW | F108: 5.50 | G108: 5.50 | H108: 0 | I108: 0.00 | J108: 0 | K108: 0.00 | L108: 0 | M108: 32964608 | N108: 42065747 | O108: 0 | P108: 0 | Q108: 0 | R108: 0 | S108: 0 | T108: 0 | U108: 0 | V108: 0 | W108: 0 | X108: 0 | Y108: 0 | Z108: 0 | AA108: 0.00 | AB108: 0.00 | AC108: 0.00 | AD108: 0.00 | AE108: 0.00 | AF108: 0.00 | AG108: 0.00 | AH108: 0.00 | AI108: 0.00 | AJ108: 0.00 | AK108: 0.00 | AL108: 0.00 | AM108: 0.00 | AN108: =IF(MengeInEEGSummieren(M108),AM108,0) ->  | AO108: 0.00 | AP108: 0.00 | AS108: 0 | AT108: 0
A109: WaK234------12 | B109: Wasser | C109: 2012 | D109: 10-20 MW | F109: 5.30 | G109: 5.30 | H109: 0 | I109: 0.00 | J109: 0 | K109: 0.00 | L109: 0 | M109: 32964608 | N109: 42065747 | O109: 0 | P109: 0 | Q109: 0 | R109: 0 | S109: 0 | T109: 0 | U109: 0 | V109: 0 | W109: 0 | X109: 0 | Y109: 0 | Z109: 0 | AA109: 0.00 | AB109: 0.00 | AC109: 0.00 | AD109: 0.00 | AE109: 0.00 | AF109: 0.00 | AG109: 0.00 | AH109: 0.00 | AI109: 0.00 | AJ109: 0.00 | AK109: 0.00 | AL109: 0.00 | AM109: 0.00 | AN109: =IF(MengeInEEGSummieren(M109),AM109,0) ->  | AO109: 0.00 | AP109: 0.00 | AS109: 0 | AT109: 0
A110: WaK235------12 | B110: Wasser | C110: 2012 | D110: 20-50 MW | F110: 4.20 | G110: 4.20 | H110: 0 | I110: 0.00 | J110: 0 | K110: 0.00 | L110: 0 | M110: 32964608 | N110: 42065747 | O110: 0 | P110: 0 | Q110: 0 | R110: 0 | S110: 0 | T110: 0 | U110: 0 | V110: 0 | W110: 0 | X110: 0 | Y110: 0 | Z110: 0 | AA110: 0.00 | AB110: 0.00 | AC110: 0.00 | AD110: 0.00 | AE110: 0.00 | AF110: 0.00 | AG110: 0.00 | AH110: 0.00 | AI110: 0.00 | AJ110: 0.00 | AK110: 0.00 | AL110: 0.00 | AM110: 0.00 | AN110: =IF(MengeInEEGSummieren(M110),AM110,0) ->  | AO110: 0.00 | AP110: 0.00 | AS110: 0 | AT110: 0
A111: WaK236------12 | B111: Wasser | C111: 2012 | D111: >50 MW | F111: 3.40 | G111: 3.40 | H111: 0 | I111: 0.00 | J111: 0 | K111: 0.00 | L111: 0 | M111: 32964608 | N111: 42065747 | O111: 0 | P111: 0 | Q111: 0 | R111: 0 | S111: 0 | T111: 0 | U111: 0 | V111: 0 | W111: 0 | X111: 0 | Y111: 0 | Z111: 0 | AA111: 0.00 | AB111: 0.00 | AC111: 0.00 | AD111: 0.00 | AE111: 0.00 | AF111: 0.00 | AG111: 0.00 | AH111: 0.00 | AI111: 0.00 | AJ111: 0.00 | AK111: 0.00 | AL111: 0.00 | AM111: 0.00 | AN111: =IF(MengeInEEGSummieren(M111),AM111,0) ->  | AO111: 0.00 | AP111: 0.00 | AS111: 0 | AT111: 0
A112: WaK230M-----12 | B112: Wasser | C112: 2012 | D112: 0-0,5 MW, IB vor 01.01.2009, Modernisierung 2012 | F112: 12.70 | G112: 12.70 | H112: 0 | I112: 0.00 | J112: 0 | K112: 0.00 | L112: 0 | M112: 32964608 | N112: 42065747 | O112: 0 | P112: 0 | Q112: 0 | R112: 0 | S112: 0 | T112: 0 | U112: 0 | V112: 0 | W112: 0 | X112: 0 | Y112: 0 | Z112: 0 | AA112: 0.00 | AB112: 0.00 | AC112: 0.00 | AD112: 0.00 | AE112: 0.00 | AF112: 0.00 | AG112: 0.00 | AH112: 0.00 | AI112: 0.00 | AJ112: 0.00 | AK112: 0.00 | AL112: 0.00 | AM112: 0.00 | AN112: =IF(MengeInEEGSummieren(M112),AM112,0) ->  | AO112: 0.00 | AP112: 0.00 | AS112: 0 | AT112: 0
A113: WaK231M-----12 | B113: Wasser | C113: 2012 | D113: 0,5-2 MW, IB vor 01.01.2009, Modernisierung 2012 | F113: 8.30 | G113: 8.30 | H113: 0 | I113: 0.00 | J113: 0 | K113: 0.00 | L113: 0 | M113: 32964608 | N113: 42065747 | O113: 0 | P113: 0 | Q113: 0 | R113: 0 | S113: 0 | T113: 0 | U113: 0 | V113: 0 | W113: 0 | X113: 0 | Y113: 0 | Z113: 0 | AA113: 0.00 | AB113: 0.00 | AC113: 0.00 | AD113: 0.00 | AE113: 0.00 | AF113: 0.00 | AG113: 0.00 | AH113: 0.00 | AI113: 0.00 | AJ113: 0.00 | AK113: 0.00 | AL113: 0.00 | AM113: 0.00 | AN113: =IF(MengeInEEGSummieren(M113),AM113,0) ->  | AO113: 0.00 | AP113: 0.00 | AS113: 0 | AT113: 0
A114: WaK232M-----12 | B114: Wasser | C114: 2012 | D114: 2-5 MW, IB vor 01.01.2009, Modernisierung 2012 | F114: 6.30 | G114: 6.30 | H114: 0 | I114: 0.00 | J114: 0 | K114: 0.00 | L114: 0 | M114: 32964608 | N114: 42065747 | O114: 0 | P114: 0 | Q114: 0 | R114: 0 | S114: 0 | T114: 0 | U114: 0 | V114: 0 | W114: 0 | X114: 0 | Y114: 0 | Z114: 0 | AA114: 0.00 | AB114: 0.00 | AC114: 0.00 | AD114: 0.00 | AE114: 0.00 | AF114: 0.00 | AG114: 0.00 | AH114: 0.00 | AI114: 0.00 | AJ114: 0.00 | AK114: 0.00 | AL114: 0.00 | AM114: 0.00 | AN114: =IF(MengeInEEGSummieren(M114),AM114,0) ->  | AO114: 0.00 | AP114: 0.00 | AS114: 0 | AT114: 0
A115: WaK233M-----12 | B115: Wasser | C115: 2012 | D115: 5-10 MW, IB vor 01.01.2009, Modernisierung 2012 | F115: 5.50 | G115: 5.50 | H115: 0 | I115: 0.00 | J115: 0 | K115: 0.00 | L115: 0 | M115: 32964608 | N115: 42065747 | O115: 0 | P115: 0 | Q115: 0 | R115: 0 | S115: 0 | T115: 0 | U115: 0 | V115: 0 | W115: 0 | X115: 0 | Y115: 0 | Z115: 0 | AA115: 0.00 | AB115: 0.00 | AC115: 0.00 | AD115: 0.00 | AE115: 0.00 | AF115: 0.00 | AG115: 0.00 | AH115: 0.00 | AI115: 0.00 | AJ115: 0.00 | AK115: 0.00 | AL115: 0.00 | AM115: 0.00 | AN115: =IF(MengeInEEGSummieren(M115),AM115,0) ->  | AO115: 0.00 | AP115: 0.00 | AS115: 0 | AT115: 0
A116: WaK234M-----12 | B116: Wasser | C116: 2012 | D116: 10-20 MW, IB vor 01.01.2009, Modernisierung 2012 | F116: 5.30 | G116: 5.30 | H116: 0 | I116: 0.00 | J116: 0 | K116: 0.00 | L116: 0 | M116: 32964608 | N116: 42065747 | O116: 0 | P116: 0 | Q116: 0 | R116: 0 | S116: 0 | T116: 0 | U116: 0 | V116: 0 | W116: 0 | X116: 0 | Y116: 0 | Z116: 0 | AA116: 0.00 | AB116: 0.00 | AC116: 0.00 | AD116: 0.00 | AE116: 0.00 | AF116: 0.00 | AG116: 0.00 | AH116: 0.00 | AI116: 0.00 | AJ116: 0.00 | AK116: 0.00 | AL116: 0.00 | AM116: 0.00 | AN116: =IF(MengeInEEGSummieren(M116),AM116,0) ->  | AO116: 0.00 | AP116: 0.00 | AS116: 0 | AT116: 0
A117: WaK235M-----12 | B117: Wasser | C117: 2012 | D117: 20-50 MW, IB vor 01.01.2009, Modernisierung 2012 | F117: 4.20 | G117: 4.20 | H117: 0 | I117: 0.00 | J117: 0 | K117: 0.00 | L117: 0 | M117: 32964608 | N117: 42065747 | O117: 0 | P117: 0 | Q117: 0 | R117: 0 | S117: 0 | T117: 0 | U117: 0 | V117: 0 | W117: 0 | X117: 0 | Y117: 0 | Z117: 0 | AA117: 0.00 | AB117: 0.00 | AC117: 0.00 | AD117: 0.00 | AE117: 0.00 | AF117: 0.00 | AG117: 0.00 | AH117: 0.00 | AI117: 0.00 | AJ117: 0.00 | AK117: 0.00 | AL117: 0.00 | AM117: 0.00 | AN117: =IF(MengeInEEGSummieren(M117),AM117,0) ->  | AO117: 0.00 | AP117: 0.00 | AS117: 0 | AT117: 0
A118: WaK236M-----12 | B118: Wasser | C118: 2012 | D118: >50 MW, IB vor 01.01.2009, Modernisierung 2012 | F118: 3.40 | G118: 3.40 | H118: 0 | I118: 0.00 | J118: 0 | K118: 0.00 | L118: 0 | M118: 32964608 | N118: 42065747 | O118: 0 | P118: 0 | Q118: 0 | R118: 0 | S118: 0 | T118: 0 | U118: 0 | V118: 0 | W118: 0 | X118: 0 | Y118: 0 | Z118: 0 | AA118: 0.00 | AB118: 0.00 | AC118: 0.00 | AD118: 0.00 | AE118: 0.00 | AF118: 0.00 | AG118: 0.00 | AH118: 0.00 | AI118: 0.00 | AJ118: 0.00 | AK118: 0.00 | AL118: 0.00 | AM118: 0.00 | AN118: =IF(MengeInEEGSummieren(M118),AM118,0) ->  | AO118: 0.00 | AP118: 0.00 | AS118: 0 | AT118: 0
AM119: 0.00 | AN119: =IF(MengeInEEGSummieren(M119),AM119,0) ->  | AO119: 0.00 | AP119: 0.00 | AS119: 0 | AT119: 0
A120: WaK230BS----13 | B120: Wasser | C120: 2013 | D120: 0-0,5 MW, Anlage 0,5-5 MW, wasserrechtliche Genehmigung vor 01.01.2012 (Bestandsschutz nach § 66 Ab | F120: 12.67 | G120: 12.67 | H120: 0 | I120: 0.00 | J120: 0 | K120: 0.00 | L120: 0 | M120: 32964608 | N120: 42065747 | O120: 0 | P120: 0 | Q120: 0 | R120: 0 | S120: 0 | T120: 0 | U120: 0 | V120: 0 | W120: 0 | X120: 0 | Y120: 0 | Z120: 0 | AA120: 0.00 | AB120: 0.00 | AC120: 0.00 | AD120: 0.00 | AE120: 0.00 | AF120: 0.00 | AG120: 0.00 | AH120: 0.00 | AI120: 0.00 | AJ120: 0.00 | AK120: 0.00 | AL120: 0.00 | AM120: 0.00 | AN120: =IF(MengeInEEGSummieren(M120),AM120,0) ->  | AO120: 0.00 | AP120: 0.00 | AS120: 0 | AT120: 0
A121: WaK231BS----13 | B121: Wasser | C121: 2013 | D121: 0-0,5 MW, Anlage < 5 MW mit IB vor 01.08.2004, Modernisierung (Bestandsschutz nach § 66 Abs. 14 EEG | F121: 11.67 | G121: 11.67 | H121: 0 | I121: 0.00 | J121: 0 | K121: 0.00 | L121: 0 | M121: 32964608 | N121: 42065747 | O121: 0 | P121: 0 | Q121: 0 | R121: 0 | S121: 0 | T121: 0 | U121: 0 | V121: 0 | W121: 0 | X121: 0 | Y121: 0 | Z121: 0 | AA121: 0.00 | AB121: 0.00 | AC121: 0.00 | AD121: 0.00 | AE121: 0.00 | AF121: 0.00 | AG121: 0.00 | AH121: 0.00 | AI121: 0.00 | AJ121: 0.00 | AK121: 0.00 | AL121: 0.00 | AM121: 0.00 | AN121: =IF(MengeInEEGSummieren(M121),AM121,0) ->  | AO121: 0.00 | AP121: 0.00 | AS121: 0 | AT121: 0
A122: WaK232BS----13 | B122: Wasser | C122: 2013 | D122: 0,5-2 MW, Anlage 0,5-5 MW, wasserrechtliche Genehmigung vor 01.01.2012 (Bestandsschutz nach § 66 Ab | F122: 8.65 | G122: 8.65 | H122: 0 | I122: 0.00 | J122: 0 | K122: 0.00 | L122: 0 | M122: 32964608 | N122: 42065747 | O122: 0 | P122: 0 | Q122: 0 | R122: 0 | S122: 0 | T122: 0 | U122: 0 | V122: 0 | W122: 0 | X122: 0 | Y122: 0 | Z122: 0 | AA122: 0.00 | AB122: 0.00 | AC122: 0.00 | AD122: 0.00 | AE122: 0.00 | AF122: 0.00 | AG122: 0.00 | AH122: 0.00 | AI122: 0.00 | AJ122: 0.00 | AK122: 0.00 | AL122: 0.00 | AM122: 0.00 | AN122: =IF(MengeInEEGSummieren(M122),AM122,0) ->  | AO122: 0.00 | AP122: 0.00 | AS122: 0 | AT122: 0
A123: WaK233BS----13 | B123: Wasser | C123: 2013 | D123: 2-5 MW, Anlage 0,5-5 MW, wasserrechtliche Genehmigung vor 01.01.2012 (Bestandsschutz nach § 66 Abs. | F123: 7.65 | G123: 7.65 | H123: 0 | I123: 0.00 | J123: 0 | K123: 0.00 | L123: 0 | M123: 32964608 | N123: 42065747 | O123: 0 | P123: 0 | Q123: 0 | R123: 0 | S123: 0 | T123: 0 | U123: 0 | V123: 0 | W123: 0 | X123: 0 | Y123: 0 | Z123: 0 | AA123: 0.00 | AB123: 0.00 | AC123: 0.00 | AD123: 0.00 | AE123: 0.00 | AF123: 0.00 | AG123: 0.00 | AH123: 0.00 | AI123: 0.00 | AJ123: 0.00 | AK123: 0.00 | AL123: 0.00 | AM123: 0.00 | AN123: =IF(MengeInEEGSummieren(M123),AM123,0) ->  | AO123: 0.00 | AP123: 0.00 | AS123: 0 | AT123: 0
A124: WaK234BS----13 | B124: Wasser | C124: 2013 | D124: 0,5-5 MW, Anlage < 5 MW mit IB vor 01.08.2004, Modernisierung (Bestandsschutz nach § 66 Abs. 14 EEG | F124: 8.65 | G124: 8.65 | H124: 0 | I124: 0.00 | J124: 0 | K124: 0.00 | L124: 0 | M124: 32964608 | N124: 42065747 | O124: 0 | P124: 0 | Q124: 0 | R124: 0 | S124: 0 | T124: 0 | U124: 0 | V124: 0 | W124: 0 | X124: 0 | Y124: 0 | Z124: 0 | AA124: 0.00 | AB124: 0.00 | AC124: 0.00 | AD124: 0.00 | AE124: 0.00 | AF124: 0.00 | AG124: 0.00 | AH124: 0.00 | AI124: 0.00 | AJ124: 0.00 | AK124: 0.00 | AL124: 0.00 | AM124: 0.00 | AN124: =IF(MengeInEEGSummieren(M124),AM124,0) ->  | AO124: 0.00 | AP124: 0.00 | AS124: 0 | AT124: 0
A125: WaK230------13 | B125: Wasser | C125: 2013 | D125: 0-0,5 MW | F125: 12.57 | G125: 12.57 | H125: 0 | I125: 0.00 | J125: 0 | K125: 0.00 | L125: 0 | M125: 32964608 | N125: 42065747 | O125: 0 | P125: 0 | Q125: 0 | R125: 0 | S125: 0 | T125: 0 | U125: 0 | V125: 0 | W125: 0 | X125: 0 | Y125: 0 | Z125: 0 | AA125: 0.00 | AB125: 0.00 | AC125: 0.00 | AD125: 0.00 | AE125: 0.00 | AF125: 0.00 | AG125: 0.00 | AH125: 0.00 | AI125: 0.00 | AJ125: 0.00 | AK125: 0.00 | AL125: 0.00 | AM125: 0.00 | AN125: =IF(MengeInEEGSummieren(M125),AM125,0) ->  | AO125: 0.00 | AP125: 0.00 | AS125: 0 | AT125: 0
A126: WaK231------13 | B126: Wasser | C126: 2013 | D126: 0,5-2 MW | F126: 8.22 | G126: 8.22 | H126: 0 | I126: 0.00 | J126: 0 | K126: 0.00 | L126: 0 | M126: 32964608 | N126: 42065747 | O126: 0 | P126: 0 | Q126: 0 | R126: 0 | S126: 0 | T126: 0 | U126: 0 | V126: 0 | W126: 0 | X126: 0 | Y126: 0 | Z126: 0 | AA126: 0.00 | AB126: 0.00 | AC126: 0.00 | AD126: 0.00 | AE126: 0.00 | AF126: 0.00 | AG126: 0.00 | AH126: 0.00 | AI126: 0.00 | AJ126: 0.00 | AK126: 0.00 | AL126: 0.00 | AM126: 0.00 | AN126: =IF(MengeInEEGSummieren(M126),AM126,0) ->  | AO126: 0.00 | AP126: 0.00 | AS126: 0 | AT126: 0
A127: WaK232------13 | B127: Wasser | C127: 2013 | D127: 2-5 MW | F127: 6.24 | G127: 6.24 | H127: 0 | I127: 0.00 | J127: 0 | K127: 0.00 | L127: 0 | M127: 32964608 | N127: 42065747 | O127: 0 | P127: 0 | Q127: 0 | R127: 0 | S127: 0 | T127: 0 | U127: 0 | V127: 0 | W127: 0 | X127: 0 | Y127: 0 | Z127: 0 | AA127: 0.00 | AB127: 0.00 | AC127: 0.00 | AD127: 0.00 | AE127: 0.00 | AF127: 0.00 | AG127: 0.00 | AH127: 0.00 | AI127: 0.00 | AJ127: 0.00 | AK127: 0.00 | AL127: 0.00 | AM127: 0.00 | AN127: =IF(MengeInEEGSummieren(M127),AM127,0) ->  | AO127: 0.00 | AP127: 0.00 | AS127: 0 | AT127: 0
A128: WaK233------13 | B128: Wasser | C128: 2013 | D128: 5-10 MW | F128: 5.45 | G128: 5.45 | H128: 0 | I128: 0.00 | J128: 0 | K128: 0.00 | L128: 0 | M128: 32964608 | N128: 42065747 | O128: 0 | P128: 0 | Q128: 0 | R128: 0 | S128: 0 | T128: 0 | U128: 0 | V128: 0 | W128: 0 | X128: 0 | Y128: 0 | Z128: 0 | AA128: 0.00 | AB128: 0.00 | AC128: 0.00 | AD128: 0.00 | AE128: 0.00 | AF128: 0.00 | AG128: 0.00 | AH128: 0.00 | AI128: 0.00 | AJ128: 0.00 | AK128: 0.00 | AL128: 0.00 | AM128: 0.00 | AN128: =IF(MengeInEEGSummieren(M128),AM128,0) ->  | AO128: 0.00 | AP128: 0.00 | AS128: 0 | AT128: 0
A129: WaK234------13 | B129: Wasser | C129: 2013 | D129: 10-20 MW | F129: 5.25 | G129: 5.25 | H129: 0 | I129: 0.00 | J129: 0 | K129: 0.00 | L129: 0 | M129: 32964608 | N129: 42065747 | O129: 0 | P129: 0 | Q129: 0 | R129: 0 | S129: 0 | T129: 0 | U129: 0 | V129: 0 | W129: 0 | X129: 0 | Y129: 0 | Z129: 0 | AA129: 0.00 | AB129: 0.00 | AC129: 0.00 | AD129: 0.00 | AE129: 0.00 | AF129: 0.00 | AG129: 0.00 | AH129: 0.00 | AI129: 0.00 | AJ129: 0.00 | AK129: 0.00 | AL129: 0.00 | AM129: 0.00 | AN129: =IF(MengeInEEGSummieren(M129),AM129,0) ->  | AO129: 0.00 | AP129: 0.00 | AS129: 0 | AT129: 0
A130: WaK235------13 | B130: Wasser | C130: 2013 | D130: 20-50 MW | F130: 4.16 | G130: 4.16 | H130: 0 | I130: 0.00 | J130: 0 | K130: 0.00 | L130: 0 | M130: 32964608 | N130: 42065747 | O130: 0 | P130: 0 | Q130: 0 | R130: 0 | S130: 0 | T130: 0 | U130: 0 | V130: 0 | W130: 0 | X130: 0 | Y130: 0 | Z130: 0 | AA130: 0.00 | AB130: 0.00 | AC130: 0.00 | AD130: 0.00 | AE130: 0.00 | AF130: 0.00 | AG130: 0.00 | AH130: 0.00 | AI130: 0.00 | AJ130: 0.00 | AK130: 0.00 | AL130: 0.00 | AM130: 0.00 | AN130: =IF(MengeInEEGSummieren(M130),AM130,0) ->  | AO130: 0.00 | AP130: 0.00 | AS130: 0 | AT130: 0
A131: WaK236------13 | B131: Wasser | C131: 2013 | D131: > 50 MW | F131: 3.37 | G131: 3.37 | H131: 0 | I131: 0.00 | J131: 0 | K131: 0.00 | L131: 0 | M131: 32964608 | N131: 42065747 | O131: 0 | P131: 0 | Q131: 0 | R131: 0 | S131: 0 | T131: 0 | U131: 0 | V131: 0 | W131: 0 | X131: 0 | Y131: 0 | Z131: 0 | AA131: 0.00 | AB131: 0.00 | AC131: 0.00 | AD131: 0.00 | AE131: 0.00 | AF131: 0.00 | AG131: 0.00 | AH131: 0.00 | AI131: 0.00 | AJ131: 0.00 | AK131: 0.00 | AL131: 0.00 | AM131: 0.00 | AN131: =IF(MengeInEEGSummieren(M131),AM131,0) ->  | AO131: 0.00 | AP131: 0.00 | AS131: 0 | AT131: 0
A132: WaK230M-----13 | B132: Wasser | C132: 2013 | D132: 0-0,5 MW, IB vor 01.01.2009, Modernisierung 2013 | F132: 12.57 | G132: 12.57 | H132: 0 | I132: 0.00 | J132: 0 | K132: 0.00 | L132: 0 | M132: 32964608 | N132: 42065747 | O132: 0 | P132: 0 | Q132: 0 | R132: 0 | S132: 0 | T132: 0 | U132: 0 | V132: 0 | W132: 0 | X132: 0 | Y132: 0 | Z132: 0 | AA132: 0.00 | AB132: 0.00 | AC132: 0.00 | AD132: 0.00 | AE132: 0.00 | AF132: 0.00 | AG132: 0.00 | AH132: 0.00 | AI132: 0.00 | AJ132: 0.00 | AK132: 0.00 | AL132: 0.00 | AM132: 0.00 | AN132: =IF(MengeInEEGSummieren(M132),AM132,0) ->  | AO132: 0.00 | AP132: 0.00 | AS132: 0 | AT132: 0
A133: WaK231M-----13 | B133: Wasser | C133: 2013 | D133: 0,5-2 MW, IB vor 01.01.2009, Modernisierung 2013 | F133: 8.22 | G133: 8.22 | H133: 0 | I133: 0.00 | J133: 0 | K133: 0.00 | L133: 0 | M133: 32964608 | N133: 42065747 | O133: 0 | P133: 0 | Q133: 0 | R133: 0 | S133: 0 | T133: 0 | U133: 0 | V133: 0 | W133: 0 | X133: 0 | Y133: 0 | Z133: 0 | AA133: 0.00 | AB133: 0.00 | AC133: 0.00 | AD133: 0.00 | AE133: 0.00 | AF133: 0.00 | AG133: 0.00 | AH133: 0.00 | AI133: 0.00 | AJ133: 0.00 | AK133: 0.00 | AL133: 0.00 | AM133: 0.00 | AN133: =IF(MengeInEEGSummieren(M133),AM133,0) ->  | AO133: 0.00 | AP133: 0.00 | AS133: 0 | AT133: 0
A134: WaK232M-----13 | B134: Wasser | C134: 2013 | D134: 2-5 MW, IB vor 01.01.2009, Modernisierung 2013 | F134: 6.24 | G134: 6.24 | H134: 0 | I134: 0.00 | J134: 0 | K134: 0.00 | L134: 0 | M134: 32964608 | N134: 42065747 | O134: 0 | P134: 0 | Q134: 0 | R134: 0 | S134: 0 | T134: 0 | U134: 0 | V134: 0 | W134: 0 | X134: 0 | Y134: 0 | Z134: 0 | AA134: 0.00 | AB134: 0.00 | AC134: 0.00 | AD134: 0.00 | AE134: 0.00 | AF134: 0.00 | AG134: 0.00 | AH134: 0.00 | AI134: 0.00 | AJ134: 0.00 | AK134: 0.00 | AL134: 0.00 | AM134: 0.00 | AN134: =IF(MengeInEEGSummieren(M134),AM134,0) ->  | AO134: 0.00 | AP134: 0.00 | AS134: 0 | AT134: 0
A135: WaK233M-----13 | B135: Wasser | C135: 2013 | D135: 5-10 MW, IB vor 01.01.2009, Modernisierung 2013 | F135: 5.45 | G135: 5.45 | H135: 0 | I135: 0.00 | J135: 0 | K135: 0.00 | L135: 0 | M135: 32964608 | N135: 42065747 | O135: 0 | P135: 0 | Q135: 0 | R135: 0 | S135: 0 | T135: 0 | U135: 0 | V135: 0 | W135: 0 | X135: 0 | Y135: 0 | Z135: 0 | AA135: 0.00 | AB135: 0.00 | AC135: 0.00 | AD135: 0.00 | AE135: 0.00 | AF135: 0.00 | AG135: 0.00 | AH135: 0.00 | AI135: 0.00 | AJ135: 0.00 | AK135: 0.00 | AL135: 0.00 | AM135: 0.00 | AN135: =IF(MengeInEEGSummieren(M135),AM135,0) ->  | AO135: 0.00 | AP135: 0.00 | AS135: 0 | AT135: 0
A136: WaK234M-----13 | B136: Wasser | C136: 2013 | D136: 10-20 MW, IB vor 01.01.2009, Modernisierung 2013 | F136: 5.25 | G136: 5.25 | H136: 0 | I136: 0.00 | J136: 0 | K136: 0.00 | L136: 0 | M136: 32964608 | N136: 42065747 | O136: 0 | P136: 0 | Q136: 0 | R136: 0 | S136: 0 | T136: 0 | U136: 0 | V136: 0 | W136: 0 | X136: 0 | Y136: 0 | Z136: 0 | AA136: 0.00 | AB136: 0.00 | AC136: 0.00 | AD136: 0.00 | AE136: 0.00 | AF136: 0.00 | AG136: 0.00 | AH136: 0.00 | AI136: 0.00 | AJ136: 0.00 | AK136: 0.00 | AL136: 0.00 | AM136: 0.00 | AN136: =IF(MengeInEEGSummieren(M136),AM136,0) ->  | AO136: 0.00 | AP136: 0.00 | AS136: 0 | AT136: 0
A137: WaK235M-----13 | B137: Wasser | C137: 2013 | D137: 20-50 MW, IB vor 01.01.2009, Modernisierung 2013 | F137: 4.16 | G137: 4.16 | H137: 0 | I137: 0.00 | J137: 0 | K137: 0.00 | L137: 0 | M137: 32964608 | N137: 42065747 | O137: 0 | P137: 0 | Q137: 0 | R137: 0 | S137: 0 | T137: 0 | U137: 0 | V137: 0 | W137: 0 | X137: 0 | Y137: 0 | Z137: 0 | AA137: 0.00 | AB137: 0.00 | AC137: 0.00 | AD137: 0.00 | AE137: 0.00 | AF137: 0.00 | AG137: 0.00 | AH137: 0.00 | AI137: 0.00 | AJ137: 0.00 | AK137: 0.00 | AL137: 0.00 | AM137: 0.00 | AN137: =IF(MengeInEEGSummieren(M137),AM137,0) ->  | AO137: 0.00 | AP137: 0.00 | AS137: 0 | AT137: 0
A138: WaK236M-----13 | B138: Wasser | C138: 2013 | D138: > 50 MW, IB vor 01.01.2009, Modernisierung 2013 | F138: 3.37 | G138: 3.37 | H138: 0 | I138: 0.00 | J138: 0 | K138: 0.00 | L138: 0 | M138: 32964608 | N138: 42065747 | O138: 0 | P138: 0 | Q138: 0 | R138: 0 | S138: 0 | T138: 0 | U138: 0 | V138: 0 | W138: 0 | X138: 0 | Y138: 0 | Z138: 0 | AA138: 0.00 | AB138: 0.00 | AC138: 0.00 | AD138: 0.00 | AE138: 0.00 | AF138: 0.00 | AG138: 0.00 | AH138: 0.00 | AI138: 0.00 | AJ138: 0.00 | AK138: 0.00 | AL138: 0.00 | AM138: 0.00 | AN138: =IF(MengeInEEGSummieren(M138),AM138,0) ->  | AO138: 0.00 | AP138: 0.00 | AS138: 0 | AT138: 0
AM139: 0.00 | AN139: =IF(MengeInEEGSummieren(M139),AM139,0) ->  | AO139: 0.00 | AP139: 0.00 | AS139: 0 | AT139: 0
A140: WaK230------14 | B140: Wasser | C140: 2014 | D140: 0-0,5 MW | F140: 12.45 | G140: 12.45 | H140: 0 | I140: 0.00 | J140: 0 | K140: 0.00 | L140: 0 | M140: 32964608 | N140: 42065747 | O140: 0 | P140: 0 | Q140: 0 | R140: 0 | S140: 0 | T140: 0 | U140: 0 | V140: 0 | W140: 0 | X140: 0 | Y140: 0 | Z140: 0 | AA140: 0.00 | AB140: 0.00 | AC140: 0.00 | AD140: 0.00 | AE140: 0.00 | AF140: 0.00 | AG140: 0.00 | AH140: 0.00 | AI140: 0.00 | AJ140: 0.00 | AK140: 0.00 | AL140: 0.00 | AM140: 0.00 | AN140: =IF(MengeInEEGSummieren(M140),AM140,0) ->  | AO140: 0.00 | AP140: 0.00 | AS140: 0 | AT140: 0
A141: WaK231------14 | B141: Wasser | C141: 2014 | D141: 0,5-2 MW | F141: 8.13 | G141: 8.13 | H141: 0 | I141: 0.00 | J141: 0 | K141: 0.00 | L141: 0 | M141: 32964608 | N141: 42065747 | O141: 0 | P141: 0 | Q141: 0 | R141: 0 | S141: 0 | T141: 0 | U141: 0 | V141: 0 | W141: 0 | X141: 0 | Y141: 0 | Z141: 0 | AA141: 0.00 | AB141: 0.00 | AC141: 0.00 | AD141: 0.00 | AE141: 0.00 | AF141: 0.00 | AG141: 0.00 | AH141: 0.00 | AI141: 0.00 | AJ141: 0.00 | AK141: 0.00 | AL141: 0.00 | AM141: 0.00 | AN141: =IF(MengeInEEGSummieren(M141),AM141,0) ->  | AO141: 0.00 | AP141: 0.00 | AS141: 0 | AT141: 0
A142: WaK232------14 | B142: Wasser | C142: 2014 | D142: 2-5 MW | F142: 6.17 | G142: 6.17 | H142: 0 | I142: 0.00 | J142: 0 | K142: 0.00 | L142: 0 | M142: 32964608 | N142: 42065747 | O142: 0 | P142: 0 | Q142: 0 | R142: 0 | S142: 0 | T142: 0 | U142: 0 | V142: 0 | W142: 0 | X142: 0 | Y142: 0 | Z142: 0 | AA142: 0.00 | AB142: 0.00 | AC142: 0.00 | AD142: 0.00 | AE142: 0.00 | AF142: 0.00 | AG142: 0.00 | AH142: 0.00 | AI142: 0.00 | AJ142: 0.00 | AK142: 0.00 | AL142: 0.00 | AM142: 0.00 | AN142: =IF(MengeInEEGSummieren(M142),AM142,0) ->  | AO142: 0.00 | AP142: 0.00 | AS142: 0 | AT142: 0
A143: WaK233------14 | B143: Wasser | C143: 2014 | D143: 5-10 MW | F143: 5.39 | G143: 5.39 | H143: 0 | I143: 0.00 | J143: 0 | K143: 0.00 | L143: 0 | M143: 32964608 | N143: 42065747 | O143: 0 | P143: 0 | Q143: 0 | R143: 0 | S143: 0 | T143: 0 | U143: 0 | V143: 0 | W143: 0 | X143: 0 | Y143: 0 | Z143: 0 | AA143: 0.00 | AB143: 0.00 | AC143: 0.00 | AD143: 0.00 | AE143: 0.00 | AF143: 0.00 | AG143: 0.00 | AH143: 0.00 | AI143: 0.00 | AJ143: 0.00 | AK143: 0.00 | AL143: 0.00 | AM143: 0.00 | AN143: =IF(MengeInEEGSummieren(M143),AM143,0) ->  | AO143: 0.00 | AP143: 0.00 | AS143: 0 | AT143: 0
A144: WaK234------14 | B144: Wasser | C144: 2014 | D144: 10-20 MW | F144: 5.19 | G144: 5.19 | H144: =AM144 -> 0 | I144: 0.00 | J144: =SUM(O144:Z144,AT144) -> 0 | K144: =SUM(AA144:AL144,AS144) -> 0.00 | L144: 0 | M144: 32964608 | N144: 42065747 | O144: 0 | P144: 0 | Q144: 0 | R144: 0 | S144: 0 | T144: 0 | U144: 0 | V144: 0 | W144: 0 | X144: 0 | Y144: 0 | Z144: 0 | AA144: 0.00 | AB144: 0.00 | AC144: 0.00 | AD144: 0.00 | AE144: 0.00 | AF144: 0.00 | AG144: 0.00 | AH144: 0.00 | AI144: 0.00 | AJ144: 0.00 | AK144: 0.00 | AL144: 0.00 | AM144: 0.00 | AN144: =IF(MengeInEEGSummieren(M144),AM144,0) ->  | AO144: =IF(AQ144,$H144,0) -> 0.00 | AP144: =IF(AR144,$H144,0) -> 0.00 | AS144: 0 | AT144: 0 | AU144: =EVFlag(M144) -> 
A145: WaK235------14 | B145: Wasser | C145: 2014 | D145: 20-50 MW | F145: 4.12 | G145: 4.12 | H145: 0 | I145: 0.00 | J145: 0 | K145: 0.00 | L145: 0 | M145: 32964608 | N145: 42065747 | O145: 0 | P145: 0 | Q145: 0 | R145: 0 | S145: 0 | T145: 0 | U145: 0 | V145: 0 | W145: 0 | X145: 0 | Y145: 0 | Z145: 0 | AA145: 0.00 | AB145: 0.00 | AC145: 0.00 | AD145: 0.00 | AE145: 0.00 | AF145: 0.00 | AG145: 0.00 | AH145: 0.00 | AI145: 0.00 | AJ145: 0.00 | AK145: 0.00 | AL145: 0.00 | AM145: 0.00 | AN145: =IF(MengeInEEGSummieren(M145),AM145,0) ->  | AO145: 0.00 | AP145: 0.00 | AS145: 0 | AT145: 0
A146: WaK236------14 | B146: Wasser | C146: 2014 | D146: > 50 MW | F146: 3.33 | G146: 3.33 | H146: 0 | I146: 0.00 | J146: 0 | K146: 0.00 | L146: 0 | M146: 32964608 | N146: 42065747 | O146: 0 | P146: 0 | Q146: 0 | R146: 0 | S146: 0 | T146: 0 | U146: 0 | V146: 0 | W146: 0 | X146: 0 | Y146: 0 | Z146: 0 | AA146: 0.00 | AB146: 0.00 | AC146: 0.00 | AD146: 0.00 | AE146: 0.00 | AF146: 0.00 | AG146: 0.00 | AH146: 0.00 | AI146: 0.00 | AJ146: 0.00 | AK146: 0.00 | AL146: 0.00 | AM146: 0.00 | AN146: =IF(MengeInEEGSummieren(M146),AM146,0) ->  | AO146: 0.00 | AP146: 0.00 | AS146: 0 | AT146: 0
A147: WaK230M-----14 | B147: Wasser | C147: 2014 | D147: 0-0,5 MW, IB vor 01.01.2009, Modernisierung 2014 | F147: 12.45 | G147: 12.45 | H147: 0 | I147: 0.00 | J147: 0 | K147: 0.00 | L147: 0 | M147: 32964608 | N147: 42065747 | O147: 0 | P147: 0 | Q147: 0 | R147: 0 | S147: 0 | T147: 0 | U147: 0 | V147: 0 | W147: 0 | X147: 0 | Y147: 0 | Z147: 0 | AA147: 0.00 | AB147: 0.00 | AC147: 0.00 | AD147: 0.00 | AE147: 0.00 | AF147: 0.00 | AG147: 0.00 | AH147: 0.00 | AI147: 0.00 | AJ147: 0.00 | AK147: 0.00 | AL147: 0.00 | AM147: 0.00 | AN147: =IF(MengeInEEGSummieren(M147),AM147,0) ->  | AO147: 0.00 | AP147: 0.00 | AS147: 0 | AT147: 0
A148: WaK231M-----14 | B148: Wasser | C148: 2014 | D148: 0,5-2 MW, IB vor 01.01.2009, Modernisierung 2014 | F148: 8.13 | G148: 8.13 | H148: 0 | I148: 0.00 | J148: 0 | K148: 0.00 | L148: 0 | M148: 32964608 | N148: 42065747 | O148: 0 | P148: 0 | Q148: 0 | R148: 0 | S148: 0 | T148: 0 | U148: 0 | V148: 0 | W148: 0 | X148: 0 | Y148: 0 | Z148: 0 | AA148: 0.00 | AB148: 0.00 | AC148: 0.00 | AD148: 0.00 | AE148: 0.00 | AF148: 0.00 | AG148: 0.00 | AH148: 0.00 | AI148: 0.00 | AJ148: 0.00 | AK148: 0.00 | AL148: 0.00 | AM148: 0.00 | AN148: =IF(MengeInEEGSummieren(M148),AM148,0) ->  | AO148: 0.00 | AP148: 0.00 | AS148: 0 | AT148: 0
A149: WaK232M-----14 | B149: Wasser | C149: 2014 | D149: 2-5 MW, IB vor 01.01.2009, Modernisierung 2014 | F149: 6.17 | G149: 6.17 | H149: 0 | I149: 0.00 | J149: 0 | K149: 0.00 | L149: 0 | M149: 32964608 | N149: 42065747 | O149: 0 | P149: 0 | Q149: 0 | R149: 0 | S149: 0 | T149: 0 | U149: 0 | V149: 0 | W149: 0 | X149: 0 | Y149: 0 | Z149: 0 | AA149: 0.00 | AB149: 0.00 | AC149: 0.00 | AD149: 0.00 | AE149: 0.00 | AF149: 0.00 | AG149: 0.00 | AH149: 0.00 | AI149: 0.00 | AJ149: 0.00 | AK149: 0.00 | AL149: 0.00 | AM149: 0.00 | AN149: =IF(MengeInEEGSummieren(M149),AM149,0) ->  | AO149: 0.00 | AP149: 0.00 | AS149: 0 | AT149: 0
A150: WaK233M-----14 | B150: Wasser | C150: 2014 | D150: 5-10 MW, IB vor 01.01.2009, Modernisierung 2014 | F150: 5.39 | G150: 5.39 | H150: 0 | I150: 0.00 | J150: 0 | K150: 0.00 | L150: 0 | M150: 32964608 | N150: 42065747 | O150: 0 | P150: 0 | Q150: 0 | R150: 0 | S150: 0 | T150: 0 | U150: 0 | V150: 0 | W150: 0 | X150: 0 | Y150: 0 | Z150: 0 | AA150: 0.00 | AB150: 0.00 | AC150: 0.00 | AD150: 0.00 | AE150: 0.00 | AF150: 0.00 | AG150: 0.00 | AH150: 0.00 | AI150: 0.00 | AJ150: 0.00 | AK150: 0.00 | AL150: 0.00 | AM150: 0.00 | AN150: =IF(MengeInEEGSummieren(M150),AM150,0) ->  | AO150: 0.00 | AP150: 0.00 | AS150: 0 | AT150: 0
A151: WaK234M-----14 | B151: Wasser | C151: 2014 | D151: 10-20 MW, IB vor 01.01.2009, Modernisierung 2014 | F151: 5.19 | G151: 5.19 | H151: 0 | I151: 0.00 | J151: 0 | K151: 0.00 | L151: 0 | M151: 32964608 | N151: 42065747 | O151: 0 | P151: 0 | Q151: 0 | R151: 0 | S151: 0 | T151: 0 | U151: 0 | V151: 0 | W151: 0 | X151: 0 | Y151: 0 | Z151: 0 | AA151: 0.00 | AB151: 0.00 | AC151: 0.00 | AD151: 0.00 | AE151: 0.00 | AF151: 0.00 | AG151: 0.00 | AH151: 0.00 | AI151: 0.00 | AJ151: 0.00 | AK151: 0.00 | AL151: 0.00 | AM151: 0.00 | AN151: =IF(MengeInEEGSummieren(M151),AM151,0) ->  | AO151: 0.00 | AP151: 0.00 | AS151: 0 | AT151: 0
A152: WaK235M-----14 | B152: Wasser | C152: 2014 | D152: 20-50 MW, IB vor 01.01.2009, Modernisierung 2014 | F152: 4.12 | G152: 4.12 | H152: 0 | I152: 0.00 | J152: 0 | K152: 0.00 | L152: 0 | M152: 32964608 | N152: 42065747 | O152: 0 | P152: 0 | Q152: 0 | R152: 0 | S152: 0 | T152: 0 | U152: 0 | V152: 0 | W152: 0 | X152: 0 | Y152: 0 | Z152: 0 | AA152: 0.00 | AB152: 0.00 | AC152: 0.00 | AD152: 0.00 | AE152: 0.00 | AF152: 0.00 | AG152: 0.00 | AH152: 0.00 | AI152: 0.00 | AJ152: 0.00 | AK152: 0.00 | AL152: 0.00 | AM152: 0.00 | AN152: =IF(MengeInEEGSummieren(M152),AM152,0) ->  | AO152: 0.00 | AP152: 0.00 | AS152: 0 | AT152: 0
A153: WaK236M-----14 | B153: Wasser | C153: 2014 | D153: > 50 MW, IB vor 01.01.2009, Modernisierung 2014 | F153: 3.33 | G153: 3.33 | H153: 0 | I153: 0.00 | J153: 0 | K153: 0.00 | L153: 0 | M153: 32964608 | N153: 42065747 | O153: 0 | P153: 0 | Q153: 0 | R153: 0 | S153: 0 | T153: 0 | U153: 0 | V153: 0 | W153: 0 | X153: 0 | Y153: 0 | Z153: 0 | AA153: 0.00 | AB153: 0.00 | AC153: 0.00 | AD153: 0.00 | AE153: 0.00 | AF153: 0.00 | AG153: 0.00 | AH153: 0.00 | AI153: 0.00 | AJ153: 0.00 | AK153: 0.00 | AL153: 0.00 | AM153: 0.00 | AN153: =IF(MengeInEEGSummieren(M153),AM153,0) ->  | AO153: 0.00 | AP153: 0.00 | AS153: 0 | AT153: 0
AM154: 0.00 | AN154: =IF(MengeInEEGSummieren(M154),AM154,0) ->  | AO154: 0.00 | AP154: 0.00 | AS154: 0 | AT154: 0
A155: WaK400------14 | B155: Wasser | C155: 2014 | D155: 0-0,5 MW | F155: 12.32 | G155: 12.52 | H155: 0 | I155: 0.00 | J155: 0 | K155: 0.00 | L155: 0 | M155: 301400064 | N155: 42065747 | O155: 0 | P155: 0 | Q155: 0 | R155: 0 | S155: 0 | T155: 0 | U155: 0 | V155: 0 | W155: 0 | X155: 0 | Y155: 0 | Z155: 0 | AA155: 0.00 | AB155: 0.00 | AC155: 0.00 | AD155: 0.00 | AE155: 0.00 | AF155: 0.00 | AG155: 0.00 | AH155: 0.00 | AI155: 0.00 | AJ155: 0.00 | AK155: 0.00 | AL155: 0.00 | AM155: 0.00 | AN155: =IF(MengeInEEGSummieren(M155),AM155,0) ->  | AO155: 0.00 | AP155: 0.00 | AS155: 0 | AT155: 0
A156: WaK401------14 | B156: Wasser | C156: 2014 | D156: 0,5-2 MW | F156: 8.05 | G156: 8.25 | H156: 0 | I156: 0.00 | J156: 0 | K156: 0.00 | L156: 0 | M156: 301400064 | N156: 42065747 | O156: 0 | P156: 0 | Q156: 0 | R156: 0 | S156: 0 | T156: 0 | U156: 0 | V156: 0 | W156: 0 | X156: 0 | Y156: 0 | Z156: 0 | AA156: 0.00 | AB156: 0.00 | AC156: 0.00 | AD156: 0.00 | AE156: 0.00 | AF156: 0.00 | AG156: 0.00 | AH156: 0.00 | AI156: 0.00 | AJ156: 0.00 | AK156: 0.00 | AL156: 0.00 | AM156: 0.00 | AN156: =IF(MengeInEEGSummieren(M156),AM156,0) ->  | AO156: 0.00 | AP156: 0.00 | AS156: 0 | AT156: 0
A157: WaK402------14 | B157: Wasser | C157: 2014 | D157: 2-5 MW | F157: 6.11 | G157: 6.31 | H157: 0 | I157: 0.00 | J157: 0 | K157: 0.00 | L157: 0 | M157: 301400064 | N157: 42065747 | O157: 0 | P157: 0 | Q157: 0 | R157: 0 | S157: 0 | T157: 0 | U157: 0 | V157: 0 | W157: 0 | X157: 0 | Y157: 0 | Z157: 0 | AA157: 0.00 | AB157: 0.00 | AC157: 0.00 | AD157: 0.00 | AE157: 0.00 | AF157: 0.00 | AG157: 0.00 | AH157: 0.00 | AI157: 0.00 | AJ157: 0.00 | AK157: 0.00 | AL157: 0.00 | AM157: 0.00 | AN157: =IF(MengeInEEGSummieren(M157),AM157,0) ->  | AO157: 0.00 | AP157: 0.00 | AS157: 0 | AT157: 0
A158: WaK403------14 | B158: Wasser | C158: 2014 | D158: 5-10 MW | F158: 5.34 | G158: 5.54 | H158: 0 | I158: 0.00 | J158: 0 | K158: 0.00 | L158: 0 | M158: 301400064 | N158: 42065747 | O158: 0 | P158: 0 | Q158: 0 | R158: 0 | S158: 0 | T158: 0 | U158: 0 | V158: 0 | W158: 0 | X158: 0 | Y158: 0 | Z158: 0 | AA158: 0.00 | AB158: 0.00 | AC158: 0.00 | AD158: 0.00 | AE158: 0.00 | AF158: 0.00 | AG158: 0.00 | AH158: 0.00 | AI158: 0.00 | AJ158: 0.00 | AK158: 0.00 | AL158: 0.00 | AM158: 0.00 | AN158: =IF(MengeInEEGSummieren(M158),AM158,0) ->  | AO158: 0.00 | AP158: 0.00 | AS158: 0 | AT158: 0
A159: WaK404------14 | B159: Wasser | C159: 2014 | D159: 10-20 MW | F159: 5.14 | G159: 5.34 | H159: 0 | I159: 0.00 | J159: 0 | K159: 0.00 | L159: 0 | M159: 301400064 | N159: 42065747 | O159: 0 | P159: 0 | Q159: 0 | R159: 0 | S159: 0 | T159: 0 | U159: 0 | V159: 0 | W159: 0 | X159: 0 | Y159: 0 | Z159: 0 | AA159: 0.00 | AB159: 0.00 | AC159: 0.00 | AD159: 0.00 | AE159: 0.00 | AF159: 0.00 | AG159: 0.00 | AH159: 0.00 | AI159: 0.00 | AJ159: 0.00 | AK159: 0.00 | AL159: 0.00 | AM159: 0.00 | AN159: =IF(MengeInEEGSummieren(M159),AM159,0) ->  | AO159: 0.00 | AP159: 0.00 | AS159: 0 | AT159: 0
A160: WaK405------14 | B160: Wasser | C160: 2014 | D160: 20-50 MW | F160: 4.08 | G160: 4.28 | H160: 0 | I160: 0.00 | J160: 0 | K160: 0.00 | L160: 0 | M160: 301400064 | N160: 42065747 | O160: 0 | P160: 0 | Q160: 0 | R160: 0 | S160: 0 | T160: 0 | U160: 0 | V160: 0 | W160: 0 | X160: 0 | Y160: 0 | Z160: 0 | AA160: 0.00 | AB160: 0.00 | AC160: 0.00 | AD160: 0.00 | AE160: 0.00 | AF160: 0.00 | AG160: 0.00 | AH160: 0.00 | AI160: 0.00 | AJ160: 0.00 | AK160: 0.00 | AL160: 0.00 | AM160: 0.00 | AN160: =IF(MengeInEEGSummieren(M160),AM160,0) ->  | AO160: 0.00 | AP160: 0.00 | AS160: 0 | AT160: 0
A161: WaK406------14 | B161: Wasser | C161: 2014 | D161: > 50 MW | F161: 3.30 | G161: 3.50 | H161: 0 | I161: 0.00 | J161: 0 | K161: 0.00 | L161: 0 | M161: 301400064 | N161: 42065747 | O161: 0 | P161: 0 | Q161: 0 | R161: 0 | S161: 0 | T161: 0 | U161: 0 | V161: 0 | W161: 0 | X161: 0 | Y161: 0 | Z161: 0 | AA161: 0.00 | AB161: 0.00 | AC161: 0.00 | AD161: 0.00 | AE161: 0.00 | AF161: 0.00 | AG161: 0.00 | AH161: 0.00 | AI161: 0.00 | AJ161: 0.00 | AK161: 0.00 | AL161: 0.00 | AM161: 0.00 | AN161: =IF(MengeInEEGSummieren(M161),AM161,0) ->  | AO161: 0.00 | AP161: 0.00 | AS161: 0 | AT161: 0
A162: WaK400M-----14 | B162: Wasser | C162: 2014 | D162: 0-0,5 MW, IB vor 01.01.2009, Modernisierung 2014 | F162: 12.32 | G162: 12.52 | H162: 0 | I162: 0.00 | J162: 0 | K162: 0.00 | L162: 0 | M162: 301400064 | N162: 42065747 | O162: 0 | P162: 0 | Q162: 0 | R162: 0 | S162: 0 | T162: 0 | U162: 0 | V162: 0 | W162: 0 | X162: 0 | Y162: 0 | Z162: 0 | AA162: 0.00 | AB162: 0.00 | AC162: 0.00 | AD162: 0.00 | AE162: 0.00 | AF162: 0.00 | AG162: 0.00 | AH162: 0.00 | AI162: 0.00 | AJ162: 0.00 | AK162: 0.00 | AL162: 0.00 | AM162: 0.00 | AN162: =IF(MengeInEEGSummieren(M162),AM162,0) ->  | AO162: 0.00 | AP162: 0.00 | AS162: 0 | AT162: 0
A163: WaK401M-----14 | B163: Wasser | C163: 2014 | D163: 0,5-2 MW, IB vor 01.01.2009, Modernisierung 2014 | F163: 8.05 | G163: 8.25 | H163: 0 | I163: 0.00 | J163: 0 | K163: 0.00 | L163: 0 | M163: 301400064 | N163: 42065747 | O163: 0 | P163: 0 | Q163: 0 | R163: 0 | S163: 0 | T163: 0 | U163: 0 | V163: 0 | W163: 0 | X163: 0 | Y163: 0 | Z163: 0 | AA163: 0.00 | AB163: 0.00 | AC163: 0.00 | AD163: 0.00 | AE163: 0.00 | AF163: 0.00 | AG163: 0.00 | AH163: 0.00 | AI163: 0.00 | AJ163: 0.00 | AK163: 0.00 | AL163: 0.00 | AM163: 0.00 | AN163: =IF(MengeInEEGSummieren(M163),AM163,0) ->  | AO163: 0.00 | AP163: 0.00 | AS163: 0 | AT163: 0
A164: WaK402M-----14 | B164: Wasser | C164: 2014 | D164: 2-5 MW, IB vor 01.01.2009, Modernisierung 2014 | F164: 6.11 | G164: 6.31 | H164: 0 | I164: 0.00 | J164: 0 | K164: 0.00 | L164: 0 | M164: 301400064 | N164: 42065747 | O164: 0 | P164: 0 | Q164: 0 | R164: 0 | S164: 0 | T164: 0 | U164: 0 | V164: 0 | W164: 0 | X164: 0 | Y164: 0 | Z164: 0 | AA164: 0.00 | AB164: 0.00 | AC164: 0.00 | AD164: 0.00 | AE164: 0.00 | AF164: 0.00 | AG164: 0.00 | AH164: 0.00 | AI164: 0.00 | AJ164: 0.00 | AK164: 0.00 | AL164: 0.00 | AM164: 0.00 | AN164: =IF(MengeInEEGSummieren(M164),AM164,0) ->  | AO164: 0.00 | AP164: 0.00 | AS164: 0 | AT164: 0
A165: WaK403M-----14 | B165: Wasser | C165: 2014 | D165: 5-10 MW, IB vor 01.01.2009, Modernisierung 2014 | F165: 5.34 | G165: 5.54 | H165: 0 | I165: 0.00 | J165: 0 | K165: 0.00 | L165: 0 | M165: 301400064 | N165: 42065747 | O165: 0 | P165: 0 | Q165: 0 | R165: 0 | S165: 0 | T165: 0 | U165: 0 | V165: 0 | W165: 0 | X165: 0 | Y165: 0 | Z165: 0 | AA165: 0.00 | AB165: 0.00 | AC165: 0.00 | AD165: 0.00 | AE165: 0.00 | AF165: 0.00 | AG165: 0.00 | AH165: 0.00 | AI165: 0.00 | AJ165: 0.00 | AK165: 0.00 | AL165: 0.00 | AM165: 0.00 | AN165: =IF(MengeInEEGSummieren(M165),AM165,0) ->  | AO165: 0.00 | AP165: 0.00 | AS165: 0 | AT165: 0
A166: WaK404M-----14 | B166: Wasser | C166: 2014 | D166: 10-20 MW, IB vor 01.01.2009, Modernisierung 2014 | F166: 5.14 | G166: 5.34 | H166: 0 | I166: 0.00 | J166: 0 | K166: 0.00 | L166: 0 | M166: 301400064 | N166: 42065747 | O166: 0 | P166: 0 | Q166: 0 | R166: 0 | S166: 0 | T166: 0 | U166: 0 | V166: 0 | W166: 0 | X166: 0 | Y166: 0 | Z166: 0 | AA166: 0.00 | AB166: 0.00 | AC166: 0.00 | AD166: 0.00 | AE166: 0.00 | AF166: 0.00 | AG166: 0.00 | AH166: 0.00 | AI166: 0.00 | AJ166: 0.00 | AK166: 0.00 | AL166: 0.00 | AM166: 0.00 | AN166: =IF(MengeInEEGSummieren(M166),AM166,0) ->  | AO166: 0.00 | AP166: 0.00 | AS166: 0 | AT166: 0
A167: WaK405M-----14 | B167: Wasser | C167: 2014 | D167: 20-50 MW, IB vor 01.01.2009, Modernisierung 2014 | F167: 4.08 | G167: 4.28 | H167: 0 | I167: 0.00 | J167: 0 | K167: 0.00 | L167: 0 | M167: 301400064 | N167: 42065747 | O167: 0 | P167: 0 | Q167: 0 | R167: 0 | S167: 0 | T167: 0 | U167: 0 | V167: 0 | W167: 0 | X167: 0 | Y167: 0 | Z167: 0 | AA167: 0.00 | AB167: 0.00 | AC167: 0.00 | AD167: 0.00 | AE167: 0.00 | AF167: 0.00 | AG167: 0.00 | AH167: 0.00 | AI167: 0.00 | AJ167: 0.00 | AK167: 0.00 | AL167: 0.00 | AM167: 0.00 | AN167: =IF(MengeInEEGSummieren(M167),AM167,0) ->  | AO167: 0.00 | AP167: 0.00 | AS167: 0 | AT167: 0
A168: WaK406M-----14 | B168: Wasser | C168: 2014 | D168: > 50 MW, IB vor 01.01.2009, Modernisierung 2014 | F168: 3.30 | G168: 3.50 | H168: 0 | I168: 0.00 | J168: 0 | K168: 0.00 | L168: 0 | M168: 301400064 | N168: 42065747 | O168: 0 | P168: 0 | Q168: 0 | R168: 0 | S168: 0 | T168: 0 | U168: 0 | V168: 0 | W168: 0 | X168: 0 | Y168: 0 | Z168: 0 | AA168: 0.00 | AB168: 0.00 | AC168: 0.00 | AD168: 0.00 | AE168: 0.00 | AF168: 0.00 | AG168: 0.00 | AH168: 0.00 | AI168: 0.00 | AJ168: 0.00 | AK168: 0.00 | AL168: 0.00 | AM168: 0.00 | AN168: =IF(MengeInEEGSummieren(M168),AM168,0) ->  | AO168: 0.00 | AP168: 0.00 | AS168: 0 | AT168: 0
AM169: 0.00 | AN169: =IF(MengeInEEGSummieren(M169),AM169,0) ->  | AO169: 0.00 | AP169: 0.00 | AS169: 0 | AT169: 0
A170: WaK400------15 | B170: Wasser | C170: 2015 | D170: 0-0,5 MW | F170: 12.32 | G170: 12.52 | H170: 0 | I170: 0.00 | J170: 0 | K170: 0.00 | L170: 0 | M170: 301400064 | N170: 42065747 | O170: 0 | P170: 0 | Q170: 0 | R170: 0 | S170: 0 | T170: 0 | U170: 0 | V170: 0 | W170: 0 | X170: 0 | Y170: 0 | Z170: 0 | AA170: 0.00 | AB170: 0.00 | AC170: 0.00 | AD170: 0.00 | AE170: 0.00 | AF170: 0.00 | AG170: 0.00 | AH170: 0.00 | AI170: 0.00 | AJ170: 0.00 | AK170: 0.00 | AL170: 0.00 | AM170: 0.00 | AN170: =IF(MengeInEEGSummieren(M170),AM170,0) ->  | AO170: 0.00 | AP170: 0.00 | AS170: 0 | AT170: 0
A171: WaK401------15 | B171: Wasser | C171: 2015 | D171: 0,5-2 MW | F171: 8.05 | G171: 8.25 | H171: 0 | I171: 0.00 | J171: 0 | K171: 0.00 | L171: 0 | M171: 301400064 | N171: 42065747 | O171: 0 | P171: 0 | Q171: 0 | R171: 0 | S171: 0 | T171: 0 | U171: 0 | V171: 0 | W171: 0 | X171: 0 | Y171: 0 | Z171: 0 | AA171: 0.00 | AB171: 0.00 | AC171: 0.00 | AD171: 0.00 | AE171: 0.00 | AF171: 0.00 | AG171: 0.00 | AH171: 0.00 | AI171: 0.00 | AJ171: 0.00 | AK171: 0.00 | AL171: 0.00 | AM171: 0.00 | AN171: =IF(MengeInEEGSummieren(M171),AM171,0) ->  | AO171: 0.00 | AP171: 0.00 | AS171: 0 | AT171: 0
A172: WaK402------15 | B172: Wasser | C172: 2015 | D172: 2-5 MW | F172: 6.11 | G172: 6.31 | H172: 0 | I172: 0.00 | J172: 0 | K172: 0.00 | L172: 0 | M172: 301400064 | N172: 42065747 | O172: 0 | P172: 0 | Q172: 0 | R172: 0 | S172: 0 | T172: 0 | U172: 0 | V172: 0 | W172: 0 | X172: 0 | Y172: 0 | Z172: 0 | AA172: 0.00 | AB172: 0.00 | AC172: 0.00 | AD172: 0.00 | AE172: 0.00 | AF172: 0.00 | AG172: 0.00 | AH172: 0.00 | AI172: 0.00 | AJ172: 0.00 | AK172: 0.00 | AL172: 0.00 | AM172: 0.00 | AN172: =IF(MengeInEEGSummieren(M172),AM172,0) ->  | AO172: 0.00 | AP172: 0.00 | AS172: 0 | AT172: 0
A173: WaK403------15 | B173: Wasser | C173: 2015 | D173: 5-10 MW | F173: 5.34 | G173: 5.54 | H173: 0 | I173: 0.00 | J173: 0 | K173: 0.00 | L173: 0 | M173: 301400064 | N173: 42065747 | O173: 0 | P173: 0 | Q173: 0 | R173: 0 | S173: 0 | T173: 0 | U173: 0 | V173: 0 | W173: 0 | X173: 0 | Y173: 0 | Z173: 0 | AA173: 0.00 | AB173: 0.00 | AC173: 0.00 | AD173: 0.00 | AE173: 0.00 | AF173: 0.00 | AG173: 0.00 | AH173: 0.00 | AI173: 0.00 | AJ173: 0.00 | AK173: 0.00 | AL173: 0.00 | AM173: 0.00 | AN173: =IF(MengeInEEGSummieren(M173),AM173,0) ->  | AO173: 0.00 | AP173: 0.00 | AS173: 0 | AT173: 0
A174: WaK404------15 | B174: Wasser | C174: 2015 | D174: 10-20 MW | F174: 5.14 | G174: 5.34 | H174: 0 | I174: 0.00 | J174: 0 | K174: 0.00 | L174: 0 | M174: 301400064 | N174: 42065747 | O174: 0 | P174: 0 | Q174: 0 | R174: 0 | S174: 0 | T174: 0 | U174: 0 | V174: 0 | W174: 0 | X174: 0 | Y174: 0 | Z174: 0 | AA174: 0.00 | AB174: 0.00 | AC174: 0.00 | AD174: 0.00 | AE174: 0.00 | AF174: 0.00 | AG174: 0.00 | AH174: 0.00 | AI174: 0.00 | AJ174: 0.00 | AK174: 0.00 | AL174: 0.00 | AM174: 0.00 | AN174: =IF(MengeInEEGSummieren(M174),AM174,0) ->  | AO174: 0.00 | AP174: 0.00 | AS174: 0 | AT174: 0
A175: WaK405------15 | B175: Wasser | C175: 2015 | D175: 20-50 MW | F175: 4.08 | G175: 4.28 | H175: 0 | I175: 0.00 | J175: 0 | K175: 0.00 | L175: 0 | M175: 301400064 | N175: 42065747 | O175: 0 | P175: 0 | Q175: 0 | R175: 0 | S175: 0 | T175: 0 | U175: 0 | V175: 0 | W175: 0 | X175: 0 | Y175: 0 | Z175: 0 | AA175: 0.00 | AB175: 0.00 | AC175: 0.00 | AD175: 0.00 | AE175: 0.00 | AF175: 0.00 | AG175: 0.00 | AH175: 0.00 | AI175: 0.00 | AJ175: 0.00 | AK175: 0.00 | AL175: 0.00 | AM175: 0.00 | AN175: =IF(MengeInEEGSummieren(M175),AM175,0) ->  | AO175: 0.00 | AP175: 0.00 | AS175: 0 | AT175: 0
A176: WaK406------15 | B176: Wasser | C176: 2015 | D176: > 50 MW | F176: 3.30 | G176: 3.50 | H176: 0 | I176: 0.00 | J176: 0 | K176: 0.00 | L176: 0 | M176: 301400064 | N176: 42065747 | O176: 0 | P176: 0 | Q176: 0 | R176: 0 | S176: 0 | T176: 0 | U176: 0 | V176: 0 | W176: 0 | X176: 0 | Y176: 0 | Z176: 0 | AA176: 0.00 | AB176: 0.00 | AC176: 0.00 | AD176: 0.00 | AE176: 0.00 | AF176: 0.00 | AG176: 0.00 | AH176: 0.00 | AI176: 0.00 | AJ176: 0.00 | AK176: 0.00 | AL176: 0.00 | AM176: 0.00 | AN176: =IF(MengeInEEGSummieren(M176),AM176,0) ->  | AO176: 0.00 | AP176: 0.00 | AS176: 0 | AT176: 0
A177: WaK400M-----15 | B177: Wasser | C177: 2015 | D177: 0-0,5 MW, IB vor 01.01.2009, Modernisierung 2015 | F177: 12.32 | G177: 12.52 | H177: 0 | I177: 0.00 | J177: 0 | K177: 0.00 | L177: 0 | M177: 301400064 | N177: 42065747 | O177: 0 | P177: 0 | Q177: 0 | R177: 0 | S177: 0 | T177: 0 | U177: 0 | V177: 0 | W177: 0 | X177: 0 | Y177: 0 | Z177: 0 | AA177: 0.00 | AB177: 0.00 | AC177: 0.00 | AD177: 0.00 | AE177: 0.00 | AF177: 0.00 | AG177: 0.00 | AH177: 0.00 | AI177: 0.00 | AJ177: 0.00 | AK177: 0.00 | AL177: 0.00 | AM177: 0.00 | AN177: =IF(MengeInEEGSummieren(M177),AM177,0) ->  | AO177: 0.00 | AP177: 0.00 | AS177: 0 | AT177: 0
A178: WaK401M-----15 | B178: Wasser | C178: 2015 | D178: 0,5-2 MW, IB vor 01.01.2009, Modernisierung 2015 | F178: 8.05 | G178: 8.25 | H178: 0 | I178: 0.00 | J178: 0 | K178: 0.00 | L178: 0 | M178: 301400064 | N178: 42065747 | O178: 0 | P178: 0 | Q178: 0 | R178: 0 | S178: 0 | T178: 0 | U178: 0 | V178: 0 | W178: 0 | X178: 0 | Y178: 0 | Z178: 0 | AA178: 0.00 | AB178: 0.00 | AC178: 0.00 | AD178: 0.00 | AE178: 0.00 | AF178: 0.00 | AG178: 0.00 | AH178: 0.00 | AI178: 0.00 | AJ178: 0.00 | AK178: 0.00 | AL178: 0.00 | AM178: 0.00 | AN178: =IF(MengeInEEGSummieren(M178),AM178,0) ->  | AO178: 0.00 | AP178: 0.00 | AS178: 0 | AT178: 0
A179: WaK402M-----15 | B179: Wasser | C179: 2015 | D179: 2-5 MW, IB vor 01.01.2009, Modernisierung 2015 | F179: 6.11 | G179: 6.31 | H179: 0 | I179: 0.00 | J179: 0 | K179: 0.00 | L179: 0 | M179: 301400064 | N179: 42065747 | O179: 0 | P179: 0 | Q179: 0 | R179: 0 | S179: 0 | T179: 0 | U179: 0 | V179: 0 | W179: 0 | X179: 0 | Y179: 0 | Z179: 0 | AA179: 0.00 | AB179: 0.00 | AC179: 0.00 | AD179: 0.00 | AE179: 0.00 | AF179: 0.00 | AG179: 0.00 | AH179: 0.00 | AI179: 0.00 | AJ179: 0.00 | AK179: 0.00 | AL179: 0.00 | AM179: 0.00 | AN179: =IF(MengeInEEGSummieren(M179),AM179,0) ->  | AO179: 0.00 | AP179: 0.00 | AS179: 0 | AT179: 0
A180: WaK403M-----15 | B180: Wasser | C180: 2015 | D180: 5-10 MW, IB vor 01.01.2009, Modernisierung 2015 | F180: 5.34 | G180: 5.54 | H180: 0 | I180: 0.00 | J180: 0 | K180: 0.00 | L180: 0 | M180: 301400064 | N180: 42065747 | O180: 0 | P180: 0 | Q180: 0 | R180: 0 | S180: 0 | T180: 0 | U180: 0 | V180: 0 | W180: 0 | X180: 0 | Y180: 0 | Z180: 0 | AA180: 0.00 | AB180: 0.00 | AC180: 0.00 | AD180: 0.00 | AE180: 0.00 | AF180: 0.00 | AG180: 0.00 | AH180: 0.00 | AI180: 0.00 | AJ180: 0.00 | AK180: 0.00 | AL180: 0.00 | AM180: 0.00 | AN180: =IF(MengeInEEGSummieren(M180),AM180,0) ->  | AO180: 0.00 | AP180: 0.00 | AS180: 0 | AT180: 0
A181: WaK404M-----15 | B181: Wasser | C181: 2015 | D181: 10-20 MW, IB vor 01.01.2009, Modernisierung 2015 | F181: 5.14 | G181: 5.34 | H181: 0 | I181: 0.00 | J181: 0 | K181: 0.00 | L181: 0 | M181: 301400064 | N181: 42065747 | O181: 0 | P181: 0 | Q181: 0 | R181: 0 | S181: 0 | T181: 0 | U181: 0 | V181: 0 | W181: 0 | X181: 0 | Y181: 0 | Z181: 0 | AA181: 0.00 | AB181: 0.00 | AC181: 0.00 | AD181: 0.00 | AE181: 0.00 | AF181: 0.00 | AG181: 0.00 | AH181: 0.00 | AI181: 0.00 | AJ181: 0.00 | AK181: 0.00 | AL181: 0.00 | AM181: 0.00 | AN181: =IF(MengeInEEGSummieren(M181),AM181,0) ->  | AO181: 0.00 | AP181: 0.00 | AS181: 0 | AT181: 0
A182: WaK405M-----15 | B182: Wasser | C182: 2015 | D182: 20-50 MW, IB vor 01.01.2009, Modernisierung 2015 | F182: 4.08 | G182: 4.28 | H182: 0 | I182: 0.00 | J182: 0 | K182: 0.00 | L182: 0 | M182: 301400064 | N182: 42065747 | O182: 0 | P182: 0 | Q182: 0 | R182: 0 | S182: 0 | T182: 0 | U182: 0 | V182: 0 | W182: 0 | X182: 0 | Y182: 0 | Z182: 0 | AA182: 0.00 | AB182: 0.00 | AC182: 0.00 | AD182: 0.00 | AE182: 0.00 | AF182: 0.00 | AG182: 0.00 | AH182: 0.00 | AI182: 0.00 | AJ182: 0.00 | AK182: 0.00 | AL182: 0.00 | AM182: 0.00 | AN182: =IF(MengeInEEGSummieren(M182),AM182,0) ->  | AO182: 0.00 | AP182: 0.00 | AS182: 0 | AT182: 0
A183: WaK406M-----15 | B183: Wasser | C183: 2015 | D183: > 50 MW, IB vor 01.01.2009, Modernisierung 2015 | F183: 3.30 | G183: 3.50 | H183: 0 | I183: 0.00 | J183: 0 | K183: 0.00 | L183: 0 | M183: 301400064 | N183: 42065747 | O183: 0 | P183: 0 | Q183: 0 | R183: 0 | S183: 0 | T183: 0 | U183: 0 | V183: 0 | W183: 0 | X183: 0 | Y183: 0 | Z183: 0 | AA183: 0.00 | AB183: 0.00 | AC183: 0.00 | AD183: 0.00 | AE183: 0.00 | AF183: 0.00 | AG183: 0.00 | AH183: 0.00 | AI183: 0.00 | AJ183: 0.00 | AK183: 0.00 | AL183: 0.00 | AM183: 0.00 | AN183: =IF(MengeInEEGSummieren(M183),AM183,0) ->  | AO183: 0.00 | AP183: 0.00 | AS183: 0 | AT183: 0
AM184: 0.00 | AN184: =IF(MengeInEEGSummieren(M184),AM184,0) ->  | AO184: 0.00 | AP184: 0.00 | AS184: 0 | AT184: 0
A185: WaK171-------0 | B185: Wasser | D185: Verringerung auf Null nach § 17 Abs. 1 (Nichterfüllung § 6 Technische Vorgaben) | F185: 0.00 | G185: 0.00 | H185: 0 | I185: 0.00 | J185: 0 | K185: 0.00 | L185: 0 | M185: 32997376 | N185: 42065747 | O185: 0 | P185: 0 | Q185: 0 | R185: 0 | S185: 0 | T185: 0 | U185: 0 | V185: 0 | W185: 0 | X185: 0 | Y185: 0 | Z185: 0 | AA185: 0.00 | AB185: 0.00 | AC185: 0.00 | AD185: 0.00 | AE185: 0.00 | AF185: 0.00 | AG185: 0.00 | AH185: 0.00 | AI185: 0.00 | AJ185: 0.00 | AK185: 0.00 | AL185: 0.00 | AM185: 0.00 | AN185: =IF(MengeInEEGSummieren(M185),AM185,0) ->  | AO185: 0.00 | AP185: 0.00 | AS185: 0 | AT185: 0
AM186: 0.00 | AN186: =IF(MengeInEEGSummieren(M186),AM186,0) ->  | AO186: 0.00 | AP186: 0.00 | AS186: 0 | AT186: 0
A187: WaK2511------0 | B187: Wasser | D187: Verringerung auf null nach § 25 Abs. 1 Nr. 1 (Unterlassene Anmeldung im Anlagenregister) | F187: 0.00 | G187: 0.00 | H187: 0 | I187: 0.00 | J187: 0 | K187: 0.00 | L187: 0 | M187: 301432832 | N187: 42065747 | O187: 0 | P187: 0 | Q187: 0 | R187: 0 | S187: 0 | T187: 0 | U187: 0 | V187: 0 | W187: 0 | X187: 0 | Y187: 0 | Z187: 0 | AA187: 0.00 | AB187: 0.00 | AC187: 0.00 | AD187: 0.00 | AE187: 0.00 | AF187: 0.00 | AG187: 0.00 | AH187: 0.00 | AI187: 0.00 | AJ187: 0.00 | AK187: 0.00 | AL187: 0.00 | AM187: 0.00 | AN187: =IF(MengeInEEGSummieren(M187),AM187,0) ->  | AO187: 0.00 | AP187: 0.00 | AS187: 0 | AT187: 0
A188: WaK2512------0 | B188: Wasser | D188: Verringerung auf null nach § 25 Abs. 1 Nr. 2 (Nichtmeldung Leistungserhöhung an Anlagenregister) | F188: 0.00 | G188: 0.00 | H188: 0 | I188: 0.00 | J188: 0 | K188: 0.00 | L188: 0 | M188: 301432832 | N188: 42065747 | O188: 0 | P188: 0 | Q188: 0 | R188: 0 | S188: 0 | T188: 0 | U188: 0 | V188: 0 | W188: 0 | X188: 0 | Y188: 0 | Z188: 0 | AA188: 0.00 | AB188: 0.00 | AC188: 0.00 | AD188: 0.00 | AE188: 0.00 | AF188: 0.00 | AG188: 0.00 | AH188: 0.00 | AI188: 0.00 | AJ188: 0.00 | AK188: 0.00 | AL188: 0.00 | AM188: 0.00 | AN188: =IF(MengeInEEGSummieren(M188),AM188,0) ->  | AO188: 0.00 | AP188: 0.00 | AS188: 0 | AT188: 0
A189: WaK2513------0 | B189: Wasser | D189: Verringerung auf null nach § 25 Abs. 1 Nr. 3 (Pflichtverletzung bei anteiliger DV) | F189: 0.00 | G189: 0.00 | H189: 0 | I189: 0.00 | J189: 0 | K189: 0.00 | L189: 0 | M189: 301432832 | N189: 42065747 | O189: 0 | P189: 0 | Q189: 0 | R189: 0 | S189: 0 | T189: 0 | U189: 0 | V189: 0 | W189: 0 | X189: 0 | Y189: 0 | Z189: 0 | AA189: 0.00 | AB189: 0.00 | AC189: 0.00 | AD189: 0.00 | AE189: 0.00 | AF189: 0.00 | AG189: 0.00 | AH189: 0.00 | AI189: 0.00 | AJ189: 0.00 | AK189: 0.00 | AL189: 0.00 | AM189: 0.00 | AN189: =IF(MengeInEEGSummieren(M189),AM189,0) ->  | AO189: 0.00 | AP189: 0.00 | AS189: 0 | AT189: 0
A190: WaK2514------0 | B190: Wasser | D190: Verringerung auf null nach § 25 Abs. 1 Nr. 4 (Feh...s zur Stilllegung einer anderen Biomethananlage) | F190: 0.00 | G190: 0.00 | H190: 0 | I190: 0.00 | J190: 0 | K190: 0.00 | L190: 0 | M190: 301432832 | N190: 42065747 | O190: 0 | P190: 0 | Q190: 0 | R190: 0 | S190: 0 | T190: 0 | U190: 0 | V190: 0 | W190: 0 | X190: 0 | Y190: 0 | Z190: 0 | AA190: 0.00 | AB190: 0.00 | AC190: 0.00 | AD190: 0.00 | AE190: 0.00 | AF190: 0.00 | AG190: 0.00 | AH190: 0.00 | AI190: 0.00 | AJ190: 0.00 | AK190: 0.00 | AL190: 0.00 | AM190: 0.00 | AN190: =IF(MengeInEEGSummieren(M190),AM190,0) ->  | AO190: 0.00 | AP190: 0.00 | AS190: 0 | AT190: 0
A191: WaK2521-----MW | B191: Wasser | D191: Verringerung auf Marktwert nach § 25 Abs. 2 Nr. 1 (Verstoß gegen technische Vorgaben) | F191: 0.00 | G191: 0.00 | H191: 0 | I191: 0.00 | J191: 0 | K191: 0.00 | L191: 0 | M191: 288751872 | N191: 42065747 | O191: 0 | P191: 0 | Q191: 0 | R191: 0 | S191: 0 | T191: 0 | U191: 0 | V191: 0 | W191: 0 | X191: 0 | Y191: 0 | Z191: 0 | AA191: 0.00 | AB191: 0.00 | AC191: 0.00 | AD191: 0.00 | AE191: 0.00 | AF191: 0.00 | AG191: 0.00 | AH191: 0.00 | AI191: 0.00 | AJ191: 0.00 | AK191: 0.00 | AL191: 0.00 | AM191: 0.00 | AN191: =IF(MengeInEEGSummieren(M191),AM191,0) ->  | AO191: 0.00 | AP191: 0.00 | AS191: 0 | AT191: 0
A192: WaK2522-----MW | B192: Wasser | D192: Verringerung auf Marktwert nach § 25 Abs. 2 Nr. 2...n Meldepflicht zum Wechsel der Vermarktungsform) | F192: 0.00 | G192: 0.00 | H192: 0 | I192: 0.00 | J192: 0 | K192: 0.00 | L192: 0 | M192: 288751872 | N192: 42065747 | O192: 0 | P192: 0 | Q192: 0 | R192: 0 | S192: 0 | T192: 0 | U192: 0 | V192: 0 | W192: 0 | X192: 0 | Y192: 0 | Z192: 0 | AA192: 0.00 | AB192: 0.00 | AC192: 0.00 | AD192: 0.00 | AE192: 0.00 | AF192: 0.00 | AG192: 0.00 | AH192: 0.00 | AI192: 0.00 | AJ192: 0.00 | AK192: 0.00 | AL192: 0.00 | AM192: 0.00 | AN192: =IF(MengeInEEGSummieren(M192),AM192,0) ->  | AO192: 0.00 | AP192: 0.00 | AS192: 0 | AT192: 0
A193: WaK2523-----MW | B193: Wasser | D193: Verringerung auf Marktwert nach § 25 Abs. 2 Nr. 3 (Verstoß gegen gemeinsame Messeinrichtung) | F193: 0.00 | G193: 0.00 | H193: 0 | I193: 0.00 | J193: 0 | K193: 0.00 | L193: 0 | M193: 288751872 | N193: 42065747 | O193: 0 | P193: 0 | Q193: 0 | R193: 0 | S193: 0 | T193: 0 | U193: 0 | V193: 0 | W193: 0 | X193: 0 | Y193: 0 | Z193: 0 | AA193: 0.00 | AB193: 0.00 | AC193: 0.00 | AD193: 0.00 | AE193: 0.00 | AF193: 0.00 | AG193: 0.00 | AH193: 0.00 | AI193: 0.00 | AJ193: 0.00 | AK193: 0.00 | AL193: 0.00 | AM193: 0.00 | AN193: =IF(MengeInEEGSummieren(M193),AM193,0) ->  | AO193: 0.00 | AP193: 0.00 | AS193: 0 | AT193: 0
A194: WaK2524-----MW | B194: Wasser | D194: Verringerung auf Marktwert nach § 25 Abs. 2 Nr. 4 (Verstoß gegen Stromüberlassung nach § 39 Abs. 2) | F194: 0.00 | G194: 0.00 | H194: 0 | I194: 0.00 | J194: 0 | K194: 0.00 | L194: 0 | M194: 288751872 | N194: 42065747 | O194: 0 | P194: 0 | Q194: 0 | R194: 0 | S194: 0 | T194: 0 | U194: 0 | V194: 0 | W194: 0 | X194: 0 | Y194: 0 | Z194: 0 | AA194: 0.00 | AB194: 0.00 | AC194: 0.00 | AD194: 0.00 | AE194: 0.00 | AF194: 0.00 | AG194: 0.00 | AH194: 0.00 | AI194: 0.00 | AJ194: 0.00 | AK194: 0.00 | AL194: 0.00 | AM194: 0.00 | AN194: =IF(MengeInEEGSummieren(M194),AM194,0) ->  | AO194: 0.00 | AP194: 0.00 | AS194: 0 | AT194: 0
A195: WaK2525-----MW | B195: Wasser | D195: Verringerung auf Marktwert nach § 25 Abs. 2 Nr. 5 (Doppelvermarktung) | F195: 0.00 | G195: 0.00 | H195: 0 | I195: 0.00 | J195: 0 | K195: 0.00 | L195: 0 | M195: 288751872 | N195: 42065747 | O195: 0 | P195: 0 | Q195: 0 | R195: 0 | S195: 0 | T195: 0 | U195: 0 | V195: 0 | W195: 0 | X195: 0 | Y195: 0 | Z195: 0 | AA195: 0.00 | AB195: 0.00 | AC195: 0.00 | AD195: 0.00 | AE195: 0.00 | AF195: 0.00 | AG195: 0.00 | AH195: 0.00 | AI195: 0.00 | AJ195: 0.00 | AK195: 0.00 | AL195: 0.00 | AM195: 0.00 | AN195: =IF(MengeInEEGSummieren(M195),AM195,0) ->  | AO195: 0.00 | AP195: 0.00 | AS195: 0 | AT195: 0
A196: WaK2526-----MW | B196: Wasser | D196: Verringerung auf Marktwert nach § 25 Abs. 2 Nr. 6 (Vorbildfunktion öffentlicher Gebäude) | F196: 0.00 | G196: 0.00 | H196: 0 | I196: 0.00 | J196: 0 | K196: 0.00 | L196: 0 | M196: 288751872 | N196: 42065747 | O196: 0 | P196: 0 | Q196: 0 | R196: 0 | S196: 0 | T196: 0 | U196: 0 | V196: 0 | W196: 0 | X196: 0 | Y196: 0 | Z196: 0 | AA196: 0.00 | AB196: 0.00 | AC196: 0.00 | AD196: 0.00 | AE196: 0.00 | AF196: 0.00 | AG196: 0.00 | AH196: 0.00 | AI196: 0.00 | AJ196: 0.00 | AK196: 0.00 | AL196: 0.00 | AM196: 0.00 | AN196: =IF(MengeInEEGSummieren(M196),AM196,0) ->  | AO196: 0.00 | AP196: 0.00 | AS196: 0 | AT196: 0
A197: WaK1004------0 | B197: Wasser | D197: Entfall Vergütungsanspruch bzw. Marktprämie nach ...(Nichterfüllung der Systemstabilitätsverordnung) | F197: 0.00 | G197: 0.00 | H197: 0 | I197: 0.00 | J197: 0 | K197: 0.00 | L197: 0 | M197: 301432832 | N197: 42065747 | O197: 0 | P197: 0 | Q197: 0 | R197: 0 | S197: 0 | T197: 0 | U197: 0 | V197: 0 | W197: 0 | X197: 0 | Y197: 0 | Z197: 0 | AA197: 0.00 | AB197: 0.00 | AC197: 0.00 | AD197: 0.00 | AE197: 0.00 | AF197: 0.00 | AG197: 0.00 | AH197: 0.00 | AI197: 0.00 | AJ197: 0.00 | AK197: 0.00 | AL197: 0.00 | AM197: 0.00 | AN197: =IF(MengeInEEGSummieren(M197),AM197,0) ->  | AO197: 0.00 | AP197: 0.00 | AS197: 0 | AT197: 0
A198: WaK-kVG------0 | B198: Wasser | D198: Entfall Vergütungsanspruch (Nichterfüllung der Anforderungen § 23 EEG 2012 oder § 40 EEG 2014) | F198: 0.00 | G198: 0.00 | H198: 0 | I198: 0.00 | J198: 0 | K198: 0.00 | L198: 0 | M198: 301432832 | N198: 42065747 | O198: 0 | P198: 0 | Q198: 0 | R198: 0 | S198: 0 | T198: 0 | U198: 0 | V198: 0 | W198: 0 | X198: 0 | Y198: 0 | Z198: 0 | AA198: 0.00 | AB198: 0.00 | AC198: 0.00 | AD198: 0.00 | AE198: 0.00 | AF198: 0.00 | AG198: 0.00 | AH198: 0.00 | AI198: 0.00 | AJ198: 0.00 | AK198: 0.00 | AL198: 0.00 | AM198: 0.00 | AN198: =IF(MengeInEEGSummieren(M198),AM198,0) ->  | AO198: 0.00 | AP198: 0.00 | AS198: 0 | AT198: 0
A199: WaK35---MPM--0 | B199: Wasser | D199: Entfall der Marktprämie nach § 35 EEG 2014 (Nicheinhaltung der Voraussetzungen der Marktprämie) | F199: 0.00 | G199: 0.00 | H199: 0 | I199: 0.00 | J199: 0 | K199: 0.00 | L199: 0 | M199: 287735808 | N199: 42065747 | O199: 0 | P199: 0 | Q199: 0 | R199: 0 | S199: 0 | T199: 0 | U199: 0 | V199: 0 | W199: 0 | X199: 0 | Y199: 0 | Z199: 0 | AA199: 0.00 | AB199: 0.00 | AC199: 0.00 | AD199: 0.00 | AE199: 0.00 | AF199: 0.00 | AG199: 0.00 | AH199: 0.00 | AI199: 0.00 | AJ199: 0.00 | AK199: 0.00 | AL199: 0.00 | AM199: 0.00 | AN199: =IF(MengeInEEGSummieren(M199),AM199,0) ->  | AO199: 0.00 | AP199: 0.00 | AS199: 0 | AT199: 0
AM200: 0.00 | AN200: =IF(MengeInEEGSummieren(M200),AM200,0) ->  | AO200: 0.00 | AP200: 0.00 | AS200: 0 | AT200: 0
A201: WaK33a2-----SV | B201: Wasser | D201: Strommenge ohne EEG-Vergütung, durch Anlagenbetreiber oder durch Dritte verbraucht | F201: 0.00 | G201: 0.00 | H201: 0 | I201: 0.00 | J201: 0 | K201: 0.00 | L201: 1 | M201: 17891336 | N201: 42065747 | O201: 0 | P201: 0 | Q201: 0 | R201: 0 | S201: 0 | T201: 0 | U201: 0 | V201: 0 | W201: 0 | X201: 0 | Y201: 0 | Z201: 0 | AA201: 0.00 | AB201: 0.00 | AC201: 0.00 | AD201: 0.00 | AE201: 0.00 | AF201: 0.00 | AG201: 0.00 | AH201: 0.00 | AI201: 0.00 | AJ201: 0.00 | AK201: 0.00 | AL201: 0.00 | AM201: 0.00 | AN201: =IF(MengeInEEGSummieren(M201),AM201,0) ->  | AO201: 0.00 | AP201: 0.00 | AS201: 0 | AT201: 0
... 924 more rows

Sheet Zusammenfassung VNNE
G1: vNNE Summe [€] | H1: vNNE EEG [€] | I1: vNNE Marktprämie [€]
F2: HöS | G2: =SUMIF($D$15:$D$116,"vNNe, Spannungsebene: "&F2,$G$15:$G$116) -> 0.00 | H2: =SUMIF($D$15:$D$116,"vNNe, Spannungsebene: "&$F2,H$15:H$116) -> 0.00 | I2: 0.00
F3: HöS/HS | G3: 0.00 | H3: 0.00 | I3: 0.00
F4: HS | G4: 0.00 | H4: 0.00 | I4: 0.00
F5: HS/MS | G5: 0.00 | H5: 0.00 | I5: 0.00
F6: MS | G6: 36,620.96 | H6: 35,233.37 | I6: 1,387.59
F7: MS/NS | G7: 0.00 | H7: 0.00 | I7: 0.00
F8: NS | G8: 20,327.73 | H8: 20,327.73 | I8: 0.00
F9: Summe | G9: =SUM(G2:G8) -> 56,948.69 | H9: =SUM(H2:H8) -> 55,561.10 | I9: =SUM(I2:I8) -> 1,387.59
G12: =EEG_JAHR -> 2015
G13: vermiedene Netznutzungsentgelte [€]
A14: Bezeichnung der Vergütungskategorie | B14: Energieträger | D14: weitere Kriterien | G14: Summe | H14: EEG | I14: Marktprämie
A15: Wa-vNNe--SpE01 | B15: vNNE Wasser | D15: vNNe, Spannungsebene: HöS | G15: =SUM(H15:I15) -> 0.00 | H15: 0.00 | I15: 0.00
A16: Wa-vNNe--SpE02 | B16: vNNE Wasser | D16: vNNe, Spannungsebene: Hös/HS | G16: =SUM(H16:I16) -> 0.00 | H16: 0.00 | I16: 0.00
A17: Wa-vNNe--SpE03 | B17: vNNE Wasser | D17: vNNe, Spannungsebene: HS | G17: 0.00 | H17: 0.00 | I17: 0.00
A18: Wa-vNNe--SpE04 | B18: vNNE Wasser | D18: vNNe, Spannungsebene: HS/MS | G18: 0.00 | H18: 0.00 | I18: 0.00
A19: Wa-vNNe--SpE05 | B19: vNNE Wasser | D19: vNNe, Spannungsebene: MS | G19: 0.00 | H19: 0.00 | I19: 0.00
A20: Wa-vNNe--SpE06 | B20: vNNE Wasser | D20: vNNe, Spannungsebene: MS/NS | G20: 0.00 | H20: 0.00 | I20: 0.00
A21: Wa-vNNe--SpE07 | B21: vNNE Wasser | D21: vNNe, Spannungsebene: NS | G21: 2,208.29 | H21: 2,208.29 | I21: 0.00
A23: Ga-vNNe--SpE01 | B23: vNNE Deponie-, Klär-, Grubengas | D23: vNNe, Spannungsebene: HöS | G23: 0.00 | H23: 0.00 | I23: 0.00
A24: Ga-vNNe--SpE02 | B24: vNNE Deponie-, Klär-, Grubengas | D24: vNNe, Spannungsebene: Hös/HS | G24: 0.00 | H24: 0.00 | I24: 0.00
A25: Ga-vNNe--SpE03 | B25: vNNE Deponie-, Klär-, Grubengas | D25: vNNe, Spannungsebene: HS | G25: 0.00 | H25: 0.00 | I25: 0.00
A26: Ga-vNNe--SpE04 | B26: vNNE Deponie-, Klär-, Grubengas | D26: vNNe, Spannungsebene: HS/MS | G26: 0.00 | H26: 0.00 | I26: 0.00
A27: Ga-vNNe--SpE05 | B27: vNNE Deponie-, Klär-, Grubengas | D27: vNNe, Spannungsebene: MS | G27: 0.00 | H27: 0.00 | I27: 0.00
A28: Ga-vNNe--SpE06 | B28: vNNE Deponie-, Klär-, Grubengas | D28: vNNe, Spannungsebene: MS/NS | G28: 0.00 | H28: 0.00 | I28: 0.00
A29: Ga-vNNe--SpE07 | B29: vNNE Deponie-, Klär-, Grubengas | D29: vNNe, Spannungsebene: NS | G29: 0.00 | H29: 0.00 | I29: 0.00
A31: De-vNNe--SpE01 | B31: vNNE Deponie-, Klär-, Grubengas | D31: vNNe, Spannungsebene: HöS | G31: 0.00 | H31: 0.00 | I31: 0.00
A32: De-vNNe--SpE02 | B32: vNNE Deponie-, Klär-, Grubengas | D32: vNNe, Spannungsebene: Hös/HS | G32: 0.00 | H32: 0.00 | I32: 0.00
A33: De-vNNe--SpE03 | B33: vNNE Deponie-, Klär-, Grubengas | D33: vNNe, Spannungsebene: HS | G33: 0.00 | H33: 0.00 | I33: 0.00
A34: De-vNNe--SpE04 | B34: vNNE Deponie-, Klär-, Grubengas | D34: vNNe, Spannungsebene: HS/MS | G34: 0.00 | H34: 0.00 | I34: 0.00
A35: De-vNNe--SpE05 | B35: vNNE Deponie-, Klär-, Grubengas | D35: vNNe, Spannungsebene: MS | G35: 0.00 | H35: 0.00 | I35: 0.00
A36: De-vNNe--SpE06 | B36: vNNE Deponie-, Klär-, Grubengas | D36: vNNe, Spannungsebene: MS/NS | G36: 0.00 | H36: 0.00 | I36: 0.00
A37: De-vNNe--SpE07 | B37: vNNE Deponie-, Klär-, Grubengas | D37: vNNe, Spannungsebene: NS | G37: 0.00 | H37: 0.00 | I37: 0.00
A39: Kl-vNNe--SpE01 | B39: vNNE Deponie-, Klär-, Grubengas | D39: vNNe, Spannungsebene: HöS | G39: 0.00 | H39: 0.00 | I39: 0.00
A40: Kl-vNNe--SpE02 | B40: vNNE Deponie-, Klär-, Grubengas | D40: vNNe, Spannungsebene: Hös/HS | G40: 0.00 | H40: 0.00 | I40: 0.00
A41: Kl-vNNe--SpE03 | B41: vNNE Deponie-, Klär-, Grubengas | D41: vNNe, Spannungsebene: HS | G41: 0.00 | H41: 0.00 | I41: 0.00
A42: Kl-vNNe--SpE04 | B42: vNNE Deponie-, Klär-, Grubengas | D42: vNNe, Spannungsebene: HS/MS | G42: 0.00 | H42: 0.00 | I42: 0.00
A43: Kl-vNNe--SpE05 | B43: vNNE Deponie-, Klär-, Grubengas | D43: vNNe, Spannungsebene: MS | G43: 0.00 | H43: 0.00 | I43: 0.00
A44: Kl-vNNe--SpE06 | B44: vNNE Deponie-, Klär-, Grubengas | D44: vNNe, Spannungsebene: MS/NS | G44: 0.00 | H44: 0.00 | I44: 0.00
A45: Kl-vNNe--SpE07 | B45: vNNE Deponie-, Klär-, Grubengas | D45: vNNe, Spannungsebene: NS | G45: 0.00 | H45: 0.00 | I45: 0.00
A47: Gr-vNNe--SpE01 | B47: vNNE Deponie-, Klär-, Grubengas | D47: vNNe, Spannungsebene: HöS | G47: 0.00 | H47: 0.00 | I47: 0.00
A48: Gr-vNNe--SpE02 | B48: vNNE Deponie-, Klär-, Grubengas | D48: vNNe, Spannungsebene: Hös/HS | G48: 0.00 | H48: 0.00 | I48: 0.00
A49: Gr-vNNe--SpE03 | B49: vNNE Deponie-, Klär-, Grubengas | D49: vNNe, Spannungsebene: HS | G49: 0.00 | H49: 0.00 | I49: 0.00
A50: Gr-vNNe--SpE04 | B50: vNNE Deponie-, Klär-, Grubengas | D50: vNNe, Spannungsebene: HS/MS | G50: 0.00 | H50: 0.00 | I50: 0.00
A51: Gr-vNNe--SpE05 | B51: vNNE Deponie-, Klär-, Grubengas | D51: vNNe, Spannungsebene: MS | G51: 0.00 | H51: 0.00 | I51: 0.00
A52: Gr-vNNe--SpE06 | B52: vNNE Deponie-, Klär-, Grubengas | D52: vNNe, Spannungsebene: MS/NS | G52: 0.00 | H52: 0.00 | I52: 0.00
A53: Gr-vNNe--SpE07 | B53: vNNE Deponie-, Klär-, Grubengas | D53: vNNe, Spannungsebene: NS | G53: 0.00 | H53: 0.00 | I53: 0.00
A55: Bi-vNNe--SpE01 | B55: vNNE Biomasse | D55: vNNe, Spannungsebene: HöS | G55: 0.00 | H55: 0.00 | I55: 0.00
A56: Bi-vNNe--SpE02 | B56: vNNE Biomasse | D56: vNNe, Spannungsebene: Hös/HS | G56: 0.00 | H56: 0.00 | I56: 0.00
A57: Bi-vNNe--SpE03 | B57: vNNE Biomasse | D57: vNNe, Spannungsebene: HS | G57: 0.00 | H57: 0.00 | I57: 0.00
A58: Bi-vNNe--SpE04 | B58: vNNE Biomasse | D58: vNNe, Spannungsebene: HS/MS | G58: 0.00 | H58: 0.00 | I58: 0.00
A59: Bi-vNNe--SpE05 | B59: vNNE Biomasse | D59: vNNe, Spannungsebene: MS | G59: 0.00 | H59: 0.00 | I59: 0.00
A60: Bi-vNNe--SpE06 | B60: vNNE Biomasse | D60: vNNe, Spannungsebene: MS/NS | G60: 0.00 | H60: 0.00 | I60: 0.00
A61: Bi-vNNe--SpE07 | B61: vNNE Biomasse | D61: vNNe, Spannungsebene: NS | G61: 5,057.60 | H61: 5,057.60 | I61: 0.00
A63: Ge-vNNe--SpE01 | B63: vNNE Geothermie | D63: vNNe, Spannungsebene: HöS | G63: 0.00 | H63: 0.00 | I63: 0.00
A64: Ge-vNNe--SpE02 | B64: vNNE Geothermie | D64: vNNe, Spannungsebene: Hös/HS | G64: 0.00 | H64: 0.00 | I64: 0.00
A65: Ge-vNNe--SpE03 | B65: vNNE Geothermie | D65: vNNe, Spannungsebene: HS | G65: 0.00 | H65: 0.00 | I65: 0.00
A66: Ge-vNNe--SpE04 | B66: vNNE Geothermie | D66: vNNe, Spannungsebene: HS/MS | G66: 0.00 | H66: 0.00 | I66: 0.00
A67: Ge-vNNe--SpE05 | B67: vNNE Geothermie | D67: vNNe, Spannungsebene: MS | G67: 0.00 | H67: 0.00 | I67: 0.00
A68: Ge-vNNe--SpE06 | B68: vNNE Geothermie | D68: vNNe, Spannungsebene: MS/NS | G68: 0.00 | H68: 0.00 | I68: 0.00
A69: Ge-vNNe--SpE07 | B69: vNNE Geothermie | D69: vNNe, Spannungsebene: NS | G69: 0.00 | H69: 0.00 | I69: 0.00
A71: Wi-vNNe--SpE01 | B71: vNNE Wind | D71: vNNe, Spannungsebene: HöS | G71: 0.00 | H71: 0.00 | I71: 0.00
A72: Wi-vNNe--SpE02 | B72: vNNE Wind | D72: vNNe, Spannungsebene: Hös/HS | G72: 0.00 | H72: 0.00 | I72: 0.00
A73: Wi-vNNe--SpE03 | B73: vNNE Wind | D73: vNNe, Spannungsebene: HS | G73: 0.00 | H73: 0.00 | I73: 0.00
A74: Wi-vNNe--SpE04 | B74: vNNE Wind | D74: vNNe, Spannungsebene: HS/MS | G74: 0.00 | H74: 0.00 | I74: 0.00
A75: Wi-vNNe--SpE05 | B75: vNNE Wind | D75: vNNe, Spannungsebene: MS | G75: 0.00 | H75: 0.00 | I75: 0.00
A76: Wi-vNNe--SpE06 | B76: vNNE Wind | D76: vNNe, Spannungsebene: MS/NS | G76: 0.00 | H76: 0.00 | I76: 0.00
A77: Wi-vNNe--SpE07 | B77: vNNE Wind | D77: vNNe, Spannungsebene: NS | G77: 0.00 | H77: 0.00 | I77: 0.00
A78: Wn-vNNe--SpE01 | B78: vNNE Wind | D78: vNNe, Spannungsebene: HöS | G78: 0.00 | H78: 0.00 | I78: 0.00
A79: Wn-vNNe--SpE02 | B79: vNNE Wind | D79: vNNe, Spannungsebene: Hös/HS | G79: 0.00 | H79: 0.00 | I79: 0.00
A80: Wn-vNNe--SpE03 | B80: vNNE Wind | D80: vNNe, Spannungsebene: HS | G80: =SUM(H80:I80) -> 0.00 | H80: 0.00 | I80: 0.00
A81: Wn-vNNe--SpE04 | B81: vNNE Wind | D81: vNNe, Spannungsebene: HS/MS | G81: 0.00 | H81: 0.00 | I81: 0.00
A82: Wn-vNNe--SpE05 | B82: vNNE Wind | D82: vNNe, Spannungsebene: MS | G82: 0.00 | H82: 0.00 | I82: 0.00
A83: Wn-vNNe--SpE06 | B83: vNNE Wind | D83: vNNe, Spannungsebene: MS/NS | G83: 0.00 | H83: 0.00 | I83: 0.00
A84: Wn-vNNe--SpE07 | B84: vNNE Wind | D84: vNNe, Spannungsebene: NS | G84: 0.00 | H84: 0.00 | I84: 0.00
A86: Wr-vNNe--SpE01 | B86: vNNE Wind | D86: vNNe, Spannungsebene: HöS | G86: 0.00 | H86: 0.00 | I86: 0.00
A87: Wr-vNNe--SpE02 | B87: vNNE Wind | D87: vNNe, Spannungsebene: Hös/HS | G87: 0.00 | H87: 0.00 | I87: 0.00
A88: Wr-vNNe--SpE03 | B88: vNNE Wind | D88: vNNe, Spannungsebene: HS | G88: 0.00 | H88: 0.00 | I88: 0.00
A89: Wr-vNNe--SpE04 | B89: vNNE Wind | D89: vNNe, Spannungsebene: HS/MS | G89: 0.00 | H89: 0.00 | I89: 0.00
A90: Wr-vNNe--SpE05 | B90: vNNE Wind | D90: vNNe, Spannungsebene: MS | G90: 0.00 | H90: 0.00 | I90: 0.00
A91: Wr-vNNe--SpE06 | B91: vNNE Wind | D91: vNNe, Spannungsebene: MS/NS | G91: 0.00 | H91: 0.00 | I91: 0.00
A92: Wr-vNNe--SpE07 | B92: vNNE Wind | D92: vNNe, Spannungsebene: NS | G92: 0.00 | H92: 0.00 | I92: 0.00
A94: Wf-vNNe--SpE01 | B94: vNNE Wind Offshore | D94: vNNe, Spannungsebene: HöS | G94: 0.00 | H94: 0.00 | I94: 0.00
A95: Wf-vNNe--SpE02 | B95: vNNE Wind Offshore | D95: vNNe, Spannungsebene: Hös/HS | G95: 0.00 | H95: 0.00 | I95: 0.00
A96: Wf-vNNe--SpE03 | B96: vNNE Wind Offshore | D96: vNNe, Spannungsebene: HS | G96: 0.00 | H96: 0.00 | I96: 0.00
A97: Wf-vNNe--SpE04 | B97: vNNE Wind Offshore | D97: vNNe, Spannungsebene: HS/MS | G97: 0.00 | H97: 0.00 | I97: 0.00
A98: Wf-vNNe--SpE05 | B98: vNNE Wind Offshore | D98: vNNe, Spannungsebene: MS | G98: 0.00 | H98: 0.00 | I98: 0.00
A99: Wf-vNNe--SpE06 | B99: vNNE Wind Offshore | D99: vNNe, Spannungsebene: MS/NS | G99: 0.00 | H99: 0.00 | I99: 0.00
A100: Wf-vNNe--SpE07 | B100: vNNE Wind Offshore | D100: vNNe, Spannungsebene: NS | G100: 0.00 | H100: 0.00 | I100: 0.00
A102: So-vNNe--SpE01 | B102: vNNE Solar | D102: vNNe, Spannungsebene: HöS | G102: 0.00 | H102: 0.00 | I102: 0.00
A103: So-vNNe--SpE02 | B103: vNNE Solar | D103: vNNe, Spannungsebene: Hös/HS | G103: 0.00 | H103: 0.00 | I103: 0.00
A104: So-vNNe--SpE03 | B104: vNNE Solar | D104: vNNe, Spannungsebene: HS | G104: 0.00 | H104: 0.00 | I104: 0.00
A105: So-vNNe--SpE04 | B105: vNNE Solar | D105: vNNe, Spannungsebene: HS/MS | G105: 0.00 | H105: 0.00 | I105: 0.00
A106: So-vNNe--SpE05 | B106: vNNE Solar | D106: vNNe, Spannungsebene: MS | G106: 31,694.17 | H106: 30,306.58 | I106: 1,387.59
A107: So-vNNe--SpE06 | B107: vNNE Solar | D107: vNNe, Spannungsebene: MS/NS | G107: 0.00 | H107: 0.00 | I107: 0.00
A108: So-vNNe--SpE07 | B108: vNNE Solar | D108: vNNe, Spannungsebene: NS | G108: 1,536.51 | H108: 1,536.51 | I108: 0.00
A109: Sg-vNNe--SpE01 | B109: vNNE Solar | D109: vNNe, Spannungsebene: HöS | G109: 0.00 | H109: 0.00 | I109: 0.00
A110: Sg-vNNe--SpE02 | B110: vNNE Solar | D110: vNNe, Spannungsebene: Hös/HS | G110: 0.00 | H110: 0.00 | I110: 0.00
A111: Sg-vNNe--SpE03 | B111: vNNE Solar | D111: vNNe, Spannungsebene: HS | G111: 0.00 | H111: 0.00 | I111: 0.00
A112: Sg-vNNe--SpE04 | B112: vNNE Solar | D112: vNNe, Spannungsebene: HS/MS | G112: 0.00 | H112: 0.00 | I112: 0.00
A113: Sg-vNNe--SpE05 | B113: vNNE Solar | D113: vNNe, Spannungsebene: MS | G113: 4,926.79 | H113: 4,926.79 | I113: 0.00
A114: Sg-vNNe--SpE06 | B114: vNNE Solar | D114: vNNe, Spannungsebene: MS/NS | G114: 0.00 | H114: 0.00 | I114: 0.00
A115: Sg-vNNe--SpE07 | B115: vNNE Solar | D115: vNNe, Spannungsebene: NS | G115: 11,525.33 | H115: 11,525.33 | I115: 0.00

Sheet Teil1
C1: =IF(EEG_JAHR<=2012,"Bitte leer lassen! Eintragung erst ab Jahresabrechnung 2013","") ->  | E1: =IF(EEG_JAHR>2011,"EEG Einspeisung und Sonstige DV [kWh]","EEG Einspeisung, Direktvermarktung [kWh]") -> EEG Einspeisung und Sonstige DV [kWh] | F1: vermiedene Netznutzungsentgelte [€] / Vergütung Ausschreibungskategorien | H1: Strommenge Marktprämie [kWh]
A2: Anlagenschlüssel | B2: Vergütungskategorie | C2: Anlage fernsteuerbar | D2: Zuordnung Strom | E2: Strommenge | F2: EEG | G2: Marktprämie | H2: Januar | I2: Februar | J2: März | K2: April | L2: Mai | M2: Juni | N2: Juli | O2: August | P2: September | Q2: Oktober | R2: November | S2: Dezember
A3: E4058501S000000007000000000000001 | B3: SoK81a------01 | C3: Nein | E3: 647
A4: E4058501S000000007000000000000001 | B4: So-vNNe--SpE07 | F4: 5.69
A5: E4058501S000000004000000000000001 | B5: SoK81a------01 | C5: Nein | E5: 1606
A6: E4058501S000000004000000000000001 | B6: So-vNNe--SpE07 | F6: 14.13
A7: E4058501S000000009000000000000001 | B7: SoK81a------01 | C7: Nein | E7: 1488
A8: E4058501S000000009000000000000001 | B8: So-vNNe--SpE07 | F8: 13.09
A9: E4058501S000000030000000000100001 | B9: SoK81a------01 | C9: Nein | E9: 1141
A10: E4058501S000000030000000000100001 | B10: So-vNNe--SpE07 | F10: 10.04
A11: E4058501S000000029000000000000001 | B11: SoK81a------02 | C11: Nein | E11: 2575
A12: E4058501S000000029000000000000001 | B12: So-vNNe--SpE07 | F12: 22.66
A13: E4058501S000000013000000000000001 | B13: SoK111------04 | C13: Nein | E13: 1087
A14: E4058501S000000013000000000000001 | B14: So-vNNe--SpE07 | F14: 9.57
A15: E4058501S000000005000000000000001 | B15: SoK111------05 | C15: Nein | E15: 4728
A16: E4058501S000000005000000000000001 | B16: So-vNNe--SpE07 | F16: 41.6
A17: E4058501S000000019000000000000001 | B17: SoK111------05 | C17: Nein | E17: 4613
A18: E4058501S000000019000000000000001 | B18: So-vNNe--SpE07 | F18: 40.59
A19: E4058501S000000056000000000000001 | B19: SoK111------05 | C19: Nein | E19: 4489
A20: E4058501S000000056000000000000001 | B20: So-vNNe--SpE07 | F20: 39.5
A21: E4058501S000000004000000000100001 | B21: SoK111------06 | C21: Nein | E21: 7250
A22: E4058501S000000004000000000100001 | B22: So-vNNe--SpE07 | F22: 63.8
A23: E4058501S000000030000000000200001 | B23: SoK111------07 | C23: Nein | E23: 2874
A24: E4058501S000000030000000000200001 | B24: So-vNNe--SpE07 | F24: 25.29
A25: E4058501S000000014000000000000001 | B25: SoK111------07 | C25: Nein | E25: 4927
A26: E4058501S000000014000000000000001 | B26: So-vNNe--SpE07 | F26: 43.36
A27: E4058501S000000006000000000200001 | B27: SoK111------08 | C27: Nein | E27: 6281
A28: E4058501S000000006000000000200001 | B28: So-vNNe--SpE07 | F28: 55.27
A29: E4058501S000000025000000000000001 | B29: SoK111------08 | C29: Nein | E29: 14622
A30: E4058501S000000025000000000000001 | B30: So-vNNe--SpE07 | F30: 128.67
A31: E4058501S000000096000000000000001 | B31: SoK111------08 | C31: Nein | E31: 5742
A32: E4058501S000000096000000000000001 | B32: So-vNNe--SpE07 | F32: 50.53
A33: E4058501S000000024000000000000001 | B33: SoK111------08 | C33: Nein | E33: 3877
A34: E4058501S000000024000000000000001 | B34: So-vNNe--SpE07 | F34: 34.12
A35: E4058501S000000042000000000000001 | B35: SoK111------08 | C35: Nein | E35: 30907
A36: E4058501S000000042000000000000001 | B36: SoK112------08 | C36: Nein | E36: 23488
A37: E4058501S000000042000000000000001 | B37: So-vNNe--SpE07 | F37: 478.68
A38: E4058501S000000007000000000100001 | B38: SgK330------09 | C38: Nein | E38: 8834
A39: E4058501S000000007000000000100001 | B39: Sg-vNNe--SpE07 | F39: 77.74
A40: E4058501S000000042000000000100001 | B40: SgK330------09 | C40: Nein | E40: 8569
A41: E4058501S000000042000000000100001 | B41: Sg-vNNe--SpE07 | F41: 75.41
A42: E4058501S000000005000000000100001 | B42: SgK330------09 | C42: Nein | E42: 4628
A43: E4058501S000000005000000000100001 | B43: Sg-vNNe--SpE07 | F43: 40.73
A44: E4058501S000000030000000000200002 | B44: SgK330------09 | C44: Nein | E44: 2404
A45: E4058501S000000030000000000200002 | B45: Sg-vNNe--SpE07 | F45: 21.16
A46: E4058501S000000014000000000100001 | B46: SgK330------09 | C46: Nein | E46: 3460
A47: E4058501S000000014000000000100001 | B47: SgK3341-----09 | C47: Nein | E47: 688
A48: E4058501S000000014000000000100001 | B48: SgK3342-----09 | C48: Nein | E48: -688
A49: E4058501S000000014000000000100001 | B49: Sg-vNNe--SpE07 | F49: 30.45
A50: E4058501S000000026000000000000001 | B50: SgK330------09 | C50: Nein | E50: 26787
A51: E4058501S000000026000000000000001 | B51: SgK331------09 | C51: Nein | E51: 62500
A52: E4058501S000000026000000000000001 | B52: SgK332------09 | C52: Nein | E52: 16785
A53: E4058501S000000026000000000000001 | B53: Sg-vNNe--SpE07 | F53: 933.43
A54: E4058501S000000026000000000000002 | B54: SgK332------10 | C54: Nein | E54: 74752
A55: E4058501S000000026000000000000002 | B55: Sg-vNNe--SpE07 | F55: 657.82
A56: E4058501S000000003000000000000001 | B56: SgK330------09 | C56: Nein | E56: 24345
A57: E4058501S000000003000000000000001 | B57: Sg-vNNe--SpE07 | F57: 214.24
A58: E4058501S000000052000000003600001 | B58: SgK330------09 | C58: Nein | E58: 10107
A59: E4058501S000000052000000003600001 | B59: Sg-vNNe--SpE07 | F59: 88.94
A60: E4058501S000000077000000000000001 | B60: SgK330------09 | C60: Nein | E60: 16198
A61: E4058501S000000077000000000000001 | B61: Sg-vNNe--SpE07 | F61: 142.54
A62: E4058501S000000050000000000000001 | B62: SgK330------09 | C62: Nein | E62: 4373
A63: E4058501S000000050000000000000001 | B63: Sg-vNNe--SpE07 | F63: 38.48
A64: E4058501S000000107000000000000001 | B64: SgK330------09 | C64: Nein | E64: 19100
A65: E4058501S000000107000000000000001 | B65: SgK3341-----09 | C65: Nein | E65: 6949
A66: E4058501S000000107000000000000001 | B66: SgK3342-----09 | C66: Nein | E66: -6949
A67: E4058501S000000107000000000000001 | B67: Sg-vNNe--SpE07 | F67: 168.08
A68: E4058501S000000003000000000100002 | B68: SgK330------10 | C68: Nein | E68: 6113
A69: E4058501S000000003000000000100002 | B69: Sg-vNNe--SpE07 | F69: 53.8
A70: E4058501S000000002000000000100001 | B70: SgK330------10 | C70: Nein | E70: 18363
A71: E4058501S000000002000000000100001 | B71: Sg-vNNe--SpE07 | F71: 161.59
A72: E4058501S000000027000000000000001 | B72: SgK330------10 | C72: Nein | E72: 2390
A73: E4058501S000000027000000000000001 | B73: Sg-vNNe--SpE07 | F73: 21.03
A74: E4058501S000000028000000000000001 | B74: SgK330------10 | C74: Nein | E74: 11345
A75: E4058501S000000028000000000000001 | B75: Sg-vNNe--SpE07 | F75: 99.84
A76: E4058501S000000013000000000000002 | B76: SgK330---Jul10 | C76: Nein | E76: 6115
A77: E4058501S000000013000000000000002 | B77: Sg-vNNe--SpE07 | F77: 53.81
A78: E4058501S000000084000000000000001 | B78: SgK330---Jul10 | C78: Nein | E78: 5287
A79: E4058501S000000084000000000000001 | B79: SgK33410-Jul10 | C79: Nein | E79: 1860
A80: E4058501S000000084000000000000001 | B80: SgK33420-Jul10 | C80: Nein | E80: -1860
A81: E4058501S000000084000000000000001 | B81: SgK33430-Jul10 | C81: Nein | E81: 0
A82: E4058501S000000084000000000000001 | B82: Sg-vNNe--SpE07 | F82: 46.53
A83: E4058501S000000019000000000000002 | B83: SgK330---Okt10 | C83: Nein | E83: 2085
A84: E4058501S000000019000000000000002 | B84: Sg-vNNe--SpE07 | F84: 18.35
A85: E4058501S000000014000000000000002 | B85: SgK330---Okt10 | C85: Nein | E85: 5186
A86: E4058501S000000014000000000000002 | B86: Sg-vNNe--SpE07 | F86: 45.64
A87: E4058501S000000101000000000000001 | B87: SgK330---Okt10 | C87: Nein | E87: 26683
A88: E4058501S000000101000000000000001 | B88: SgK331---Okt10 | C88: Nein | E88: 62265
A89: E4058501S000000101000000000000001 | B89: SgK332---Okt10 | C89: Nein | E89: 502546
A90: E4058501S000000101000000000000001 | B90: Sg-vNNe--SpE05 | F90: 4611.65
A91: E4058501S000000005000000000200001 | B91: SgK330------11 | C91: Nein | E91: 14665
A92: E4058501S000000005000000000200001 | B92: SgK331------11 | C92: Nein | E92: 33580
A93: E4058501S000000005000000000200001 | B93: Sg-vNNe--SpE07 | F93: 424.56
A94: E4058501S000000001000000000000001 | B94: SgK330------11 | C94: Nein | E94: 5687
A95: E4058501S000000001000000000000001 | B95: SgK33410----11 | C95: Nein | E95: 886
A96: E4058501S000000001000000000000001 | B96: SgK33420----11 | C96: Nein | E96: -886
A97: E4058501S000000001000000000000001 | B97: SgK33430----11 | C97: Nein | E97: 0
A98: E4058501S000000001000000000000001 | B98: Sg-vNNe--SpE07 | F98: 50.05
A99: E4058501S000000026000000000200001 | B99: SgK330------11 | C99: Nein | E99: 8796
A100: E4058501S000000026000000000200001 | B100: SgK33410----11 | C100: Nein | E100: 779
A101: E4058501S000000026000000000200001 | B101: SgK33420----11 | C101: Nein | E101: -779
A102: E4058501S000000026000000000200001 | B102: SgK33430----11 | C102: Nein | E102: 0
A103: E4058501S000000026000000000200001 | B103: Sg-vNNe--SpE07 | F103: 77.4
A104: E4058501S000000010000000000000001 | B104: SgK330------11 | C104: Nein | E104: 1759
A105: E4058501S000000010000000000000001 | B105: Sg-vNNe--SpE07 | F105: 15.48
A106: E4058501S000000019000000000200001 | B106: SgK330------11 | C106: Nein | E106: 4298
A107: E4058501S000000019000000000200001 | B107: SgK33410----11 | C107: Nein | E107: 1127
A108: E4058501S000000019000000000200001 | B108: SgK33420----11 | C108: Nein | E108: -1127
A109: E4058501S000000019000000000200001 | B109: SgK33430----11 | C109: Nein | E109: 0
A110: E4058501S000000019000000000200001 | B110: Sg-vNNe--SpE07 | F110: 37.82
A111: E4058501S000000000000000000000001 | B111: SgK330------11 | C111: Nein | E111: 24667
A112: E4058501S000000000000000000000001 | B112: SgK331------11 | C112: Nein | E112: 57368
A113: E4058501S000000000000000000000001 | B113: Sg-vNNe--SpE07 | F113: 721.91
A114: E4058501S000000008000000000100001 | B114: SgK330------11 | C114: Nein | E114: 8473
A115: E4058501S000000008000000000100001 | B115: SgK33410----11 | C115: Nein | E115: 639
A116: E4058501S000000008000000000100001 | B116: SgK33420----11 | C116: Nein | E116: -639
A117: E4058501S000000008000000000100001 | B117: SgK33430----11 | C117: Nein | E117: 0
A118: E4058501S000000008000000000100001 | B118: Sg-vNNe--SpE07 | F118: 74.56
A119: E4058501S000000008000000000100002 | B119: SgK330------11 | C119: Nein | E119: 5707
A120: E4058501S000000008000000000100002 | B120: SgK33410----11 | C120: Nein | E120: 1126
A121: E4058501S000000008000000000100002 | B121: SgK33420----11 | C121: Nein | E121: -1126
A122: E4058501S000000008000000000100002 | B122: SgK33430----11 | C122: Nein | E122: 0
A123: E4058501S000000008000000000100002 | B123: Sg-vNNe--SpE07 | F123: 50.22
A124: E4058501S000000037000000000000001 | B124: SgK330------11 | C124: Nein | E124: 3081
A125: E4058501S000000037000000000000001 | B125: SgK33410----11 | C125: Nein | E125: 19
A126: E4058501S000000037000000000000001 | B126: SgK33420----11 | C126: Nein | E126: -19
A127: E4058501S000000037000000000000001 | B127: SgK33430----11 | C127: Nein | E127: 0
A128: E4058501S000000037000000000000001 | B128: Sg-vNNe--SpE07 | F128: 27.12
A129: E4058501S000000039000000000000001 | B129: SgK330------11 | C129: Nein | E129: 2139
A130: E4058501S000000039000000000000001 | B130: SgK33410----11 | C130: Nein | E130: 1043
A131: E4058501S000000039000000000000001 | B131: SgK33420----11 | C131: Nein | E131: -955
A132: E4058501S000000039000000000000001 | B132: SgK33430----11 | C132: Nein | E132: -88
A133: E4058501S000000039000000000000001 | B133: Sg-vNNe--SpE07 | F133: 18.82
A134: E4058501S000000099000000000000001 | B134: SgK330------11 | C134: Nein | E134: 26836
A135: E4058501S000000099000000000000001 | B135: SgK331------11 | C135: Nein | E135: 62617
A136: E4058501S000000099000000000000001 | B136: SgK332------11 | C136: Nein | E136: 82323
A137: E4058501S000000099000000000000001 | B137: Sg-vNNe--SpE07 | F137: 1511.63
A138: E4058501S000000000000000000100001 | B138: SoK320------11 | C138: Nein | E138: 1758591
A139: E4058501S000000000000000000100001 | B139: So-vNNe--SpE05 | F139: =2110.32+11175.38 -> 13285.7
A140: E4058501S000000101000000000000002 | B140: SgK332------11 | C140: Nein | E140: 40420
A141: E4058501S000000101000000000000002 | B141: Sg-vNNe--SpE05 | F141: =48.51+266.63 -> 315.14
A142: E4058501S000000017000000000000001 | B142: SgK330------11 | C142: Nein | E142: 8877
A143: E4058501S000000017000000000000001 | B143: SgK33410----11 | C143: Nein | E143: 1365
A144: E4058501S000000017000000000000001 | B144: SgK33420----11 | C144: Nein | E144: -1365
A145: E4058501S000000017000000000000001 | B145: SgK33430----11 | C145: Nein | E145: 0
A146: E4058501S000000017000000000000001 | B146: Sg-vNNe--SpE07 | F146: 78.12
A147: E4058501S000000001000000000100001 | B147: SgK330------11 | C147: Nein | E147: 11162
A148: E4058501S000000001000000000100001 | B148: Sg-vNNe--SpE07 | F148: 98.23
A149: E4058501S000000005000000000300001 | B149: SgK330------11 | C149: Nein | E149: 7196
A150: E4058501S000000005000000000300001 | B150: SgK33410----11 | C150: Nein | E150: 1731
A151: E4058501S000000005000000000300001 | B151: SgK33420----11 | C151: Nein | E151: -1731
A152: E4058501S000000005000000000300001 | B152: SgK33430----11 | C152: Nein | E152: 0
A153: E4058501S000000005000000000300001 | B153: Sg-vNNe--SpE07 | F153: 63.32
A154: E4058501S000000015000000000000001 | B154: SgK330------11 | C154: Nein | E154: 5123
A155: E4058501S000000015000000000000001 | B155: SgK33410----11 | C155: Nein | E155: 891
A156: E4058501S000000015000000000000001 | B156: SgK33420----11 | C156: Nein | E156: -891
A157: E4058501S000000015000000000000001 | B157: SgK33430----11 | C157: Nein | E157: 0
A158: E4058501S000000015000000000000001 | B158: Sg-vNNe--SpE07 | F158: 45.08
A159: E4183201RS50015652000084323600001 | B159: SgK330---Jul10 | C159: Nein | E159: 11229
A160: E4183201RS50015652000084323600001 | B160: Sg-vNNe--SpE07 | F160: 98.82
A161: E4183201RS50033540000065120200001 | B161: SoK81a------03 | C161: Nein | E161: 1913
A162: E4183201RS50033540000065120200001 | B162: So-vNNe--SpE07 | F162: 16.83
A163: E4183201RS50033576000082323400001 | B163: SgK330------09 | C163: Nein | E163: 7852
A164: E4183201RS50033576000082323400001 | B164: Sg-vNNe--SpE07 | F164: 69.1
A165: E4183201RS50042756000085560400001 | B165: SgK330------11 | C165: Nein | E165: 4657
A166: E4183201RS50042756000085560400001 | B166: SgK33410----11 | C166: Nein | E166: 1180
A167: E4183201RS50042756000085560400001 | B167: SgK33420----11 | C167: Nein | E167: -1180
A168: E4183201RS50042756000085560400001 | B168: SgK33430----11 | C168: Nein | E168: 0
A169: E4183201RS50042756000085560400001 | B169: Sg-vNNe--SpE07 | F169: 40.98
A170: E4183201RS50046724000085747200001 | B170: SgK330------11 | C170: Nein | E170: 22287
A171: E4183201RS50046724000085747200001 | B171: SgK33410----11 | C171: Nein | E171: 1409
A172: E4183201RS50046724000085747200001 | B172: SgK33420----11 | C172: Nein | E172: -1409
A173: E4183201RS50046724000085747200001 | B173: SgK33430----11 | C173: Nein | E173: 0
A174: E4183201RS50046724000085747200001 | B174: Sg-vNNe--SpE07 | F174: 196.13
A175: E4183201RS50050125000084742700001 | B175: SgK330---Okt10 | C175: Nein | E175: 5170
A176: E4183201RS50050125000084742700001 | B176: SgK33410-Okt10 | C176: Nein | E176: 2621
A177: E4183201RS50050125000084742700001 | B177: SgK33420-Okt10 | C177: Nein | E177: -2337
A178: E4183201RS50050125000084742700001 | B178: SgK33430-Okt10 | C178: Nein | E178: -284
A179: E4183201RS50050125000084742700001 | B179: Sg-vNNe--SpE07 | F179: 45.5
A180: E4183201RS50054460000084360600001 | B180: SgK330------10 | C180: Nein | E180: 15074
A181: E4183201RS50054460000084360600001 | B181: Sg-vNNe--SpE07 | F181: 132.65
A182: E4183201RS50079393000084307200001 | B182: SgK330---Jul10 | C182: Nein | E182: 7043
A183: E4183201RS50079393000084307200001 | B183: Sg-vNNe--SpE07 | F183: 61.98
A184: E4183201RS50083352000065117900001 | B184: SoK81a------03 | C184: Nein | E184: 4702
A185: E4183201RS50083352000065117900001 | B185: So-vNNe--SpE07 | F185: 41.38
A186: E4183201RS50083368000065118000001 | B186: SoK81a------03 | C186: Nein | E186: 4209
A187: E4183201RS50083368000065118000001 | B187: So-vNNe--SpE07 | F187: 37.04
A188: E4183201RS50116412000085734400001 | B188: SgK330------11 | C188: Nein | E188: 3463
A189: E4183201RS50116412000085734400001 | B189: SgK33410----11 | C189: Nein | E189: 2293
A190: E4183201RS50116412000085734400001 | B190: SgK33420----11 | C190: Nein | E190: -1727
A191: E4183201RS50116412000085734400001 | B191: SgK33430----11 | C191: Nein | E191: -566
A192: E4183201RS50116412000085734400001 | B192: Sg-vNNe--SpE07 | F192: 30.47
A193: E4183201RS50127328000065120100001 | B193: SoK81a------01 | C193: Nein | E193: 771
A194: E4183201RS50127328000065120100001 | B194: So-vNNe--SpE07 | F194: 6.78
A195: E4183201RS50127328000065120100002 | B195: SgK330------10 | C195: Nein | E195: 2628
A196: E4183201RS50127328000065120100002 | B196: Sg-vNNe--SpE07 | F196: 23.13
A197: E4183201RS50129571000022012000001 | B197: WaK231------09 | C197: Nein | E197: 250938
A198: E4183201RS50129571000022012000001 | B198: Wa-vNNe--SpE07 | F198: 2208.29
A199: E4183201RS50132429000080773000001 | B199: SoK111------08 | C199: Nein | E199: 182
A200: E4183201RS50132429000080773000001 | B200: So-vNNe--SpE07 | F200: 1.6
... 220 more rows

Sheet Flexibilitätsprämie
C1: Flexibilitätsprämie
A2: Anlagenschlüssel | B2: Vergütungskategorie | C2: Strommenge [kWh] | D2: Vergütung [€]

Sheet Entlastung (hidden)
A1: Einzelauflistung der Anlagen mit einer nachträglichen Entlastung des EEG-Systems
A3: Nachträgliche Entlastung des EEG Kontos
B4: Summen
B5: =SUM(B8:B80000) -> 0 | C5: =SUM(C8:C800000) -> 0
A7: Anlagenschlüssel | B7: EEG Strommenge kWh | C7: Vergütung in € | D7: Sachverhalt

Sheet Belastung (hidden)
A1: Einzelauflistung der Anlagen mit einer nachträglichen Forderung von VNB an 50Hertz
A3: Nachträgliche Belastung des EEG Kontos
B4: Summen
B5: =SUM(B8:B80000) -> 0 | C5: =SUM(C8:C800000) -> 0
A7: Anlagenschlüssel | B7: EEG Strommenge kWh | C7: Vergütung in € | D7: Art der Belastung | E7: Gericht/ Notar | F7: Aktenzeichen / Urkundennummer | G7: Sachverhalt

Sheet Erfassung Eigenversorgung
A2: Anlagenschlüssel | B2: Vergütungskategorie | C2: Zeitraum | D2: Strommenge [kWh] | E2: erhaltene Zahlungen [EUR]
A3: E4058501S000000005000000001100001 | B3: EV6111-EEG-RED | C3: 2015 | D3: 5.332 | E3: 98,70
A4: K405850175S0000000520KWK000000001 | B4: EV6111NEEG-RED | C4: 2015 | D4: 72.442 | E4: 1.340,90
A5: K405850175S0000000520KWK000000001 | B5: EV6111NEEG-RED | C5: 2014 | D5: 4.220 | E5: 79,00

Sheet Prüfergebnis
A1: Datenprüfung 'Teil 1' | B1: durchgeführt am: 11.05.2016 13:01:24
A2: 0 | B2: Zeilen mit fehlerhaften Daten gefunden
A4: Zeile | B4: Meldung 1 | C4: Meldung 2 | D4: Meldung 3 | E4: Meldung 4

Sheet Ausfüllhilfe (hidden)
B1: Ausfüllhilfe für die Datenerhebung über die eingespeisten und direktvermarkteten EEG-Strommengen und Vergütungszahlungen im Rahmen der EEG-Jahresabrechnung 2013
B2: Wichtige Hinweise zum Erstellen der anlagenscharfen Jahresabrechnung 2013
B4: Die Datenmeldung erfolgt gemäß § 47 Abs. 1 Nr. 2 EEG. Sie beinhaltet die anlagenscharf aufbereiteten eingespeisten und/oder direktvermarkteten und vergüteten EEG-Strommengen in elektronischer Form und ist bis spätestens zum 31. Mai 2014 an uns zu übermitteln. Verwenden Sie hierfür bitte folgendes E-Mail-Postfach: eeg-einspeisung@50hertz.com
B5: Beim Ausfüllen der anlagenscharfen Jahresabrechnungsdatei möchten wir Ihnen gerne eine Hilfestellung geben, um die Vorlage sachgerecht und fehlerfrei ausfüllen zu können. Beachten Sie hierbei folgende Grundsätze:
B6: Dateneingabe
B7: Alle anlagenscharfen Einspeisemengen werden in den Tabellenblättern Teil 1 oder Flexibilitätsprämie eingetragen ! Anhand der angegeben Strommengen und finanziellen Beträge für die vermiedenen Netznutzungsentgelte (VNNE) werden die Übersichten in den Tabellenblättern Jahresabrechnung, Zusammenfassung VNNE und Testat automatisch berechnet. Nutzen Sie die Gelegenheit nach abschließender Dateneingabe, die Ergebnisse mit Ihren vorliegenden Daten und dem Testatswert abzugleichen. Sofern es zu Abweichungen kommen sollte, aktivieren Sie erneut den Knopf unter Jahresabrechnung "Summe neu berechnen". Die Berechnungsfunktion ist bei einigen Excel Versionen deaktiviert und muss manuell gesteuert werden.
B8: Tabellenblatt Prüfergebnis
B9: Um auftretende Fehler bei den Datensätzen schon vor dem Versand der Datei zu erkennen, bitten wir Sie dringend nach abschließender Dateneingabe im Tabellenblatt Jahresabrechnung das Funktionsfeld "Datenprüfung durchführen" zu aktivieren. Wir haben hierbei einige Fehlerabfragen hinterlegt, welche Ihnen auftretende Fehler anzeigen und die Möglichkeit geben, diese vor dem abschließenden Datenversand zu korrigieren. Die Ergebnisse der Prüfung können Sie dem Tabellenblatt Prüfergebnis entnehmen. An dieser Stelle werden zeilenscharf die auftretenden Fehler unter Angabe der Zeilennummer und einer Beschreibung angezeigt. Durch anklicken einer Zeilennummer, werden Sie direkt auf das betroffene Fehlerfeld verwiesen. Bitte korrigieren Sie anschließend die Fehler und führen erneut eine Datenprüfung durch, bis die Datensätze fehlerfrei sind.
B10: Allgemeine Hinweise Teil 1
B11: • | C11: Jedem Anlagenschlüssel, eingetragen in Spalte A, wird eine Vergütungsategorie je Zeile zugeordnet. Sofern für eine Anlage mehrere physikalische oder finanzielle Vergütungskategorien (VGK) zutreffen, muss der Anlagenschlüssel mehrfach untereinander eingetragen werden. Eine fehlerfreie Bearbeitung ist nur dann möglich, wenn einem Anlagenschlüssel eine VGK und eine Strommenge zugeordnet wird.
B13: • | C13: Grundsätzlich werden die Strommengen nur in ganzen kWh eingetragen, da die Nachkommastellen bei der Berechnung keine Berücksichtigung finden.
B15: • | C15: Verwenden Sie zur Auswahl der unterschiedlichen VGK das Drop-Down Menü im Teil 1 aus der Spalte B.
B17: • | C17: Tragen Sie in der Spalte D die EEG Einspeisemengen, die Strommengen für die Direktvermarktung nach dem Grünstromprivileg und der Sonstigen Direktvermarktung ein. - VGK für die GSP Vermarktung enthalten den Wortlaut GSP-DV und - für die sonstige Direktvermarktung SO-DV
B19: • | C19: Die Summe der selbstverbrauchten EEG-Strommengen einer Anlage, dargestellt durch positive Hochlieferungen und negative Rücklieferungen, muss Null ergeben. Dies gilt jedoch nur für PV-Anlagen mit einem Inbetriebnahmejahr von 2009 bis 01.April.2012.
B21: • | C21: Strommengen, welche nach dem Marktprämienmodell direktvermarktet wurden, werden monatsscharf in die Spalten H – S eingetragen. Verwenden Sie hierfür die üblichen EEG Einspeisevergütungskategorien
B23: • | C23: Für die Inanspruchnahme einer erhöhten Managementprämie für die Energieträger Wind Onshore, Wind Offshore und PV wählen Sie bitte in der Spalte C aus, ob die Anlagen fernsteuerbar gemäß § 3 Managementprämienverordnung (MaPrV) sind.
B25: • | C25: Tragen Sie in den Spalten E bis G für die vermiedenen Netznutzungsentgelte nur positive Euro-Beträge getrennt nach den Einspeiseprozessen EEG, Marktprämie und Grünstromprivileg ein.
B27: Tabellenblatt Flexibilätsprämie
B29: • | C29: Gemäß § 33i EEG 2012 kann eine Flexibilitätsprämie ergänzend zur Marktprämie für Biogas ausgezahlt werden, wenn zusätzliche installierte Leistung für eine bedarfsorientierte Stromerzeugung bereitgestellt werden kann. Tragen Sie hierzu in dem separaten Tabellenblatt anlagenscharf und vergütungskategorienscharf die Strommenge [kWh] und die Vergütung [€] ein.
B31: Anwendungsbeispiel 1: 100% EEG Einspeisung
B44: Anwendungsbeispiel 2: EEG Einspeisung und Direktvermarktung nach dem Marktprämienmodell von Januar bis April 2013
B46: • | C46: Eintragung der EEG VGK in Spalte B mit den dazugehörigen EEG Strommengen für das Jahr 2013 in Spalte D
B48: • | C48: Wählen Sie für die Energieträger Wind Onshore, Wind Offshore und PV JA/Nein für die Fernsteuerbarkeit gemäß §3 MaPrV in der Spalte C aus.
B50: • | C50: Monatsscharfe Eintragung der direktvermarkteten Strommengen für das Marktprämienmodell ausschließlich in den Spalten H -S
B52: • | C52: Aufteilung der vNNE für die EEG Einspeisung und die Marktprämie in den Spalten E und F
B68: Anwendungsbeispiel 3: 100% Direktvermarktung nach dem Marktprämienmodell/Grünstromprivileg oder Sonstige
B70: • | C70: Eintragung der EEG VGK in Spalte B.
B72: • | C72: Wählen Sie für die Energieträger Wind Onshore, Wind Offshore und PV JA/Nein für die Fernsteuerbarkeit gemäß § 3 MaPrV in der Spalte C aus.
B74: • | C74: Monatsscharfe Eintragung der direktvermarkteten Strommengen für das Marktprämienmodell ausschließlich in den Spalten H -S
B76: • | C76: Eintragung vNNE für die Marktprämie in der Spalte F und für GSP in Spalte G.
B95: Anwendungsbeispiel 4: Verringerung des Vergütungsanspruchs bzw. Sanktionen
B97: • | C97: In Fällen von Verstößen gegen §§ 17, 33f Abs.3, 33g Abs. 3, 39 Abs. 2, 56 Abs. 4 EEG kommt es zu Vergütungskürzungen auf den Marktwert oder auf Null.
B99: • | C99: Melden Sie uns bitte jeweils die Strommengen in der dazu vorgesehenen VGK, welche getrennt nach den oben aufgezählten Verstößen erstellt wurden. Zur Hilfestellung enthält die Übersicht einen Auszug über Sanktionskategorien, welche den einzelnen Gesetzesvorschriften zugeordnet wurden.
B101: • | C101: Bei einer Sanktion auf den Marktwert (MW im Wortlaut) werden die Strommengen monatsscharf in die Spalten H-S eingetragen. (Die Zuordnung zu EEG oder Marktprämienstrom in der Summenberechnung erfolgt jeweils im Hintergrund)
B103: • | C103: Weiterhin gibt es bei einigen Verstößen eine Reduzierung der Vergütung auf Null. Für die Eintragungen der Strommengen ist jeweils entscheidend, ob es sich um Strom für die EEG Einspeisung, Marktprämienmodell oder Grünstromprivileg handelt. Die EEG Strommengen und die für die GSP Vermarktung werden in Spalte D eingetragen. Die Strommengen nach dem Marktprämienmodell werden monatsscharf in den Spalten H-S eingetragen.

Sheet Vergütungskategorien
A1: Vergütungskategorien | B1: Erklärung | C1: Vergütung [EUR\MWh]
A2: WaK41a------01 | B2: 0-0,5 MW | C2: 76.70
A3: WaK42a------01 | B3: 0,5-5 MW | C3: 66.50
A4: WaK41a------02 | B4: 0-0,5 MW | C4: 76.70
A5: WaK42a------02 | B5: 0,5-5 MW | C5: 66.50
A6: WaK41a------03 | B6: 0-0,5 MW | C6: 76.70
A7: WaK42a------03 | B7: 0,5-5 MW | C7: 66.50
A8: WaK41a------04 | B8: 0-0,5 MW | C8: 76.70
A9: WaK42a------04 | B9: 0,5-5 MW | C9: 66.50
A10: WaK61-------04 | B10: 0-0,5 MW | C10: 96.70
A11: WaK62-------04 | B11: 0,5-5 MW | C11: 66.50
A12: WaK63-------04 | B12: >5 MW , Zubau 0-0,5 MW | C12: 76.70
A13: WaK64-------04 | B13: >5 MW , Zubau 0,5-10 MW | C13: 66.50
A14: WaK65-------04 | B14: >5 MW , Zubau 10-20 MW | C14: 61.00
A15: WaK66-------04 | B15: >5 MW , Zubau 20-50 MW | C15: 45.60
A16: WaK67-------04 | B16: >5 MW , Zubau 50-150 MW | C16: 37.00
A17: WaK61-------05 | B17: 0-0,5 MW | C17: 96.70
A18: WaK62-------05 | B18: 0,5-5 MW | C18: 66.50
A19: WaK63-------05 | B19: >5 MW , Zubau 0-0,5 MW | C19: 75.90
A20: WaK64-------05 | B20: >5 MW , Zubau 0,5-10 MW | C20: 65.80
A21: WaK65-------05 | B21: >5 MW , Zubau 10-20 MW | C21: 60.40
A22: WaK66-------05 | B22: >5 MW , Zubau 20-50 MW | C22: 45.10
A23: WaK67-------05 | B23: >5 MW , Zubau 50-150 MW | C23: 36.60
A24: WaK61-------06 | B24: 0-0,5 MW | C24: 96.70
A25: WaK62-------06 | B25: 0,5-5 MW | C25: 66.50
A26: WaK63-------06 | B26: >5 MW, Zubau 0-0,5 MW | C26: 75.10
A27: WaK64-------06 | B27: >5 MW, Zubau 0,5-10 MW | C27: 65.10
A28: WaK65-------06 | B28: >5 MW , Zubau 10-20 MW | C28: 59.80
A29: WaK66-------06 | B29: >5 MW , Zubau 20-50 MW | C29: 44.60
A30: WaK67-------06 | B30: >5 MW , Zubau 50-150 MW | C30: 36.20
A31: WaK61-------07 | B31: 0-0,5 MW | C31: 96.70
A32: WaK62-------07 | B32: 0,5-5 MW | C32: 66.50
A33: WaK63-------07 | B33: >5 MW , Zubau 0-0,5 MW | C33: 74.30
A34: WaK64-------07 | B34: >5 MW , Zubau 0,5-10 MW | C34: 64.40
A35: WaK65-------07 | B35: >5 MW , Zubau 10-20 MW | C35: 59.20
A36: WaK66-------07 | B36: >5 MW , Zubau 20-50 MW | C36: 44.20
A37: WaK67-------07 | B37: >5 MW , Zubau 50-150 MW | C37: 35.80
A38: WaK61-------08 | B38: 0-0,5 MW | C38: 96.70
A39: WaK62-------08 | B39: 0,5-5 MW | C39: 66.50
A40: WaK63-------08 | B40: >5 MW , Zubau 0-0,5 MW | C40: 73.60
A41: WaK64-------08 | B41: >5 MW , Zubau 0,5-10 MW | C41: 63.80
A42: WaK65-------08 | B42: >5 MW , Zubau 10-20 MW | C42: 58.60
A43: WaK66-------08 | B43: >5 MW , Zubau 20-50 MW | C43: 43.80
A44: WaK67-------08 | B44: >5 MW , Zubau 50-150 MW | C44: 35.40
A45: WaK230------09 | B45: 0-0,5 MW, Anlage < 5 MW | C45: 126.70
A46: WaK231------09 | B46: 0-0,5 MW, Anlage < 5 MW, Modernisierung | C46: 116.70
A47: WaK232------09 | B47: 0,5-2 MW, Anlage < 5 MW | C47: 86.50
A48: WaK233------09 | B48: 2-5 MW, Anlage < 5 MW | C48: 76.50
A49: WaK234------09 | B49: 0,5-5 MW, Anlage < 5 MW, Modernisierung | C49: 86.50
A50: WaK235------09 | B50: >5 MW, Zubau 0-0,5 MW | C50: 72.90
A51: WaK236------09 | B51: >5 MW, Zubau 0,5-10 MW | C51: 63.20
A52: WaK237------09 | B52: >5 MW, Zubau 10-20 MW | C52: 58.00
A53: WaK238------09 | B53: >5 MW, Zubau 20-50 MW | C53: 43.40
A54: WaK239------09 | B54: >5 MW, Zubau >50 MW | C54: 35.00
A55: WaK230------10 | B55: 0-0,5 MW, Anlage < 5 MW | C55: 126.70
A56: WaK231------10 | B56: 0-0,5 MW, Anlage < 5 MW, Modernisierung | C56: 116.70
A57: WaK232------10 | B57: 0,5-2 MW, Anlage < 5 MW | C57: 86.50
A58: WaK233------10 | B58: 2-5 MW, Anlage < 5 MW | C58: 76.50
A59: WaK234------10 | B59: 0,5-5 MW, Anlage < 5 MW, Modernisierung | C59: 86.50
A60: WaK235------10 | B60: >5 MW, Zubau 0-0,5 MW | C60: 72.20
A61: WaK236------10 | B61: >5 MW, Zubau 0,5-10 MW | C61: 62.60
A62: WaK237------10 | B62: >5 MW, Zubau 10-20 MW | C62: 57.40
A63: WaK238------10 | B63: >5 MW, Zubau 20-50 MW | C63: 43.00
A64: WaK239------10 | B64: >5 MW, Zubau >50 MW | C64: 34.70
A65: WaK230------11 | B65: 0-0.5 MW, Anlage < 5 MW | C65: 126.70
A66: WaK231------11 | B66: 0-0.5 MW, Anlage < 5 MW, Modernisierung | C66: 116.70
A67: WaK232------11 | B67: 0.5-2 MW, Anlage < 5 MW | C67: 86.50
A68: WaK233------11 | B68: 2-5 MW, Anlage < 5 MW | C68: 76.50
A69: WaK234------11 | B69: 0.5-5 MW, Anlage < 5 MW, Modernisierung | C69: 86.50
A70: WaK235------11 | B70: >5 MW, Zubau 0-0.5 MW | C70: 71.40
A71: WaK236------11 | B71: >5 MW, Zubau 0.5-10 MW | C71: 61.90
A72: WaK237------11 | B72: >5 MW, Zubau 10-20 MW | C72: 56.80
A73: WaK238------11 | B73: >5 MW, Zubau 20-50 MW | C73: 42.50
A74: WaK239------11 | B74: >5 MW, Zubau >50 MW | C74: 34.30
A75: WaK230BS----12 | B75: 0-0,5 MW, Anlage 0,5-5 MW, wasserrechtliche Genehmigung vor 01.01.2012 (Bestandsschutz nach § 66 Abs | C75: 126.70
A76: WaK231BS----12 | B76: 0-0,5 MW, Anlage <5 MW mit IB vor 01.08.2004, Modernisierung (Bestandsschutz nach § 66 Abs. 14 EEG 2 | C76: 116.70
A77: WaK232BS----12 | B77: 0,5-2 MW, Anlage 0,5-5 MW, wasserrechtliche Genehmigung vor 01.01.2012 (Bestandsschutz nach § 66 Abs | C77: 86.50
A78: WaK233BS----12 | B78: 2-5 MW, Anlage 0,5-5 MW, wasserrechtliche Genehmigung vor 01.01.2012 (Bestandsschutz nach § 66 Abs.5 | C78: 76.50
A79: WaK234BS----12 | B79: 0,5-5 MW, Anlage <5 MW mit IB vor 01.08.2004, Modernisierung (Bestandsschutz nach § 66 Abs. 14 EEG 2 | C79: 86.50
A80: WaK230------12 | B80: 0-0,5 MW | C80: 127.00
A81: WaK231------12 | B81: 0,5-2 MW | C81: 83.00
A82: WaK232------12 | B82: 2-5 MW | C82: 63.00
A83: WaK233------12 | B83: 5-10 MW | C83: 55.00
A84: WaK234------12 | B84: 10-20 MW | C84: 53.00
A85: WaK235------12 | B85: 20-50 MW | C85: 42.00
A86: WaK236------12 | B86: >50 MW | C86: 34.00
A87: WaK230M-----12 | B87: 0-0,5 MW, IB vor 01.01.2009, Modernisierung 2012 | C87: 127.00
A88: WaK231M-----12 | B88: 0,5-2 MW, IB vor 01.01.2009, Modernisierung 2012 | C88: 83.00
A89: WaK232M-----12 | B89: 2-5 MW, IB vor 01.01.2009, Modernisierung 2012 | C89: 63.00
A90: WaK233M-----12 | B90: 5-10 MW, IB vor 01.01.2009, Modernisierung 2012 | C90: 55.00
A91: WaK234M-----12 | B91: 10-20 MW, IB vor 01.01.2009, Modernisierung 2012 | C91: 53.00
A92: WaK235M-----12 | B92: 20-50 MW, IB vor 01.01.2009, Modernisierung 2012 | C92: 42.00
A93: WaK236M-----12 | B93: >50 MW, IB vor 01.01.2009, Modernisierung 2012 | C93: 34.00
A94: WaK230BS----13 | B94: 0-0,5 MW, Anlage 0,5-5 MW, wasserrechtliche Genehmigung vor 01.01.2012 (Bestandsschutz nach § 66 Ab | C94: 126.70
A95: WaK231BS----13 | B95: 0-0,5 MW, Anlage < 5 MW mit IB vor 01.08.2004, Modernisierung (Bestandsschutz nach § 66 Abs. 14 EEG | C95: 116.70
A96: WaK232BS----13 | B96: 0,5-2 MW, Anlage 0,5-5 MW, wasserrechtliche Genehmigung vor 01.01.2012 (Bestandsschutz nach § 66 Ab | C96: 86.50
A97: WaK233BS----13 | B97: 2-5 MW, Anlage 0,5-5 MW, wasserrechtliche Genehmigung vor 01.01.2012 (Bestandsschutz nach § 66 Abs. | C97: 76.50
A98: WaK234BS----13 | B98: 0,5-5 MW, Anlage < 5 MW mit IB vor 01.08.2004, Modernisierung (Bestandsschutz nach § 66 Abs. 14 EEG | C98: 86.50
A99: WaK230------13 | B99: 0-0,5 MW | C99: 125.70
A100: WaK231------13 | B100: 0,5-2 MW | C100: 82.20
A101: WaK232------13 | B101: 2-5 MW | C101: 62.40
A102: WaK233------13 | B102: 5-10 MW | C102: 54.50
A103: WaK234------13 | B103: 10-20 MW | C103: 52.50
A104: WaK235------13 | B104: 20-50 MW | C104: 41.60
A105: WaK236------13 | B105: > 50 MW | C105: 33.70
A106: WaK230M-----13 | B106: 0-0,5 MW, IB vor 01.01.2009, Modernisierung 2013 | C106: 125.70
A107: WaK231M-----13 | B107: 0,5-2 MW, IB vor 01.01.2009, Modernisierung 2013 | C107: 82.20
A108: WaK232M-----13 | B108: 2-5 MW, IB vor 01.01.2009, Modernisierung 2013 | C108: 62.40
A109: WaK233M-----13 | B109: 5-10 MW, IB vor 01.01.2009, Modernisierung 2013 | C109: 54.50
A110: WaK234M-----13 | B110: 10-20 MW, IB vor 01.01.2009, Modernisierung 2013 | C110: 52.50
A111: WaK235M-----13 | B111: 20-50 MW, IB vor 01.01.2009, Modernisierung 2013 | C111: 41.60
A112: WaK236M-----13 | B112: > 50 MW, IB vor 01.01.2009, Modernisierung 2013 | C112: 33.70
A113: WaK230------14 | B113: 0-0,5 MW | C113: 124.50
A114: WaK231------14 | B114: 0,5-2 MW | C114: 81.30
A115: WaK232------14 | B115: 2-5 MW | C115: 61.70
A116: WaK233------14 | B116: 5-10 MW | C116: 53.90
A117: WaK234------14 | B117: 10-20 MW | C117: 51.90
A118: WaK235------14 | B118: 20-50 MW | C118: 41.20
A119: WaK236------14 | B119: > 50 MW | C119: 33.30
A120: WaK230M-----14 | B120: 0-0,5 MW, IB vor 01.01.2009, Modernisierung 2014 | C120: 124.50
A121: WaK231M-----14 | B121: 0,5-2 MW, IB vor 01.01.2009, Modernisierung 2014 | C121: 81.30
A122: WaK232M-----14 | B122: 2-5 MW, IB vor 01.01.2009, Modernisierung 2014 | C122: 61.70
A123: WaK233M-----14 | B123: 5-10 MW, IB vor 01.01.2009, Modernisierung 2014 | C123: 53.90
A124: WaK234M-----14 | B124: 10-20 MW, IB vor 01.01.2009, Modernisierung 2014 | C124: 51.90
A125: WaK235M-----14 | B125: 20-50 MW, IB vor 01.01.2009, Modernisierung 2014 | C125: 41.20
A126: WaK236M-----14 | B126: > 50 MW, IB vor 01.01.2009, Modernisierung 2014 | C126: 33.30
A127: WaK400------14 | B127: 0-0,5 MW | C127: 123.20
A128: WaK401------14 | B128: 0,5-2 MW | C128: 80.50
A129: WaK402------14 | B129: 2-5 MW | C129: 61.10
A130: WaK403------14 | B130: 5-10 MW | C130: 53.40
A131: WaK404------14 | B131: 10-20 MW | C131: 51.40
A132: WaK405------14 | B132: 20-50 MW | C132: 40.80
A133: WaK406------14 | B133: > 50 MW | C133: 33.00
A134: WaK400M-----14 | B134: 0-0,5 MW, IB vor 01.01.2009, Modernisierung 2014 | C134: 123.20
A135: WaK401M-----14 | B135: 0,5-2 MW, IB vor 01.01.2009, Modernisierung 2014 | C135: 80.50
A136: WaK402M-----14 | B136: 2-5 MW, IB vor 01.01.2009, Modernisierung 2014 | C136: 61.10
A137: WaK403M-----14 | B137: 5-10 MW, IB vor 01.01.2009, Modernisierung 2014 | C137: 53.40
A138: WaK404M-----14 | B138: 10-20 MW, IB vor 01.01.2009, Modernisierung 2014 | C138: 51.40
A139: WaK405M-----14 | B139: 20-50 MW, IB vor 01.01.2009, Modernisierung 2014 | C139: 40.80
A140: WaK406M-----14 | B140: > 50 MW, IB vor 01.01.2009, Modernisierung 2014 | C140: 33.00
A141: WaK400------15 | B141: 0-0,5 MW | C141: 123.20
A142: WaK401------15 | B142: 0,5-2 MW | C142: 80.50
A143: WaK402------15 | B143: 2-5 MW | C143: 61.10
A144: WaK403------15 | B144: 5-10 MW | C144: 53.40
A145: WaK404------15 | B145: 10-20 MW | C145: 51.40
A146: WaK405------15 | B146: 20-50 MW | C146: 40.80
A147: WaK406------15 | B147: > 50 MW | C147: 33.00
A148: WaK400M-----15 | B148: 0-0,5 MW, IB vor 01.01.2009, Modernisierung 2015 | C148: 123.20
A149: WaK401M-----15 | B149: 0,5-2 MW, IB vor 01.01.2009, Modernisierung 2015 | C149: 80.50
A150: WaK402M-----15 | B150: 2-5 MW, IB vor 01.01.2009, Modernisierung 2015 | C150: 61.10
A151: WaK403M-----15 | B151: 5-10 MW, IB vor 01.01.2009, Modernisierung 2015 | C151: 53.40
A152: WaK404M-----15 | B152: 10-20 MW, IB vor 01.01.2009, Modernisierung 2015 | C152: 51.40
A153: WaK405M-----15 | B153: 20-50 MW, IB vor 01.01.2009, Modernisierung 2015 | C153: 40.80
A154: WaK406M-----15 | B154: > 50 MW, IB vor 01.01.2009, Modernisierung 2015 | C154: 33.00
A155: WaK171-------0 | B155: Verringerung auf Null nach § 17 Abs. 1 (Nichterfüllung § 6 Technische Vorgaben) | C155: 0.00
A156: WaK2511------0 | B156: Verringerung auf null nach § 25 Abs. 1 Nr. 1 (Unterlassene Anmeldung im Anlagenregister) | C156: 0.00
A157: WaK2512------0 | B157: Verringerung auf null nach § 25 Abs. 1 Nr. 2 (Nichtmeldung Leistungserhöhung an Anlagenregister) | C157: 0.00
A158: WaK2513------0 | B158: Verringerung auf null nach § 25 Abs. 1 Nr. 3 (Pflichtverletzung bei anteiliger DV) | C158: 0.00
A159: WaK2514------0 | B159: Verringerung auf null nach § 25 Abs. 1 Nr. 4 (Feh...s zur Stilllegung einer anderen Biomethananlage) | C159: 0.00
A160: WaK2521-----MW | B160: Verringerung auf Marktwert nach § 25 Abs. 2 Nr. 1 (Verstoß gegen technische Vorgaben) | C160: 0.00
A161: WaK2522-----MW | B161: Verringerung auf Marktwert nach § 25 Abs. 2 Nr. 2...n Meldepflicht zum Wechsel der Vermarktungsform) | C161: 0.00
A162: WaK2523-----MW | B162: Verringerung auf Marktwert nach § 25 Abs. 2 Nr. 3 (Verstoß gegen gemeinsame Messeinrichtung) | C162: 0.00
A163: WaK2524-----MW | B163: Verringerung auf Marktwert nach § 25 Abs. 2 Nr. 4 (Verstoß gegen Stromüberlassung nach § 39 Abs. 2) | C163: 0.00
A164: WaK2525-----MW | B164: Verringerung auf Marktwert nach § 25 Abs. 2 Nr. 5 (Doppelvermarktung) | C164: 0.00
A165: WaK2526-----MW | B165: Verringerung auf Marktwert nach § 25 Abs. 2 Nr. 6 (Vorbildfunktion öffentlicher Gebäude) | C165: 0.00
A166: WaK1004------0 | B166: Entfall Vergütungsanspruch bzw. Marktprämie nach ...(Nichterfüllung der Systemstabilitätsverordnung) | C166: 0.00
A167: WaK-kVG------0 | B167: Entfall Vergütungsanspruch (Nichterfüllung der Anforderungen § 23 EEG 2012 oder § 40 EEG 2014) | C167: 0.00
A168: WaK35---MPM--0 | B168: Entfall der Marktprämie nach § 35 EEG 2014 (Nicheinhaltung der Voraussetzungen der Marktprämie) | C168: 0.00
A169: WaK33a2-----SV | B169: Strommenge ohne EEG-Vergütung, durch Anlagenbetreiber oder durch Dritte verbraucht | C169: 0.00
A170: WaK33b3--SO-DV | B170: Strommenge der Sonstigen DV | C170: 0.00
A171: GaK41a------01 | B171: 0-0,5 MW | C171: 76.70
A172: GaK42a------01 | B172: 0,5-5 MW | C172: 66.50
A173: GaK41a------02 | B173: 0-0,5 MW | C173: 76.70
A174: GaK42a------02 | B174: 0,5-5 MW | C174: 66.50
A175: GaK41a------03 | B175: 0-0,5 MW | C175: 76.70
A176: GaK42a------03 | B176: 0,5-5 MW | C176: 66.50
A177: GaK41a------04 | B177: 0-0,5 MW | C177: 76.70
A178: GaK42a------04 | B178: 0,5-5 MW | C178: 66.50
A179: GaK71-------04 | B179: 0-0,5 MW | C179: 76.70
A180: GaK72-------04 | B180: 0,5-5 MW | C180: 66.50
A181: GaK73-------04 | B181: >5 MW, nur Grubengas | C181: 66.50
A182: GaK74-------04 | B182: 0-0,5 MW, Zuschlag | C182: 96.70
A183: GaK75-------04 | B183: 0,5-5 MW, Zuschlag | C183: 86.50
A184: GaK76-------04 | B184: >5 MW, Zuschlag; nur Grubengas | C184: 86.50
A185: GaK71-------05 | B185: 0-0,5 MW | C185: 75.50
A186: GaK72-------05 | B186: 0,5-5 MW | C186: 65.50
A187: GaK73-------05 | B187: >5 MW, nur Grubengas | C187: 65.50
A188: GaK74-------05 | B188: 0-0,5 MW, Zuschlag | C188: 95.50
A189: GaK75-------05 | B189: 0,5-5 MW, Zuschlag | C189: 85.50
A190: GaK76-------05 | B190: >5 MW, Zuschlag; nur Grubengas | C190: 85.50
A191: GaK71-------06 | B191: 0-0,5 MW | C191: 74.40
A192: GaK72-------06 | B192: 0,5-5 MW | C192: 64.50
A193: GaK73-------06 | B193: >5 MW, nur Grubengas | C193: 64.50
A194: GaK74-------06 | B194: 0-0,5 MW, Zuschlag | C194: 94.40
A195: GaK75-------06 | B195: 0,5-5 MW, Zuschlag | C195: 84.50
A196: GaK76-------06 | B196: >5 MW, Zuschlag; nur Grubengas | C196: 84.50
A197: GaK71-------07 | B197: 0-0,5 MW | C197: 73.30
A198: GaK72-------07 | B198: 0,5-5 MW | C198: 63.50
A199: GaK73-------07 | B199: >5 MW, nur Grubengas | C199: 63.50
A200: GaK74-------07 | B200: 0-0,5 MW, Zuschlag | C200: 93.30
... 4406 more rows

Sheet Vergütungskategorien EV
A1: Vergütungskategorien EV | B1: Erklärung | C1: Vergütung [EUR\MWh] | D1: KWK
A2: EV6111-EEG-RED | B2: 2014 - reduzierte EEG-Umlage für EEG-Anlagen | C2: 18.72 | D2: 0
A3: EV6111-EEG-RED | B3: 2015 - reduzierte EEG-Umlage für EEG-Anlagen | C3: 18.51 | D3: 0
A4: EV6111NEEG-RED | B4: 2014 - reduzierte EEG-Umlage für hocheffiziente KWK-Anlagen | C4: 18.72 | D4: 1
A5: EV6111NEEG-RED | B5: 2015 - reduzierte EEG-Umlage für hocheffiziente KWK-Anlagen | C5: 18.51 | D5: 1
A6: EV61121NEEG100 | B6: 2014 - volle EEG-Umlage für nicht hocheffiziente KWK-Anlagen oder konventionelle Anlagen | C6: 62.40 | D6: 1
A7: EV61121NEEG100 | B7: 2015 - volle EEG-Umlage für nicht hocheffiziente KWK-Anlagen oder konventionelle Anlagen | C7: 61.70 | D7: 1
A8: EV61122-EEG100 | B8: 2014 - volle EEG-Umlage für EEG-Anlagen wenn Meldepflicht nicht eingehalten wurde | C8: 62.40 | D8: 0
A9: EV61122-EEG100 | B9: 2015 - volle EEG-Umlage für EEG-Anlagen wenn Meldepflicht nicht eingehalten wurde | C9: 61.70 | D9: 0
A10: EV61122NEEG100 | B10: 2014 - volle EEG-Umlage für hocheffiziente KWK-Anlagen, wenn Meldepflicht nicht eingehalten wurde | C10: 62.40 | D10: 1
A11: EV61122NEEG100 | B11: 2015 - volle EEG-Umlage für hocheffiziente KWK-Anlagen, wenn Meldepflicht nicht eingehalten wurde | C11: 61.70 | D11: 1
A12: EV6124-EEG---0 | B12: 2014 - keine EEG-Umlage für den EV-Anteil < 10.000 kWh, bei IL < 10KW u. EV > 10.000 kWh (EEG) | C12: 0.00 | D12: 0
A13: EV6124-EEG---0 | B13: 2015 - keine EEG-Umlage für den EV-Anteil < 10.000 kWh, bei IL < 10KW u. EV > 10.000 kWh (EEG) | C13: 0.00 | D13: 0
A14: EV6124NEEG---0 | B14: 2014 - keine EEG-Umlage für den EV-Anteil < 10.000 kWh, bei IL < 10KW u. EV > 10.000 kWh (nicht EEG) | C14: 0.00 | D14: 1
A15: EV6124NEEG---0 | B15: 2015 - keine EEG-Umlage für den EV-Anteil < 10.000 kWh, bei IL < 10KW u. EV > 10.000 kWh (nicht EEG) | C15: 0.00 | D15: 1

Sheet IDENT (hidden)
A1: Identifikationsdaten
A3: KURZNAME | B3: SW Apolda Netz (AN1)
A4: KUNDE_ID | B4: 1354
A5: NETZBETREIBERNUMMER | B5: 958
A6: GUID | B6: 5ee90ea9-e6fb-453b-ac2f-0d1ea8f192e6
A7: VERSIONSNUMMER | B7: 2.16
A8: EEG-JAHR | B8: 2015
A35: Nachtestat | B35: Nein

Sheet Listen (hidden)
B2: Art der Belastung | H2: Zuordnung Strom | K2: Zuordnung Strom Sanktionen
A4: 1 | B4: rechtskräftige Gerichtentscheidung im Hauptsacheverfahren | H4: 0 | I4: Regulär | K4: 1 | L4: EEG
A5: 2 | B5: Verfahren bzw. Stellungnahme der Clearingstelle | H5: 3 | I5: Ausfallvergütung | K5: 2 | L5: Marktprämie
A6: 3 | B6: Entscheidung Bundesnetzagentur nach §85 EEG 2014 | K6: 3 | L6: Ausfallvergütung
A7: 4 | B7: anderer vollstreckbarer Titel
A8: 5 | B8: vollstreckbarer Titel zwischen VNB und ÜNB
